BODY,BODY NAME,SERVICE CODE,ORGANISATIONAL UNIT,ORGANISATIONAL UNIT CODE,EXPENDITURE CATEGORY,EXPENDITURE CODE,DATE (POSTING DATE),TRANSACTION NUMBER,AMOUNT,SUPPLIER NAME,SUPPLIER ID
WARRINGTON BOROUGH COUNCIL,http://statistics.data.gov.uk/id/local-authority/00EU,FWB,Care Purchase - OP & OT South,54480,CP-Domicil.External,440950,01-Aug-14,1900151090,13394,Redline Business Ta Ashwood Care,113381
WARRINGTON BOROUGH COUNCIL,http://statistics.data.gov.uk/id/local-authority/00EU,FWB,Care Purchase - OP & OT West,54470,CP-Domicil.External,440950,01-Aug-14,1900151090,12874,Redline Business Ta Ashwood Care,113381
WARRINGTON BOROUGH COUNCIL,http://statistics.data.gov.uk/id/local-authority/00EU,FWB,Care Purchase -OP & OT East,54430,CP-Domicil.External,440950,01-Aug-14,1900151090,11220,Redline Business Ta Ashwood Care,113381
WARRINGTON BOROUGH COUNCIL,http://statistics.data.gov.uk/id/local-authority/00EU,FWB,Care Purchase - OP & OT Central,54420,CP-Domicil.External,440950,01-Aug-14,1900151090,3854,Redline Business Ta Ashwood Care,113381
WARRINGTON BOROUGH COUNCIL,http://statistics.data.gov.uk/id/local-authority/00EU,FWB,Care Purchase AMH,54135,CP-Domicil.External,440950,01-Aug-14,1900151090,980,Redline Business Ta Ashwood Care,113381
WARRINGTON BOROUGH COUNCIL,http://statistics.data.gov.uk/id/local-authority/00EU,FWB,Care Purchase - PD,54440,CP-Domicil.External,440950,01-Aug-14,1900151090,9627,Redline Business Ta Ashwood Care,113381
WARRINGTON BOROUGH COUNCIL,http://statistics.data.gov.uk/id/local-authority/00EU,FWB,Care Purchase - PD,54440,CP-Domicil.External,440950,01-Aug-14,1900151090,1228,Redline Business Ta Ashwood Care,113381
WARRINGTON BOROUGH COUNCIL,http://statistics.data.gov.uk/id/local-authority/00EU,FWB,Care Purchase - Learning Disability,54450,CP-Nursing Care-External,441200,01-Aug-14,1900151091,46573,WCL - Warrington Community Living,105230
WARRINGTON BOROUGH COUNCIL,http://statistics.data.gov.uk/id/local-authority/00EU,FWB,Care Purchase Budget,54490,CP Free Nursing Care External,443500,01-Aug-14,1900151091,3162,WCL - Warrington Community Living,105230
WARRINGTON BOROUGH COUNCIL,http://statistics.data.gov.uk/id/local-authority/00EU,FWB,Care Purchase Budget,54490,Voids,515150,01-Aug-14,1900151091,6224,WCL - Warrington Community Living,105230
WARRINGTON BOROUGH COUNCIL,http://statistics.data.gov.uk/id/local-authority/00EU,FWB,DSG Independent School Fees,32011,Independent School Fees,490200,01-Aug-14,1900151109,1623,Cransley School,107861
WARRINGTON BOROUGH COUNCIL,http://statistics.data.gov.uk/id/local-authority/00EU,EG0,Traffic and Safety,44350,Consult.& Prof. Serv,440000,01-Aug-14,1900151092,1800,Alpha Parking Ltd,102041
WARRINGTON BOROUGH COUNCIL,http://statistics.data.gov.uk/id/local-authority/00EU,RSC,Coroners Service,11100,Post Mortem Fees-Rep,440250,01-Aug-14,1900151126,1080,Dr D S Shareef,105121
WARRINGTON BOROUGH COUNCIL,http://statistics.data.gov.uk/id/local-authority/00EU,FWB,DSG Independent School Fees,32011,Independent School Fees,490200,01-Aug-14,1900151105,601,Autism Initiatives,104503
WARRINGTON BOROUGH COUNCIL,http://statistics.data.gov.uk/id/local-authority/00EU,FWB,Agency Placements,30904,Fostering Accommodation,441050,01-Aug-14,1900151099,1306,Fostering Solutions (North West),101226
WARRINGTON BOROUGH COUNCIL,http://statistics.data.gov.uk/id/local-authority/00EU,FWB,Agency Placements,30904,Fostering Accommodation,441050,01-Aug-14,1900151098,1306,Fostering Solutions (North West),101226
WARRINGTON BOROUGH COUNCIL,http://statistics.data.gov.uk/id/local-authority/00EU,FWB,Agency Placements,30904,Fostering Accommodation,441050,01-Aug-14,1900151097,2060,Fostering Solutions (North West),101226
WARRINGTON BOROUGH COUNCIL,http://statistics.data.gov.uk/id/local-authority/00EU,FWB,DSG Independent School Fees,32011,Independent School Fees,490200,01-Aug-14,1900151140,1886,Nugent Care,101082
WARRINGTON BOROUGH COUNCIL,http://statistics.data.gov.uk/id/local-authority/00EU,FWB,DSG Independent School Fees,32011,Independent School Fees,490200,01-Aug-14,1900151141,7273,Nugent Care,101082
WARRINGTON BOROUGH COUNCIL,http://statistics.data.gov.uk/id/local-authority/00EU,FWB,DSG Independent School Fees,32011,Independent School Fees,490200,01-Aug-14,1900151139,4849,Nugent Care,111375
WARRINGTON BOROUGH COUNCIL,http://statistics.data.gov.uk/id/local-authority/00EU,FWB,DSG Independent School Fees,32011,Independent School Fees,490200,01-Aug-14,1900151142,4849,Nugent Care,101082
WARRINGTON BOROUGH COUNCIL,http://statistics.data.gov.uk/id/local-authority/00EU,EG0,Estates & Valuation,43520,Agency Supply - GF,180000,01-Aug-14,1900151103,613,Anderselite,100563
WARRINGTON BOROUGH COUNCIL,http://statistics.data.gov.uk/id/local-authority/00EU,HOL,Insurance Fund,91100,Insurance Claims,443400,01-Aug-14,1900151107,753,Autoglass Ltd,100326
WARRINGTON BOROUGH COUNCIL,http://statistics.data.gov.uk/id/local-authority/00EU,HOL,Insurance Fund,91100,Insurance Premium,443350,01-Aug-14,1900151146,54892,Aon Ltd,102117
WARRINGTON BOROUGH COUNCIL,http://statistics.data.gov.uk/id/local-authority/00EU,HOL,Insurance Fund,91100,Insurance Premium,443350,01-Aug-14,1900151147,8480,Aon Ltd,102117
WARRINGTON BOROUGH COUNCIL,http://statistics.data.gov.uk/id/local-authority/00EU,FWB,DSG Inter Authority Recoupment,32009,Recoupment Charges,490700,01-Aug-14,1900151138,5444,Thomasson Memorial School,112297
WARRINGTON BOROUGH COUNCIL,http://statistics.data.gov.uk/id/local-authority/00EU,RSC,Coroners Service,11100,Post Mortem Fees-Rep,440250,01-Aug-14,1900151121,596,Dr C P Johnson,104840
WARRINGTON BOROUGH COUNCIL,http://statistics.data.gov.uk/id/local-authority/00EU,EG0,Development Control,43430,Fees (Including Agents Fees),441450,01-Aug-14,1900151128,25000,WBC One-Time Vendor,900001
WARRINGTON BOROUGH COUNCIL,http://statistics.data.gov.uk/id/local-authority/00EU,EG0,Other Commercial Prop.,43560,Non BMP General Repairs,200050,01-Aug-14,1900151124,2264,British Gas,103508
WARRINGTON BOROUGH COUNCIL,http://statistics.data.gov.uk/id/local-authority/00EU,HOL,Insurance Fund,91100,Insurance Premium,443350,01-Aug-14,1900151129,2187,Zurich Insurance Company,105263
WARRINGTON BOROUGH COUNCIL,http://statistics.data.gov.uk/id/local-authority/00EU,RSC,Coroners Service,11100,Post Mortem Fees-Rep,440250,01-Aug-14,1900151125,596,Dr C P Johnson,104840
WARRINGTON BOROUGH COUNCIL,http://statistics.data.gov.uk/id/local-authority/00EU,RSC,Coroners Service,11100,Post Mortem Fees-Rep,440250,01-Aug-14,1900151119,596,Dr C P Johnson,104840
WARRINGTON BOROUGH COUNCIL,http://statistics.data.gov.uk/id/local-authority/00EU,RSC,Coroners Service,11100,Post Mortem Fees-Rep,440250,01-Aug-14,1900151123,596,Dr C P Johnson,104840
WARRINGTON BOROUGH COUNCIL,http://statistics.data.gov.uk/id/local-authority/00EU,RSC,Coroners Service,11100,Post Mortem Fees-Rep,440250,01-Aug-14,1900151118,596,Dr C P Johnson,104840
WARRINGTON BOROUGH COUNCIL,http://statistics.data.gov.uk/id/local-authority/00EU,RSC,Coroners Service,11100,Post Mortem Fees-Rep,440250,01-Aug-14,1900151117,596,Dr C P Johnson,104840
WARRINGTON BOROUGH COUNCIL,http://statistics.data.gov.uk/id/local-authority/00EU,FWB,CiC Team 2,31101,Emergency Accommodation Allowance,550500,01-Aug-14,1900151114,906,Redacted Personal Data,460820
WARRINGTON BOROUGH COUNCIL,http://statistics.data.gov.uk/id/local-authority/00EU,RSC,Coroners Service,11100,Post Mortem Fees-Rep,440250,01-Aug-14,1900151120,596,Dr C P Johnson,104840
WARRINGTON BOROUGH COUNCIL,http://statistics.data.gov.uk/id/local-authority/00EU,FWB,Child Disability,32212,Direct Payments,552000,01-Aug-14,1900151111,790,Redacted Personal Data,103290
WARRINGTON BOROUGH COUNCIL,http://statistics.data.gov.uk/id/local-authority/00EU,RSC,Coroners Service,11100,Post Mortem Fees-Rep,440250,01-Aug-14,1900151122,596,Dr C P Johnson,104840
WARRINGTON BOROUGH COUNCIL,http://statistics.data.gov.uk/id/local-authority/00EU,EG0,Urban Traffic Management Control,44370,Signal Management,531600,01-Aug-14,1900151131,14523,British Telecommunications Plc,104543
WARRINGTON BOROUGH COUNCIL,http://statistics.data.gov.uk/id/local-authority/00EU,RSC,Coroners Service,11100,Removal Bodies & Exc,440350,04-Aug-14,1900151222,676,Jeremy Unsworth Funeral Directors,100619
WARRINGTON BOROUGH COUNCIL,http://statistics.data.gov.uk/id/local-authority/00EU,FWB,Care Purchase - Learning Disability,54450,CP-Day Care-External,441100,04-Aug-14,1900151206,23077,Walton Lea Project,102953
WARRINGTON BOROUGH COUNCIL,http://statistics.data.gov.uk/id/local-authority/00EU,FWB,Care Purchase AMH,54135,CP-Domicil.External,440950,04-Aug-14,1900151167,4000,East Cheshire Housing Consortium,110170
WARRINGTON BOROUGH COUNCIL,http://statistics.data.gov.uk/id/local-authority/00EU,FWB,Care Purchase -OP & OT East,54430,CP-Domicil.External,440950,04-Aug-14,1900151164,10958,Carewatch North Cheshire,104573
WARRINGTON BOROUGH COUNCIL,http://statistics.data.gov.uk/id/local-authority/00EU,FWB,Care Purchase - OP & OT West,54470,CP-Domicil.External,440950,04-Aug-14,1900151164,692,Carewatch North Cheshire,104573
WARRINGTON BOROUGH COUNCIL,http://statistics.data.gov.uk/id/local-authority/00EU,FWB,Care Purchase - Learning Disability,54450,CP-Domicil.External,440950,04-Aug-14,1900151164,6415,Carewatch North Cheshire,104573
WARRINGTON BOROUGH COUNCIL,http://statistics.data.gov.uk/id/local-authority/00EU,FWB,Care Purchase - PD,54440,CP-Domicil.External,440950,04-Aug-14,1900151164,2086,Carewatch North Cheshire,104573
WARRINGTON BOROUGH COUNCIL,http://statistics.data.gov.uk/id/local-authority/00EU,FWB,Care Purchase - Learning Disability,54450,Supporting People - External,441250,04-Aug-14,1900151164,544,Carewatch North Cheshire,104573
WARRINGTON BOROUGH COUNCIL,http://statistics.data.gov.uk/id/local-authority/00EU,FWB,DSG Independent School Fees,32011,Independent School Fees,490200,04-Aug-14,1900151197,7273,Nugent Care,101082
WARRINGTON BOROUGH COUNCIL,http://statistics.data.gov.uk/id/local-authority/00EU,FWB,DSG Independent School Fees,32011,Independent School Fees,490200,04-Aug-14,1900151191,4849,Nugent Care,101082
WARRINGTON BOROUGH COUNCIL,http://statistics.data.gov.uk/id/local-authority/00EU,FWB,Care Purchase - OP & OT South,54480,CP-Nursing Care-External,441200,04-Aug-14,1900151173,1965,Meridian Healthcare Ltd,101845
WARRINGTON BOROUGH COUNCIL,http://statistics.data.gov.uk/id/local-authority/00EU,FWB,Care Purchase - OP & OT West,54470,CP-LongStayExternal,441150,04-Aug-14,1900151175,1848,Meridian Healthcare Ltd,101845
WARRINGTON BOROUGH COUNCIL,http://statistics.data.gov.uk/id/local-authority/00EU,FWB,Care Purchase - Learning Disability,54450,CP-LongStayExternal,441150,04-Aug-14,1900151180,10471,Pendleton Care Limited,101213
WARRINGTON BOROUGH COUNCIL,http://statistics.data.gov.uk/id/local-authority/00EU,FWB,Care Purchase - OP & OT South,54480,CP-Nursing Care-External,441200,04-Aug-14,1900151157,4032,Barchester Healthcare Cheshire Gran,111378
WARRINGTON BOROUGH COUNCIL,http://statistics.data.gov.uk/id/local-authority/00EU,HOL,Insurance Fund,91100,Insurance Premium,443350,04-Aug-14,1900151202,54892,Aon Ltd,102117
WARRINGTON BOROUGH COUNCIL,http://statistics.data.gov.uk/id/local-authority/00EU,FWB,Care Purchase - Learning Disability,54450,CP-Domicil.External,440950,04-Aug-14,1900151168,2453,Icare Service Limited,110435
WARRINGTON BOROUGH COUNCIL,http://statistics.data.gov.uk/id/local-authority/00EU,FWB,Care Purchase - Learning Disability,54450,CP-Day Care-External,441100,04-Aug-14,1900151168,4010,Icare Service Limited,110435
WARRINGTON BOROUGH COUNCIL,http://statistics.data.gov.uk/id/local-authority/00EU,FWB,Care Purchase - Learning Disability,54450,CP-Domicil.External,440950,04-Aug-14,1900151170,5476,Icare Service Limited,110435
WARRINGTON BOROUGH COUNCIL,http://statistics.data.gov.uk/id/local-authority/00EU,FWB,Legal Fees - Safeguarding,30100,Legal Costs Incurred,440200,04-Aug-14,1900151229,2055,HMCTS,440115
WARRINGTON BOROUGH COUNCIL,http://statistics.data.gov.uk/id/local-authority/00EU,FWB,Legal Fees - Safeguarding,30100,Legal Costs Incurred,440200,04-Aug-14,1900151227,2055,HMCTS,440115
WARRINGTON BOROUGH COUNCIL,http://statistics.data.gov.uk/id/local-authority/00EU,ENO,Housing Projects,82008,Disabled Persons Grant 1996,554000,04-Aug-14,1900151230,3355,Independent Adaptations,110198
WARRINGTON BOROUGH COUNCIL,http://statistics.data.gov.uk/id/local-authority/00EU,ENO,Housing Projects,82008,Disabled Persons Grant 1996,554000,04-Aug-14,1900151234,5761,Domestic Services And Installations,105462
WARRINGTON BOROUGH COUNCIL,http://statistics.data.gov.uk/id/local-authority/00EU,FWB,Statutory Homeless Properties,43652,Annual Maintenance,442100,04-Aug-14,1900151174,2235,J Barton Building Plumbing & Electr,111201
WARRINGTON BOROUGH COUNCIL,http://statistics.data.gov.uk/id/local-authority/00EU,FWB,Care Purchase - OP & OT West,54470,CP-Nursing Care-External,441200,04-Aug-14,1900151186,2628,The Turner Home,102163
WARRINGTON BOROUGH COUNCIL,http://statistics.data.gov.uk/id/local-authority/00EU,FWB,Care Purchase -OP & OT East,54430,CP-Domicil.External,440950,04-Aug-14,1900151177,14003,Nightingales Homecare Services Agen,104972
WARRINGTON BOROUGH COUNCIL,http://statistics.data.gov.uk/id/local-authority/00EU,FWB,Care Purchase - OP & OT South,54480,CP-Domicil.External,440950,04-Aug-14,1900151177,11171,Nightingales Homecare Services Agen,104972
WARRINGTON BOROUGH COUNCIL,http://statistics.data.gov.uk/id/local-authority/00EU,FWB,Care Purchase - OP & OT Central,54420,CP-Domicil.External,440950,04-Aug-14,1900151177,6892,Nightingales Homecare Services Agen,104972
WARRINGTON BOROUGH COUNCIL,http://statistics.data.gov.uk/id/local-authority/00EU,FWB,Care Purchase - OP & OT West,54470,CP-Domicil.External,440950,04-Aug-14,1900151177,6487,Nightingales Homecare Services Agen,104972
WARRINGTON BOROUGH COUNCIL,http://statistics.data.gov.uk/id/local-authority/00EU,FWB,Care Purchase AMH,54135,CP-Domicil.External,440950,04-Aug-14,1900151177,635,Nightingales Homecare Services Agen,104972
WARRINGTON BOROUGH COUNCIL,http://statistics.data.gov.uk/id/local-authority/00EU,FWB,Care Purchase - PD,54440,CP-Domicil.External,440950,04-Aug-14,1900151177,9574,Nightingales Homecare Services Agen,104972
WARRINGTON BOROUGH COUNCIL,http://statistics.data.gov.uk/id/local-authority/00EU,FWB,Care Purchase - PD,54440,Supporting People - External,441250,04-Aug-14,1900151177,524,Nightingales Homecare Services Agen,104972
WARRINGTON BOROUGH COUNCIL,http://statistics.data.gov.uk/id/local-authority/00EU,FWB,Neighbourhood Co-o Central,51309,Payment of Grants,470050,04-Aug-14,1900151238,1500,Harlequins Morris Dance Troup,111646
WARRINGTON BOROUGH COUNCIL,http://statistics.data.gov.uk/id/local-authority/00EU,FWB,Care Purchase - OP & OT West,54470,CP-LongStayExternal,441150,04-Aug-14,1900151189,2544,The Turner Home,102163
WARRINGTON BOROUGH COUNCIL,http://statistics.data.gov.uk/id/local-authority/00EU,FWB,Care Purchase AMH,54135,CP-Domicil.External,440950,04-Aug-14,1900151149,996,Alternative Futures Group,104468
WARRINGTON BOROUGH COUNCIL,http://statistics.data.gov.uk/id/local-authority/00EU,FWB,Care Purchase - PD,54440,CP-LongStayExternal,441150,04-Aug-14,1900151201,7087,Voyage Care,100099
WARRINGTON BOROUGH COUNCIL,http://statistics.data.gov.uk/id/local-authority/00EU,FWB,Care Purchase - PD,54440,CP-LongStayExternal,441150,04-Aug-14,1900151198,7087,Voyage Care,100099
WARRINGTON BOROUGH COUNCIL,http://statistics.data.gov.uk/id/local-authority/00EU,FWB,Care Purchase - OP & OT Central,54420,CP-LongStayExternal,441150,04-Aug-14,1900151203,5800,Voyage Care,100099
WARRINGTON BOROUGH COUNCIL,http://statistics.data.gov.uk/id/local-authority/00EU,FWB,Care Purchase - ABI,54260,CP-LongStayExternal,441150,04-Aug-14,1900151204,5600,Voyage Care,100099
WARRINGTON BOROUGH COUNCIL,http://statistics.data.gov.uk/id/local-authority/00EU,FWB,Care Purchase - ABI,54260,CP-LongStayExternal,441150,04-Aug-14,1900151205,867,Voyage Care,100099
WARRINGTON BOROUGH COUNCIL,http://statistics.data.gov.uk/id/local-authority/00EU,FWB,Care Purchase - ABI,54260,CP-LongStayExternal,441150,04-Aug-14,1900151196,6428,Voyage Care,100099
WARRINGTON BOROUGH COUNCIL,http://statistics.data.gov.uk/id/local-authority/00EU,FWB,Care Purchase - PD,54440,CP-Nursing Care-External,441200,04-Aug-14,1900151199,5680,Voyage Care,100099
WARRINGTON BOROUGH COUNCIL,http://statistics.data.gov.uk/id/local-authority/00EU,FWB,Care Purchase - OP & OT South,54480,CP-LongStayExternal,441150,04-Aug-14,1900151163,1615,Burrswood House Nursing & Residenti,109619
WARRINGTON BOROUGH COUNCIL,http://statistics.data.gov.uk/id/local-authority/00EU,FWB,Care Purchase - OP & OT South,54480,CP-Nursing Care-External,441200,04-Aug-14,1900151162,1825,BUPA -Crawfords Walk,100460
WARRINGTON BOROUGH COUNCIL,http://statistics.data.gov.uk/id/local-authority/00EU,FWB,Legal Fees - Safeguarding,30100,Legal Costs Incurred,440200,04-Aug-14,1900151240,2055,HMCTS,440115
WARRINGTON BOROUGH COUNCIL,http://statistics.data.gov.uk/id/local-authority/00EU,FWB,Care Purchase -OP & OT East,54430,CP-Nursing Care-External,441200,04-Aug-14,1900151188,2580,The Turner Home,102163
WARRINGTON BOROUGH COUNCIL,http://statistics.data.gov.uk/id/local-authority/00EU,FWB,SCM Penketh South Primary School,33149,Furniture & Fittings,400150,04-Aug-14,1900151228,3816,Cressingham Meville & Co Ltd,113478
WARRINGTON BOROUGH COUNCIL,http://statistics.data.gov.uk/id/local-authority/00EU,FWB,Care Purchase - Learning Disability,54450,CP-Day Care-External,441100,04-Aug-14,1900151165,2217,Deafness Support Network,104657
WARRINGTON BOROUGH COUNCIL,http://statistics.data.gov.uk/id/local-authority/00EU,FWB,Neighbourhood Co-o Central,51309,Payment of Grants,470050,04-Aug-14,1900151183,585,Pins and Needles,113318
WARRINGTON BOROUGH COUNCIL,http://statistics.data.gov.uk/id/local-authority/00EU,FWB,Foster Allowances,31106,Fostering Allowance,550050,04-Aug-14,1900151233,600,Redacted Personal Data,460946
WARRINGTON BOROUGH COUNCIL,http://statistics.data.gov.uk/id/local-authority/00EU,FWB,Care Purchase - OP & OT West,54470,CP-Nursing Care-External,441200,04-Aug-14,1900151179,2058,Pendine Park Care Organisation,112763
WARRINGTON BOROUGH COUNCIL,http://statistics.data.gov.uk/id/local-authority/00EU,FWB,Care Purchase AMH,54135,CP-LongStayExternal,441150,04-Aug-14,1900151171,2360,Redacted Personal Data,113352
WARRINGTON BOROUGH COUNCIL,http://statistics.data.gov.uk/id/local-authority/00EU,FWB,Care Purchase - Learning Disability,54450,CP-Domicil.External,440950,04-Aug-14,1900151184,2814,The Ormerod Home Trust Ltd,104998
WARRINGTON BOROUGH COUNCIL,http://statistics.data.gov.uk/id/local-authority/00EU,FWB,Care Purchase - Learning Disability,54450,CP-LongStayExternal,441150,04-Aug-14,1900151190,8418,Voyage Care,100099
WARRINGTON BOROUGH COUNCIL,http://statistics.data.gov.uk/id/local-authority/00EU,FWB,Care Purchase - OP & OT West,54470,CP-Nursing Care-External,441200,04-Aug-14,1900151182,1712,St Nicholas Nursing Home,110287
WARRINGTON BOROUGH COUNCIL,http://statistics.data.gov.uk/id/local-authority/00EU,FWB,DSG Independent School Fees,32011,Independent School Fees,490200,04-Aug-14,1900151219,14117,Quality Education with Care Limited,107393
WARRINGTON BOROUGH COUNCIL,http://statistics.data.gov.uk/id/local-authority/00EU,FWB,Care Purchase - OP & OT West,54470,CP-Domicil.External,440950,05-Aug-14,1900151254,21122,Premier Care Cheshire Ltd,105142
WARRINGTON BOROUGH COUNCIL,http://statistics.data.gov.uk/id/local-authority/00EU,FWB,Care Purchase - OP & OT Central,54420,CP-Domicil.External,440950,05-Aug-14,1900151254,17406,Premier Care Cheshire Ltd,105142
WARRINGTON BOROUGH COUNCIL,http://statistics.data.gov.uk/id/local-authority/00EU,FWB,Care Purchase -OP & OT East,54430,CP-Domicil.External,440950,05-Aug-14,1900151254,16856,Premier Care Cheshire Ltd,105142
WARRINGTON BOROUGH COUNCIL,http://statistics.data.gov.uk/id/local-authority/00EU,FWB,Care Purchase - OP & OT South,54480,CP-Domicil.External,440950,05-Aug-14,1900151254,8777,Premier Care Cheshire Ltd,105142
WARRINGTON BOROUGH COUNCIL,http://statistics.data.gov.uk/id/local-authority/00EU,FWB,Care Purchase AMH,54135,CP-Domicil.External,440950,05-Aug-14,1900151254,2785,Premier Care Cheshire Ltd,105142
WARRINGTON BOROUGH COUNCIL,http://statistics.data.gov.uk/id/local-authority/00EU,FWB,Care Purchase - Learning Disability,54450,CP-Domicil.External,440950,05-Aug-14,1900151254,5621,Premier Care Cheshire Ltd,105142
WARRINGTON BOROUGH COUNCIL,http://statistics.data.gov.uk/id/local-authority/00EU,FWB,Care Purchase - PD,54440,CP-Domicil.External,440950,05-Aug-14,1900151254,9813,Premier Care Cheshire Ltd,105142
WARRINGTON BOROUGH COUNCIL,http://statistics.data.gov.uk/id/local-authority/00EU,HOL,Single Billing Holding Account,91130,Agency Supply - GF,180000,05-Aug-14,1900151252,53292,Hays Specialist Recruitment Ltd,107512
WARRINGTON BOROUGH COUNCIL,http://statistics.data.gov.uk/id/local-authority/00EU,RSC,Winter Pressures,53400,Agency Supply - GF,180000,05-Aug-14,1900151263,882,AMBITION 24 HOURS,112600
WARRINGTON BOROUGH COUNCIL,http://statistics.data.gov.uk/id/local-authority/00EU,RSC,Winter Pressures,53400,Agency Supply - GF,180000,05-Aug-14,1900151270,914,AMBITION 24 HOURS,112600
WARRINGTON BOROUGH COUNCIL,http://statistics.data.gov.uk/id/local-authority/00EU,RSC,Winter Pressures,53400,Agency Supply - GF,180000,05-Aug-14,1900151271,1433,AMBITION 24 HOURS,112600
WARRINGTON BOROUGH COUNCIL,http://statistics.data.gov.uk/id/local-authority/00EU,RSC,Winter Pressures,53400,Agency Supply - GF,180000,05-Aug-14,1900151268,1346,AMBITION 24 HOURS,112600
WARRINGTON BOROUGH COUNCIL,http://statistics.data.gov.uk/id/local-authority/00EU,RSC,Winter Pressures,53400,Agency Supply - GF,180000,05-Aug-14,1900151273,1346,AMBITION 24 HOURS,112600
WARRINGTON BOROUGH COUNCIL,http://statistics.data.gov.uk/id/local-authority/00EU,RSC,Winter Pressures,53400,Joint Arrangements,505200,05-Aug-14,1900151251,66890,Bridgewater Community Healthcare,108932
WARRINGTON BOROUGH COUNCIL,http://statistics.data.gov.uk/id/local-authority/00EU,FWB,Statutory Homeless Properties,43652,Annual Maintenance,442100,06-Aug-14,1900151316,1250,PCM Services,113480
WARRINGTON BOROUGH COUNCIL,http://statistics.data.gov.uk/id/local-authority/00EU,FWB,Care Purchase - IC,54290,CP - Intermediate Care - External,441300,06-Aug-14,1900151280,37602,CareConcepts (Appleton) Ltd,105804
WARRINGTON BOROUGH COUNCIL,http://statistics.data.gov.uk/id/local-authority/00EU,FWB,Advisors,32100,Consult.& Prof. Serv,440000,06-Aug-14,1900151307,1059,LA Learning Limited,113131
WARRINGTON BOROUGH COUNCIL,http://statistics.data.gov.uk/id/local-authority/00EU,FWB,Care Purchase - Learning Disability,54450,CP-Nursing Care-External,441200,06-Aug-14,1900151315,50092,WCL - Warrington Community Living,105230
WARRINGTON BOROUGH COUNCIL,http://statistics.data.gov.uk/id/local-authority/00EU,FWB,Care Purchase Budget,54490,CP Free Nursing Care External,443500,06-Aug-14,1900151315,3169,WCL - Warrington Community Living,105230
WARRINGTON BOROUGH COUNCIL,http://statistics.data.gov.uk/id/local-authority/00EU,FWB,Care Purchase Budget,54490,Voids,515150,06-Aug-14,1900151315,5516,WCL - Warrington Community Living,105230
WARRINGTON BOROUGH COUNCIL,http://statistics.data.gov.uk/id/local-authority/00EU,FWB,Care Purchase - OP & OT West,54470,CP-Domicil.External,440950,06-Aug-14,1900151275,7776,Mayfield Home Care Agency,104928
WARRINGTON BOROUGH COUNCIL,http://statistics.data.gov.uk/id/local-authority/00EU,FWB,Care Purchase - OP & OT South,54480,CP-Domicil.External,440950,06-Aug-14,1900151275,6012,Mayfield Home Care Agency,104928
WARRINGTON BOROUGH COUNCIL,http://statistics.data.gov.uk/id/local-authority/00EU,FWB,Care Purchase -OP & OT East,54430,CP-Domicil.External,440950,06-Aug-14,1900151275,2982,Mayfield Home Care Agency,104928
WARRINGTON BOROUGH COUNCIL,http://statistics.data.gov.uk/id/local-authority/00EU,FWB,Care Purchase - OP & OT Central,54420,CP-Domicil.External,440950,06-Aug-14,1900151275,2920,Mayfield Home Care Agency,104928
WARRINGTON BOROUGH COUNCIL,http://statistics.data.gov.uk/id/local-authority/00EU,FWB,Care Purchase AMH,54135,CP-Domicil.External,440950,06-Aug-14,1900151275,1617,Mayfield Home Care Agency,104928
WARRINGTON BOROUGH COUNCIL,http://statistics.data.gov.uk/id/local-authority/00EU,FWB,Care Purchase - Learning Disability,54450,CP-Domicil.External,440950,06-Aug-14,1900151275,3242,Mayfield Home Care Agency,104928
WARRINGTON BOROUGH COUNCIL,http://statistics.data.gov.uk/id/local-authority/00EU,FWB,Care Purchase - PD,54440,CP-Domicil.External,440950,06-Aug-14,1900151275,4264,Mayfield Home Care Agency,104928
WARRINGTON BOROUGH COUNCIL,http://statistics.data.gov.uk/id/local-authority/00EU,FWB,Care Purchase - PD,54440,Supporting People - External,441250,06-Aug-14,1900151275,715,Mayfield Home Care Agency,104928
WARRINGTON BOROUGH COUNCIL,http://statistics.data.gov.uk/id/local-authority/00EU,FWB,Care Purchase Budget,54490,CP - Cont Care - External,441350,06-Aug-14,1900151275,11386,Mayfield Home Care Agency,104928
WARRINGTON BOROUGH COUNCIL,http://statistics.data.gov.uk/id/local-authority/00EU,FWB,Care Purchase - Learning Disability,54450,CP ExternalOther Exp,440800,06-Aug-14,1900151304,1192,Mind Professionals Ltd,113368
WARRINGTON BOROUGH COUNCIL,http://statistics.data.gov.uk/id/local-authority/00EU,FWB,Care Purchase - Learning Disability,54450,CP ExternalOther Exp,440800,06-Aug-14,1900151311,1080,Mind Professionals Ltd,113368
WARRINGTON BOROUGH COUNCIL,http://statistics.data.gov.uk/id/local-authority/00EU,FWB,Care Purchase - OP & OT West,54470,CP-Domicil.External,440950,06-Aug-14,1900151302,2842,Select Community Support Services,112799
WARRINGTON BOROUGH COUNCIL,http://statistics.data.gov.uk/id/local-authority/00EU,FWB,Care Purchase -OP & OT East,54430,CP-Domicil.External,440950,06-Aug-14,1900151302,2840,Select Community Support Services,112799
WARRINGTON BOROUGH COUNCIL,http://statistics.data.gov.uk/id/local-authority/00EU,FWB,Care Purchase - OP & OT Central,54420,CP-Domicil.External,440950,06-Aug-14,1900151302,711,Select Community Support Services,112799
WARRINGTON BOROUGH COUNCIL,http://statistics.data.gov.uk/id/local-authority/00EU,FWB,Care Purchase - PD,54440,CP-Domicil.External,440950,06-Aug-14,1900151302,3016,Select Community Support Services,112799
WARRINGTON BOROUGH COUNCIL,http://statistics.data.gov.uk/id/local-authority/00EU,FWB,Care Purchase Budget,54490,CP - Cont Care - External,441350,06-Aug-14,1900151302,3016,Select Community Support Services,112799
WARRINGTON BOROUGH COUNCIL,http://statistics.data.gov.uk/id/local-authority/00EU,FWB,Care Purchase Budget,54490,Legal Costs Incurred,440200,06-Aug-14,1900151288,1040,Beachcroft LLP,108402
WARRINGTON BOROUGH COUNCIL,http://statistics.data.gov.uk/id/local-authority/00EU,FWB,Federation of Music Services,32220,ICT Comms - Device Maintenance,450450,06-Aug-14,1900151281,702,Cdn Networks,101189
WARRINGTON BOROUGH COUNCIL,http://statistics.data.gov.uk/id/local-authority/00EU,FWB,CiC Management,30200,Agency Supply - GF,180000,06-Aug-14,1900151285,5748,Hamptons Resourcing,112852
WARRINGTON BOROUGH COUNCIL,http://statistics.data.gov.uk/id/local-authority/00EU,ENO,Housing Projects,82008,Disabled Persons Grant 1996,554000,06-Aug-14,1900151282,5578,Cpec Ltd,109834
WARRINGTON BOROUGH COUNCIL,http://statistics.data.gov.uk/id/local-authority/00EU,FWB,Care Purchase - Learning Disability,54450,CP Adult Placement,443450,06-Aug-14,1900151301,898,Redacted Personal Data,100041
WARRINGTON BOROUGH COUNCIL,http://statistics.data.gov.uk/id/local-authority/00EU,HOL,Single Billing Holding Account,91130,Water & Sewerage Chg,240000,06-Aug-14,1900151292,6262,United Utilities Water Limited,104982
WARRINGTON BOROUGH COUNCIL,http://statistics.data.gov.uk/id/local-authority/00EU,FWB,Legal Fees - Safeguarding,30100,Legal Costs Incurred,440200,06-Aug-14,1900151298,2334,GLP Solicitors,109085
WARRINGTON BOROUGH COUNCIL,http://statistics.data.gov.uk/id/local-authority/00EU,FWB,Care Purchase - OP & OT South,54480,CP-Nursing Care-External,441200,06-Aug-14,1900151308,5857,Bondcare St Andrews,109634
WARRINGTON BOROUGH COUNCIL,http://statistics.data.gov.uk/id/local-authority/00EU,FWB,Care Purchase Budget,54490,CP ExternalOther Exp,440800,06-Aug-14,1900151274,19052,Ashberry Healthcare Ltd,104776
WARRINGTON BOROUGH COUNCIL,http://statistics.data.gov.uk/id/local-authority/00EU,FWB,Care Purchase Budget,54490,CP ExternalOther Exp,440800,06-Aug-14,1900151303,7041,Summerville Nursing Home -Private C,105162
WARRINGTON BOROUGH COUNCIL,http://statistics.data.gov.uk/id/local-authority/00EU,FWB,Care Purchase Budget,54490,CP ExternalOther Exp,440800,06-Aug-14,1900151309,3410,Bondcare St Andrews,109634
WARRINGTON BOROUGH COUNCIL,http://statistics.data.gov.uk/id/local-authority/00EU,FWB,Legal Fees - Safeguarding,30100,Legal Costs Incurred,440200,06-Aug-14,1900151299,2220,GLP Solicitors,109085
WARRINGTON BOROUGH COUNCIL,http://statistics.data.gov.uk/id/local-authority/00EU,FWB,Care Purchase - OP & OT West,54470,CP-Nursing Care-External,441200,06-Aug-14,1900151300,585,Rosedale Care Home,112722
WARRINGTON BOROUGH COUNCIL,http://statistics.data.gov.uk/id/local-authority/00EU,FWB,Care Purchase - Learning Disability,54450,CP-Domicil.External,440950,06-Aug-14,1900151276,5151,Macintyre Care,104907
WARRINGTON BOROUGH COUNCIL,http://statistics.data.gov.uk/id/local-authority/00EU,FWB,Care Purchase Budget,54490,CP Free Nursing Care External,443500,06-Aug-14,1900151305,4436,Summerville Nursing Home -Private C,105162
WARRINGTON BOROUGH COUNCIL,http://statistics.data.gov.uk/id/local-authority/00EU,FWB,Care Purchase - Learning Disability,54450,CP-Nursing Care-External,441200,06-Aug-14,1900151284,4200,Health & Social Care Partnerships,107996
WARRINGTON BOROUGH COUNCIL,http://statistics.data.gov.uk/id/local-authority/00EU,FWB,Dallam CH,51237,Security Systems,250000,07-Aug-14,1900151344,1239,Chubb Fire and Security Ltd,105335
WARRINGTON BOROUGH COUNCIL,http://statistics.data.gov.uk/id/local-authority/00EU,COR,Car Leasing Scheme - Salary Sacrifice,52126,Car Leasing Charges,350000,07-Aug-14,1900151331,3116,NHS Foundation Trust,110359
WARRINGTON BOROUGH COUNCIL,http://statistics.data.gov.uk/id/local-authority/00EU,COR,Car Leasing Scheme - Salary Sacrifice,52126,Car Leasing Charges,350000,07-Aug-14,1900151331,739,NHS Foundation Trust,110359
WARRINGTON BOROUGH COUNCIL,http://statistics.data.gov.uk/id/local-authority/00EU,COR,Car Leasing Scheme - Salary Sacrifice,52126,Car Leasing Charges,350000,07-Aug-14,1900151330,2790,NHS Foundation Trust,110359
WARRINGTON BOROUGH COUNCIL,http://statistics.data.gov.uk/id/local-authority/00EU,COR,Car Leasing Scheme - Salary Sacrifice,52126,Car Leasing Charges,350000,07-Aug-14,1900151330,670,NHS Foundation Trust,110359
WARRINGTON BOROUGH COUNCIL,http://statistics.data.gov.uk/id/local-authority/00EU,COR,Car Leasing Scheme - Salary Sacrifice,52126,Car Leasing Charges,350000,07-Aug-14,1900151327,3381,NHS Foundation Trust,110359
WARRINGTON BOROUGH COUNCIL,http://statistics.data.gov.uk/id/local-authority/00EU,COR,Car Leasing Scheme - Salary Sacrifice,52126,Car Leasing Charges,350000,07-Aug-14,1900151327,670,NHS Foundation Trust,110359
WARRINGTON BOROUGH COUNCIL,http://statistics.data.gov.uk/id/local-authority/00EU,COR,Car Leasing Scheme - Salary Sacrifice,52126,Car Leasing Charges,350000,07-Aug-14,1900151329,3385,NHS Foundation Trust,110359
WARRINGTON BOROUGH COUNCIL,http://statistics.data.gov.uk/id/local-authority/00EU,COR,Car Leasing Scheme - Salary Sacrifice,52126,Car Leasing Charges,350000,07-Aug-14,1900151329,670,NHS Foundation Trust,110359
WARRINGTON BOROUGH COUNCIL,http://statistics.data.gov.uk/id/local-authority/00EU,HOL,Insurance Fund,91100,Insurance Premium,443350,07-Aug-14,1900151348,38624,Zurich Insurance Company,105263
WARRINGTON BOROUGH COUNCIL,http://statistics.data.gov.uk/id/local-authority/00EU,ENO,Housing Projects,82008,Disabled Persons Grant 1996,554000,07-Aug-14,1900151347,2799,Total Plumbing Solutions,102587
WARRINGTON BOROUGH COUNCIL,http://statistics.data.gov.uk/id/local-authority/00EU,FWB,Statutory Homeless Properties,43652,Electricity,210000,07-Aug-14,1900151320,856,Eon Energy LTD,105723
WARRINGTON BOROUGH COUNCIL,http://statistics.data.gov.uk/id/local-authority/00EU,HOL,Insurance Fund,91100,Insurance Premium,443350,07-Aug-14,1900151349,716,Zurich Insurance Company,105263
WARRINGTON BOROUGH COUNCIL,http://statistics.data.gov.uk/id/local-authority/00EU,RSC,Housing Benefit,10340,Consult.& Prof. Serv,440000,07-Aug-14,1900151340,650,ACS Ltd,112052
WARRINGTON BOROUGH COUNCIL,http://statistics.data.gov.uk/id/local-authority/00EU,EG0,Development Control,43430,Legal Costs Incurred,440200,07-Aug-14,1900151333,788,Kings Chambers,101921
WARRINGTON BOROUGH COUNCIL,http://statistics.data.gov.uk/id/local-authority/00EU,FWB,Neighbourhood Co-o Central,51309,Payment of Grants,470050,07-Aug-14,1900151339,908,Sunshine Centre Parents Forum,113488
WARRINGTON BOROUGH COUNCIL,http://statistics.data.gov.uk/id/local-authority/00EU,FWB,Care Purchase - Learning Disability,54450,Direct Payments,552000,07-Aug-14,1900151332,2550,Redacted Personal Data,460625
WARRINGTON BOROUGH COUNCIL,http://statistics.data.gov.uk/id/local-authority/00EU,FWB,Carers Co-ordinator,53240,"Campaigns,  Projects and Events",491950,07-Aug-14,1900151338,1785,Livewire,110692
WARRINGTON BOROUGH COUNCIL,http://statistics.data.gov.uk/id/local-authority/00EU,EG0,Building Maintenance,43220,Consult.& Prof. Serv,440000,08-Aug-14,1900151372,605,The Gilbraithe Partnership,100841
WARRINGTON BOROUGH COUNCIL,http://statistics.data.gov.uk/id/local-authority/00EU,RSC,Coroners Service,11100,Post Mortem Fees-Rep,440250,08-Aug-14,1900151365,1102,Dr W E Kenyon,104851
WARRINGTON BOROUGH COUNCIL,http://statistics.data.gov.uk/id/local-authority/00EU,RSC,Coroners Service,11100,Post Mortem Fees-Rep,440250,08-Aug-14,1900151369,1153,Dr J.S Stafford,100426
WARRINGTON BOROUGH COUNCIL,http://statistics.data.gov.uk/id/local-authority/00EU,ENO,Housing Projects,82008,Disabled Persons Grant 1996,554000,08-Aug-14,1900151353,8260,Pollock Lifts,113504
WARRINGTON BOROUGH COUNCIL,http://statistics.data.gov.uk/id/local-authority/00EU,EG0,Contingency,45227,Maintenance of Plant & Machinery,250050,08-Aug-14,1900151359,1168,Manchester Working Limited,105646
WARRINGTON BOROUGH COUNCIL,http://statistics.data.gov.uk/id/local-authority/00EU,HOL,Single Billing Holding Account,91130,Servicing Contracts,200150,08-Aug-14,1900151360,1183,Manchester Working Limited,105646
WARRINGTON BOROUGH COUNCIL,http://statistics.data.gov.uk/id/local-authority/00EU,HOL,Single Billing Holding Account,91130,Non BMP General Repairs,200050,08-Aug-14,1900151357,1972,Manchester Working Limited,105646
WARRINGTON BOROUGH COUNCIL,http://statistics.data.gov.uk/id/local-authority/00EU,HOL,Single Billing Holding Account,91130,Specific Work,200200,08-Aug-14,1900151361,4259,Manchester Working Limited,105646
WARRINGTON BOROUGH COUNCIL,http://statistics.data.gov.uk/id/local-authority/00EU,HOL,Single Billing Holding Account,91130,Specific Work,200200,08-Aug-14,1900151356,8755,Manchester Working Limited,105646
WARRINGTON BOROUGH COUNCIL,http://statistics.data.gov.uk/id/local-authority/00EU,RSC,Coroners Service,11100,Post Mortem Fees-Rep,440250,08-Aug-14,1900151368,596,Dr J E Medcalf,112248
WARRINGTON BOROUGH COUNCIL,http://statistics.data.gov.uk/id/local-authority/00EU,FWB,Care Purchase - OP & OT Central,54420,CP-LongStayExternal,441150,13-Aug-14,1900151578,1640,Ideal Carehomes (Number One) Ltd,108328
WARRINGTON BOROUGH COUNCIL,http://statistics.data.gov.uk/id/local-authority/00EU,FWB,Care Purchase - OP & OT Central,54420,CP-LongStayExternal,441150,13-Aug-14,1900151572,2276,Tabley House Nursing Home,112807
WARRINGTON BOROUGH COUNCIL,http://statistics.data.gov.uk/id/local-authority/00EU,FWB,Home to School Transport,33210,Statemented - Special Unit Pupil Transpo,300750,13-Aug-14,1900151597,900,Redacted Personal Data,101504
WARRINGTON BOROUGH COUNCIL,http://statistics.data.gov.uk/id/local-authority/00EU,FWB,Care Purchase -OP & OT East,54430,CP-Domicil.External,440950,13-Aug-14,1900151600,9431,Safehands Network Ltd,103226
WARRINGTON BOROUGH COUNCIL,http://statistics.data.gov.uk/id/local-authority/00EU,FWB,Care Purchase - OP & OT Central,54420,CP-Domicil.External,440950,13-Aug-14,1900151600,9368,Safehands Network Ltd,103226
WARRINGTON BOROUGH COUNCIL,http://statistics.data.gov.uk/id/local-authority/00EU,FWB,Care Purchase - OP & OT West,54470,CP-Domicil.External,440950,13-Aug-14,1900151600,8793,Safehands Network Ltd,103226
WARRINGTON BOROUGH COUNCIL,http://statistics.data.gov.uk/id/local-authority/00EU,FWB,Care Purchase - OP & OT South,54480,CP-Domicil.External,440950,13-Aug-14,1900151600,6161,Safehands Network Ltd,103226
WARRINGTON BOROUGH COUNCIL,http://statistics.data.gov.uk/id/local-authority/00EU,FWB,Care Purchase - PD,54440,CP-Domicil.External,440950,13-Aug-14,1900151600,2756,Safehands Network Ltd,103226
WARRINGTON BOROUGH COUNCIL,http://statistics.data.gov.uk/id/local-authority/00EU,FWB,Care Purchase - Learning Disability,54450,CP-Domicil.External,440950,13-Aug-14,1900151554,4316,Autism Initiatives,104503
WARRINGTON BOROUGH COUNCIL,http://statistics.data.gov.uk/id/local-authority/00EU,FWB,Care Purchase - Learning Disability,54450,CP-Domicil.External,440950,13-Aug-14,1900151555,6659,Autism Initiatives,104503
WARRINGTON BOROUGH COUNCIL,http://statistics.data.gov.uk/id/local-authority/00EU,FWB,Care Purchase - Learning Disability,54450,CP-Domicil.External,440950,13-Aug-14,1900151558,6926,Autism Initiatives,104503
WARRINGTON BOROUGH COUNCIL,http://statistics.data.gov.uk/id/local-authority/00EU,FWB,Care Purchase - Learning Disability,54450,CP-Domicil.External,440950,13-Aug-14,1900151557,5685,Autism Initiatives,104503
WARRINGTON BOROUGH COUNCIL,http://statistics.data.gov.uk/id/local-authority/00EU,FWB,Care Purchase - Learning Disability,54450,CP-Domicil.External,440950,13-Aug-14,1900151559,537,Autism Initiatives,104503
WARRINGTON BOROUGH COUNCIL,http://statistics.data.gov.uk/id/local-authority/00EU,FWB,Care Purchase - OP & OT West,54470,CP-LongStayExternal,441150,13-Aug-14,1900151594,1904,Orchard Care Homes,102524
WARRINGTON BOROUGH COUNCIL,http://statistics.data.gov.uk/id/local-authority/00EU,FWB,Care Purchase - OP & OT South,54480,CP-LongStayExternal,441150,13-Aug-14,1900151592,1764,Orchard Care Homes,102524
WARRINGTON BOROUGH COUNCIL,http://statistics.data.gov.uk/id/local-authority/00EU,FWB,Care Purchase -OP & OT East,54430,CP-LongStayExternal,441150,13-Aug-14,1900151593,1700,Orchard Care Homes,102524
WARRINGTON BOROUGH COUNCIL,http://statistics.data.gov.uk/id/local-authority/00EU,FWB,Care Purchase - ABI,54260,CP-Domicil.External,440950,13-Aug-14,1900151571,874,Creative Support Ltd,100902
WARRINGTON BOROUGH COUNCIL,http://statistics.data.gov.uk/id/local-authority/00EU,FWB,Care Purchase - Learning Disability,54450,CP-Domicil.External,440950,13-Aug-14,1900151571,549,Creative Support Ltd,100902
WARRINGTON BOROUGH COUNCIL,http://statistics.data.gov.uk/id/local-authority/00EU,FWB,Care Purchase - Learning Disability,54450,Supporting People - External,441250,13-Aug-14,1900151571,6488,Creative Support Ltd,100902
WARRINGTON BOROUGH COUNCIL,http://statistics.data.gov.uk/id/local-authority/00EU,FWB,Care Purchase - Learning Disability,54450,CP-Domicil.External,440950,13-Aug-14,1900151566,5289,Creative Support Ltd,100902
WARRINGTON BOROUGH COUNCIL,http://statistics.data.gov.uk/id/local-authority/00EU,FWB,Care Purchase - Learning Disability,54450,Supporting People - External,441250,13-Aug-14,1900151566,6382,Creative Support Ltd,100902
WARRINGTON BOROUGH COUNCIL,http://statistics.data.gov.uk/id/local-authority/00EU,FWB,Care Purchase - PD,54440,CP-Domicil.External,440950,13-Aug-14,1900151570,18186,Creative Support Ltd,100902
WARRINGTON BOROUGH COUNCIL,http://statistics.data.gov.uk/id/local-authority/00EU,FWB,Care Purchase Budget,54490,Voids,515150,13-Aug-14,1900151570,3031,Creative Support Ltd,100902
WARRINGTON BOROUGH COUNCIL,http://statistics.data.gov.uk/id/local-authority/00EU,FWB,Care Purchase - PD,54440,Supporting People - External,441250,13-Aug-14,1900151569,5612,Creative Support Ltd,100902
WARRINGTON BOROUGH COUNCIL,http://statistics.data.gov.uk/id/local-authority/00EU,FWB,Care Purchase Budget,54490,Voids,515150,13-Aug-14,1900151569,1419,Creative Support Ltd,100902
WARRINGTON BOROUGH COUNCIL,http://statistics.data.gov.uk/id/local-authority/00EU,FWB,Care Purchase - ABI,54260,CP-Domicil.External,440950,13-Aug-14,1900151567,1771,Creative Support Ltd,100902
WARRINGTON BOROUGH COUNCIL,http://statistics.data.gov.uk/id/local-authority/00EU,FWB,Care Purchase - PD,54440,CP-Domicil.External,440950,13-Aug-14,1900151568,2713,Creative Support Ltd,100902
WARRINGTON BOROUGH COUNCIL,http://statistics.data.gov.uk/id/local-authority/00EU,HOL,Single Billing Holding Account,91130,Agency Supply - GF,180000,13-Aug-14,1900151632,38799,Hays Specialist Recruitment Ltd,107512
WARRINGTON BOROUGH COUNCIL,http://statistics.data.gov.uk/id/local-authority/00EU,FWB,Care Purchase - OP & OT South,54480,CP-LongStayExternal,441150,13-Aug-14,1900151543,1540,Alexandra Care Home,100708
WARRINGTON BOROUGH COUNCIL,http://statistics.data.gov.uk/id/local-authority/00EU,FWB,Care Purchase - Learning Disability,54450,CP-LongStayExternal,441150,13-Aug-14,1900151596,3508,Potens Ltd TA Heath Lodge,102481
WARRINGTON BOROUGH COUNCIL,http://statistics.data.gov.uk/id/local-authority/00EU,FWB,Contracts - Dir Public Health,55900,Public Health Contract Payments,540000,13-Aug-14,1900151636,52948,Wirral Borough Council,440052
WARRINGTON BOROUGH COUNCIL,http://statistics.data.gov.uk/id/local-authority/00EU,FWB,Contracts - Dir Public Health,55900,Public Health Contract Payments,540000,13-Aug-14,1900151636,16881,Wirral Borough Council,440052
WARRINGTON BOROUGH COUNCIL,http://statistics.data.gov.uk/id/local-authority/00EU,FWB,Contracts - Dir Public Health,55900,Public Health Contract Payments,540000,13-Aug-14,1900151636,12600,Wirral Borough Council,440052
WARRINGTON BOROUGH COUNCIL,http://statistics.data.gov.uk/id/local-authority/00EU,FWB,Contracts - Dir Public Health,55900,Public Health Contract Payments,540000,13-Aug-14,1900151636,9072,Wirral Borough Council,440052
WARRINGTON BOROUGH COUNCIL,http://statistics.data.gov.uk/id/local-authority/00EU,FWB,Contracts - Dir Public Health,55900,Public Health Contract Payments,540000,13-Aug-14,1900151636,8989,Wirral Borough Council,440052
WARRINGTON BOROUGH COUNCIL,http://statistics.data.gov.uk/id/local-authority/00EU,FWB,Contracts - Dir Public Health,55900,Public Health Contract Payments,540000,13-Aug-14,1900151636,7575,Wirral Borough Council,440052
WARRINGTON BOROUGH COUNCIL,http://statistics.data.gov.uk/id/local-authority/00EU,FWB,Contracts - Dir Public Health,55900,Public Health Contract Payments,540000,13-Aug-14,1900151636,7520,Wirral Borough Council,440052
WARRINGTON BOROUGH COUNCIL,http://statistics.data.gov.uk/id/local-authority/00EU,FWB,Contracts - Dir Public Health,55900,Public Health Contract Payments,540000,13-Aug-14,1900151636,6048,Wirral Borough Council,440052
WARRINGTON BOROUGH COUNCIL,http://statistics.data.gov.uk/id/local-authority/00EU,FWB,Contracts - Dir Public Health,55900,Public Health Contract Payments,540000,13-Aug-14,1900151636,4704,Wirral Borough Council,440052
WARRINGTON BOROUGH COUNCIL,http://statistics.data.gov.uk/id/local-authority/00EU,FWB,Contracts - Dir Public Health,55900,Public Health Contract Payments,540000,13-Aug-14,1900151636,3478,Wirral Borough Council,440052
WARRINGTON BOROUGH COUNCIL,http://statistics.data.gov.uk/id/local-authority/00EU,FWB,Care Purchase Budget,54490,CP - Cont Care - External,441350,13-Aug-14,1900151612,546,Icare Service Limited,110435
WARRINGTON BOROUGH COUNCIL,http://statistics.data.gov.uk/id/local-authority/00EU,FWB,Care Purchase - Learning Disability,54450,CP-Domicil.External,440950,13-Aug-14,1900151609,3480,Icare Service Limited,110435
WARRINGTON BOROUGH COUNCIL,http://statistics.data.gov.uk/id/local-authority/00EU,FWB,Care Purchase - Learning Disability,54450,CP-Day Care-External,441100,13-Aug-14,1900151609,5133,Icare Service Limited,110435
WARRINGTON BOROUGH COUNCIL,http://statistics.data.gov.uk/id/local-authority/00EU,FWB,Care Purchase - Learning Disability,54450,CP-Day Care-External,441100,13-Aug-14,1900151610,1027,Icare Service Limited,110435
WARRINGTON BOROUGH COUNCIL,http://statistics.data.gov.uk/id/local-authority/00EU,ENO,Housing Projects,82008,Disabled Persons Grant 1996,554000,13-Aug-14,1900151626,8000,Domestic Services And Installations,105462
WARRINGTON BOROUGH COUNCIL,http://statistics.data.gov.uk/id/local-authority/00EU,FWB,Sankey,31313,Materials,400500,13-Aug-14,1900151634,680,WBC One-Time Vendor,900001
WARRINGTON BOROUGH COUNCIL,http://statistics.data.gov.uk/id/local-authority/00EU,FWB,Care Purchase - Learning Disability,54450,CP-Domicil.External,440950,13-Aug-14,1900151548,3669,Alternative Futures Group,104468
WARRINGTON BOROUGH COUNCIL,http://statistics.data.gov.uk/id/local-authority/00EU,FWB,Care Purchase - Learning Disability,54450,CP-Domicil.External,440950,13-Aug-14,1900151547,791,Alternative Futures Group,104468
WARRINGTON BOROUGH COUNCIL,http://statistics.data.gov.uk/id/local-authority/00EU,FWB,Care Purchase - Learning Disability,54450,CP-LongStayExternal,441150,13-Aug-14,1900151582,12744,Inclusive Lifestyles Ltd,101840
WARRINGTON BOROUGH COUNCIL,http://statistics.data.gov.uk/id/local-authority/00EU,FWB,Care Purchase - Learning Disability,54450,CP-LongStayExternal,441150,13-Aug-14,1900151583,12532,Inclusive Lifestyles Ltd,101840
WARRINGTON BOROUGH COUNCIL,http://statistics.data.gov.uk/id/local-authority/00EU,FWB,Care Purchase - Learning Disability,54450,CP-LongStayExternal,441150,13-Aug-14,1900151584,1482,Inclusive Lifestyles Ltd,101840
WARRINGTON BOROUGH COUNCIL,http://statistics.data.gov.uk/id/local-authority/00EU,FWB,Care Purchase - Learning Disability,54450,CP-LongStayExternal,441150,13-Aug-14,1900151586,1258,Inclusive Lifestyles Ltd,101840
WARRINGTON BOROUGH COUNCIL,http://statistics.data.gov.uk/id/local-authority/00EU,FWB,Care Purchase - Learning Disability,54450,CP-LongStayExternal,441150,13-Aug-14,1900151587,12744,Inclusive Lifestyles Ltd,101840
WARRINGTON BOROUGH COUNCIL,http://statistics.data.gov.uk/id/local-authority/00EU,FWB,Care Purchase - Learning Disability,54450,CP-LongStayExternal,441150,13-Aug-14,1900151579,12532,Inclusive Lifestyles Ltd,101840
WARRINGTON BOROUGH COUNCIL,http://statistics.data.gov.uk/id/local-authority/00EU,FWB,Care Purchase - Learning Disability,54450,CP-LongStayExternal,441150,13-Aug-14,1900151580,1482,Inclusive Lifestyles Ltd,101840
WARRINGTON BOROUGH COUNCIL,http://statistics.data.gov.uk/id/local-authority/00EU,FWB,Care Purchase - Learning Disability,54450,CP-LongStayExternal,441150,13-Aug-14,1900151581,1258,Inclusive Lifestyles Ltd,101840
WARRINGTON BOROUGH COUNCIL,http://statistics.data.gov.uk/id/local-authority/00EU,FWB,Advisors,32100,Subscriptions,470000,13-Aug-14,1900151633,702,University Of Bristol Graduate Scho,100423
WARRINGTON BOROUGH COUNCIL,http://statistics.data.gov.uk/id/local-authority/00EU,FWB,Care Purchase - OP & OT West,54470,CP-Domicil.External,440950,13-Aug-14,1900151576,11420,Housing & Care 21,100060
WARRINGTON BOROUGH COUNCIL,http://statistics.data.gov.uk/id/local-authority/00EU,FWB,Care Purchase -OP & OT East,54430,CP-Domicil.External,440950,13-Aug-14,1900151576,8381,Housing & Care 21,100060
WARRINGTON BOROUGH COUNCIL,http://statistics.data.gov.uk/id/local-authority/00EU,FWB,Care Purchase - OP & OT Central,54420,CP-Domicil.External,440950,13-Aug-14,1900151576,6393,Housing & Care 21,100060
WARRINGTON BOROUGH COUNCIL,http://statistics.data.gov.uk/id/local-authority/00EU,FWB,Care Purchase - OP & OT South,54480,CP-Domicil.External,440950,13-Aug-14,1900151576,4500,Housing & Care 21,100060
WARRINGTON BOROUGH COUNCIL,http://statistics.data.gov.uk/id/local-authority/00EU,FWB,Care Purchase AMH,54135,CP-Domicil.External,440950,13-Aug-14,1900151576,1169,Housing & Care 21,100060
WARRINGTON BOROUGH COUNCIL,http://statistics.data.gov.uk/id/local-authority/00EU,FWB,Care Purchase - PD,54440,CP-Domicil.External,440950,13-Aug-14,1900151576,7413,Housing & Care 21,100060
WARRINGTON BOROUGH COUNCIL,http://statistics.data.gov.uk/id/local-authority/00EU,FWB,Care Purchase - PD,54440,Supporting People - External,441250,13-Aug-14,1900151576,691,Housing & Care 21,100060
WARRINGTON BOROUGH COUNCIL,http://statistics.data.gov.uk/id/local-authority/00EU,FWB,Foster Allowances,31106,Fostering Allowance,550050,13-Aug-14,1900151615,520,Redacted Personal Data,460796
WARRINGTON BOROUGH COUNCIL,http://statistics.data.gov.uk/id/local-authority/00EU,FWB,Care Purchase - OP & OT Central,54420,CP-LongStayExternal,441150,13-Aug-14,1900151542,916,Abbey Dingle Care Home,112764
WARRINGTON BOROUGH COUNCIL,http://statistics.data.gov.uk/id/local-authority/00EU,FWB,Care Purchase Budget,54490,CP ExternalOther Exp,440800,13-Aug-14,1900151553,1260,Arlington House,104491
WARRINGTON BOROUGH COUNCIL,http://statistics.data.gov.uk/id/local-authority/00EU,FWB,Care Purchase Budget,54490,CP ExternalOther Exp,440800,13-Aug-14,1900151564,7050,Cls Care Services Ltd,104615
WARRINGTON BOROUGH COUNCIL,http://statistics.data.gov.uk/id/local-authority/00EU,FWB,Care Purchase Budget,54490,CP ExternalOther Exp,440800,13-Aug-14,1900151575,3590,Harbour Healthcare 1 Ltd,110527
WARRINGTON BOROUGH COUNCIL,http://statistics.data.gov.uk/id/local-authority/00EU,FWB,Care Purchase Budget,54490,CP ExternalOther Exp,440800,13-Aug-14,1900151607,4486,St Marys Care Centre,101503
WARRINGTON BOROUGH COUNCIL,http://statistics.data.gov.uk/id/local-authority/00EU,FWB,Care Purchase Budget,54490,CP ExternalOther Exp,440800,13-Aug-14,1900151614,3251,WCL - Warrington Community Living,105230
WARRINGTON BOROUGH COUNCIL,http://statistics.data.gov.uk/id/local-authority/00EU,FWB,Care Purchase Budget,54490,CP ExternalOther Exp,440800,13-Aug-14,1900151617,4998,Wcl - Heathside Mews,101742
WARRINGTON BOROUGH COUNCIL,http://statistics.data.gov.uk/id/local-authority/00EU,FWB,Care Purchase Budget,54490,CP ExternalOther Exp,440800,13-Aug-14,1900151618,5987,W H Investments Ltd,111422
WARRINGTON BOROUGH COUNCIL,http://statistics.data.gov.uk/id/local-authority/00EU,FWB,Care Purchase - PD,54440,CP-Domicil.External,440950,13-Aug-14,1900151545,4258,Allied Healthcare Group Ltd,100796
WARRINGTON BOROUGH COUNCIL,http://statistics.data.gov.uk/id/local-authority/00EU,FWB,Care Purchase - PD,54440,Supporting People - External,441250,13-Aug-14,1900151545,718,Allied Healthcare Group Ltd,100796
WARRINGTON BOROUGH COUNCIL,http://statistics.data.gov.uk/id/local-authority/00EU,FWB,Care Purchase -OP & OT East,54430,CP-Domicil.External,440950,13-Aug-14,1900151544,2822,Allied Healthcare Group Ltd,100796
WARRINGTON BOROUGH COUNCIL,http://statistics.data.gov.uk/id/local-authority/00EU,FWB,Care Purchase - OP & OT Central,54420,CP-Domicil.External,440950,13-Aug-14,1900151544,2631,Allied Healthcare Group Ltd,100796
WARRINGTON BOROUGH COUNCIL,http://statistics.data.gov.uk/id/local-authority/00EU,FWB,Care Purchase - OP & OT South,54480,CP-Domicil.External,440950,13-Aug-14,1900151544,1042,Allied Healthcare Group Ltd,100796
WARRINGTON BOROUGH COUNCIL,http://statistics.data.gov.uk/id/local-authority/00EU,FWB,Care Purchase - PD,54440,CP-Domicil.External,440950,13-Aug-14,1900151544,1915,Allied Healthcare Group Ltd,100796
WARRINGTON BOROUGH COUNCIL,http://statistics.data.gov.uk/id/local-authority/00EU,FWB,Care Purchase - OP & OT Central,54420,CP-Domicil.External,440950,13-Aug-14,1900151546,5758,Medico Nursing and Homecare,105063
WARRINGTON BOROUGH COUNCIL,http://statistics.data.gov.uk/id/local-authority/00EU,FWB,Care Purchase - OP & OT South,54480,CP-Domicil.External,440950,13-Aug-14,1900151546,3094,Medico Nursing and Homecare,105063
WARRINGTON BOROUGH COUNCIL,http://statistics.data.gov.uk/id/local-authority/00EU,FWB,Care Purchase -OP & OT East,54430,CP-Domicil.External,440950,13-Aug-14,1900151546,966,Medico Nursing and Homecare,105063
WARRINGTON BOROUGH COUNCIL,http://statistics.data.gov.uk/id/local-authority/00EU,FWB,Care Purchase AMH,54135,CP-Domicil.External,440950,13-Aug-14,1900151546,1233,Medico Nursing and Homecare,105063
WARRINGTON BOROUGH COUNCIL,http://statistics.data.gov.uk/id/local-authority/00EU,FWB,Care Purchase - PD,54440,CP-Domicil.External,440950,13-Aug-14,1900151546,2844,Medico Nursing and Homecare,105063
WARRINGTON BOROUGH COUNCIL,http://statistics.data.gov.uk/id/local-authority/00EU,FWB,Care Purchase - OP & OT South,54480,CP-LongStayExternal,441150,13-Aug-14,1900151608,1798,Stonedale Lodge Residential & Nursi,113173
WARRINGTON BOROUGH COUNCIL,http://statistics.data.gov.uk/id/local-authority/00EU,FWB,Care Purchase - Learning Disability,54450,CP-Domicil.External,440950,13-Aug-14,1900151606,600,Sanctuary Carr-Gomm,109157
WARRINGTON BOROUGH COUNCIL,http://statistics.data.gov.uk/id/local-authority/00EU,FWB,Care Purchase - Learning Disability,54450,CP-Domicil.External,440950,13-Aug-14,1900151619,2622,Wirral Autistic Society,105251
WARRINGTON BOROUGH COUNCIL,http://statistics.data.gov.uk/id/local-authority/00EU,FWB,Care Purchase - Learning Disability,54450,CP-Day Care-External,441100,13-Aug-14,1900151619,1180,Wirral Autistic Society,105251
WARRINGTON BOROUGH COUNCIL,http://statistics.data.gov.uk/id/local-authority/00EU,FWB,Care Purchase - OP & OT Central,54420,CP-Nursing Care-External,441200,13-Aug-14,1900151560,1628,BUPA - Bedford Res,104569
WARRINGTON BOROUGH COUNCIL,http://statistics.data.gov.uk/id/local-authority/00EU,FWB,Care Purchase -OP & OT East,54430,CP-Nursing Care-External,441200,13-Aug-14,1900151561,1679,BUPA - Bedford Res,104569
WARRINGTON BOROUGH COUNCIL,http://statistics.data.gov.uk/id/local-authority/00EU,RSC,Coroners Service,11100,Removal Bodies & Exc,440350,14-Aug-14,1900151653,820,Knox & Son Ltd,104857
WARRINGTON BOROUGH COUNCIL,http://statistics.data.gov.uk/id/local-authority/00EU,FWB,Care Purchase AMH,54135,CP-Domicil.External,440950,14-Aug-14,1900151662,3771,Quality Protects Children,104027
WARRINGTON BOROUGH COUNCIL,http://statistics.data.gov.uk/id/local-authority/00EU,COR,Oxygen Finance,60260,Corporate Initiative,491000,14-Aug-14,1700009405,5929,ISG Construction Limited,110824
WARRINGTON BOROUGH COUNCIL,http://statistics.data.gov.uk/id/local-authority/00EU,EG0,Markets,43711,Resaleables,400600,14-Aug-14,1900151644,4221,National Express Ltd,104957
WARRINGTON BOROUGH COUNCIL,http://statistics.data.gov.uk/id/local-authority/00EU,ENP,Environment & Regeneration,82000,Consult.& Prof. Serv,440000,14-Aug-14,1900151642,5896,British Telecommunications Plc,104543
WARRINGTON BOROUGH COUNCIL,http://statistics.data.gov.uk/id/local-authority/00EU,EG0,Other Commercial Prop.,43560,Rent Of Premises,220000,14-Aug-14,1900151665,2038,Morgoed Estates Ltd,110136
WARRINGTON BOROUGH COUNCIL,http://statistics.data.gov.uk/id/local-authority/00EU,FWB,Foster Allowances,31106,Fostering Allowance,550050,14-Aug-14,1900151661,548,Redacted Personal Data,460008
WARRINGTON BOROUGH COUNCIL,http://statistics.data.gov.uk/id/local-authority/00EU,FWB,Advisors,32100,Equipment Purchase & Contract,400000,14-Aug-14,1900151637,13880,Fischer Education Project Ltd,440077
WARRINGTON BOROUGH COUNCIL,http://statistics.data.gov.uk/id/local-authority/00EU,EG0,PSA Reward Monies,22260,"Campaigns,  Projects and Events",491950,15-Aug-14,1900151681,23000,Warrington Disability Partnership,440066
WARRINGTON BOROUGH COUNCIL,http://statistics.data.gov.uk/id/local-authority/00EU,FWB,Legal Fees - Safeguarding,30100,Legal Costs Incurred,440200,15-Aug-14,1900151666,853,AlphaBiolabs,109403
WARRINGTON BOROUGH COUNCIL,http://statistics.data.gov.uk/id/local-authority/00EU,FWB,Inclusion,32207,Consult.& Prof. Serv,440000,15-Aug-14,1900151699,15000,Redacted Personal Data,113460
WARRINGTON BOROUGH COUNCIL,http://statistics.data.gov.uk/id/local-authority/00EU,FWB,Adoption Reform Grant,31117,Agency Supply - GF,180000,15-Aug-14,1900151684,564,Venn Group Limited,113471
WARRINGTON BOROUGH COUNCIL,http://statistics.data.gov.uk/id/local-authority/00EU,FWB,Adoption Reform Grant,31117,Agency Supply - GF,180000,15-Aug-14,1900151685,1362,Venn Group Limited,113471
WARRINGTON BOROUGH COUNCIL,http://statistics.data.gov.uk/id/local-authority/00EU,EG0,New Town House,43119,Trade Refuse Charges,440700,15-Aug-14,1900151675,683,B & M Waste,102293
WARRINGTON BOROUGH COUNCIL,http://statistics.data.gov.uk/id/local-authority/00EU,ENO,Housing Projects,82008,Renewals Assistance,554050,15-Aug-14,1900151677,2403,Warrington Housing Current Acc,101208
WARRINGTON BOROUGH COUNCIL,http://statistics.data.gov.uk/id/local-authority/00EU,RSC,Parish Elections,11580,External Printing,430100,15-Aug-14,1700009428,5764,Print Image Network Limited,105535
WARRINGTON BOROUGH COUNCIL,http://statistics.data.gov.uk/id/local-authority/00EU,RSC,Parish Elections,11580,External Printing,430100,15-Aug-14,1700009427,2945,Print Image Network Limited,105535
WARRINGTON BOROUGH COUNCIL,http://statistics.data.gov.uk/id/local-authority/00EU,RSC,Parish Elections,11580,External Printing,430100,15-Aug-14,1700009430,890,Print Image Network Limited,105535
WARRINGTON BOROUGH COUNCIL,http://statistics.data.gov.uk/id/local-authority/00EU,RSC,Parish Elections,11580,External Printing,430100,15-Aug-14,1700009429,1429,Print Image Network Limited,105535
WARRINGTON BOROUGH COUNCIL,http://statistics.data.gov.uk/id/local-authority/00EU,RSC,Reablement/ WP/ ASC Grant c/f,53700,Consult.& Prof. Serv,440000,15-Aug-14,1900151704,1200,Redacted Personal Data,111505
WARRINGTON BOROUGH COUNCIL,http://statistics.data.gov.uk/id/local-authority/00EU,EG0,Trad. Standards Consumer & Business Eng.,41531,Legal Costs Incurred,440200,15-Aug-14,1900151695,600,Redacted Personal Data,113505
WARRINGTON BOROUGH COUNCIL,http://statistics.data.gov.uk/id/local-authority/00EU,FWB,CiC Team 1,31100,Personal Needs Allowance,550400,15-Aug-14,1900151706,601,Macintyre Cafe,103174
WARRINGTON BOROUGH COUNCIL,http://statistics.data.gov.uk/id/local-authority/00EU,FWB,Foster Allowances,31106,Fostering Allowance,550050,15-Aug-14,1900151719,506,Redacted Personal Data,100120
WARRINGTON BOROUGH COUNCIL,http://statistics.data.gov.uk/id/local-authority/00EU,RSC,Coroners Service,11100,Reimbursement for Deputy Coroner,440400,18-Aug-14,1900151725,3850,Redacted Personal Data,111176
WARRINGTON BOROUGH COUNCIL,http://statistics.data.gov.uk/id/local-authority/00EU,RSC,Coroners Service,11100,Reimbursement for Deputy Coroner,440400,18-Aug-14,1900151727,4341,Redacted Personal Data,111176
WARRINGTON BOROUGH COUNCIL,http://statistics.data.gov.uk/id/local-authority/00EU,FWB,Care Purchase Budget,54490,CP-Day Care-External,441100,18-Aug-14,1900151771,4222,CareConcepts (Appleton) Ltd,105804
WARRINGTON BOROUGH COUNCIL,http://statistics.data.gov.uk/id/local-authority/00EU,FWB,Care Purchase -OP & OT East,54430,CP-Day Care-External,441100,18-Aug-14,1900151771,5391,CareConcepts (Appleton) Ltd,105804
WARRINGTON BOROUGH COUNCIL,http://statistics.data.gov.uk/id/local-authority/00EU,FWB,Care Purchase - OP & OT South,54480,CP-Day Care-External,441100,18-Aug-14,1900151771,3600,CareConcepts (Appleton) Ltd,105804
WARRINGTON BOROUGH COUNCIL,http://statistics.data.gov.uk/id/local-authority/00EU,FWB,Care Purchase - OP & OT Central,54420,CP-Day Care-External,441100,18-Aug-14,1900151771,3077,CareConcepts (Appleton) Ltd,105804
WARRINGTON BOROUGH COUNCIL,http://statistics.data.gov.uk/id/local-authority/00EU,FWB,Care Purchase - OP & OT West,54470,CP-Day Care-External,441100,18-Aug-14,1900151771,2738,CareConcepts (Appleton) Ltd,105804
WARRINGTON BOROUGH COUNCIL,http://statistics.data.gov.uk/id/local-authority/00EU,FWB,Care Purchase Budget,54490,CP - Cont Care - External,441350,18-Aug-14,1900151771,573,CareConcepts (Appleton) Ltd,105804
WARRINGTON BOROUGH COUNCIL,http://statistics.data.gov.uk/id/local-authority/00EU,FWB,Care Purchase AMH,54135,CP-LongStayExternal,441150,18-Aug-14,1900151755,1886,Ley Community Drug Services,107958
WARRINGTON BOROUGH COUNCIL,http://statistics.data.gov.uk/id/local-authority/00EU,FWB,Care Purchase AMH,54135,CP-Domicil.External,440950,18-Aug-14,1900151773,2909,Caring Alternatives limited,110164
WARRINGTON BOROUGH COUNCIL,http://statistics.data.gov.uk/id/local-authority/00EU,FWB,Strategic Director,30000,Advertisings-Jobs,190000,18-Aug-14,1900151838,6866,North West Employers,102754
WARRINGTON BOROUGH COUNCIL,http://statistics.data.gov.uk/id/local-authority/00EU,FWB,Care Purchase - Learning Disability,54450,CP-Domicil.External,440950,18-Aug-14,1900151797,629,Seashell Trust,103082
WARRINGTON BOROUGH COUNCIL,http://statistics.data.gov.uk/id/local-authority/00EU,FWB,Care Purchase Budget,54490,CP - Cont Care - External,441350,18-Aug-14,1900151799,956,Seashell Trust,103082
WARRINGTON BOROUGH COUNCIL,http://statistics.data.gov.uk/id/local-authority/00EU,FWB,Legal Fees - Safeguarding,30100,Legal Costs Incurred,440200,18-Aug-14,1900151839,5050,Chavasse Court Chambers,113203
WARRINGTON BOROUGH COUNCIL,http://statistics.data.gov.uk/id/local-authority/00EU,FWB,Care Purchase AMH,54135,CP-Domicil.External,440950,18-Aug-14,1900151750,1173,Creative Support Ltd,100902
WARRINGTON BOROUGH COUNCIL,http://statistics.data.gov.uk/id/local-authority/00EU,FWB,Care Purchase - Learning Disability,54450,Supporting People - External,441250,18-Aug-14,1900151750,8585,Creative Support Ltd,100902
WARRINGTON BOROUGH COUNCIL,http://statistics.data.gov.uk/id/local-authority/00EU,FWB,Care Purchase - Learning Disability,54450,CP-Domicil.External,440950,18-Aug-14,1900151748,8122,Creative Support Ltd,100902
WARRINGTON BOROUGH COUNCIL,http://statistics.data.gov.uk/id/local-authority/00EU,FWB,Care Purchase - Learning Disability,54450,Supporting People - External,441250,18-Aug-14,1900151748,1451,Creative Support Ltd,100902
WARRINGTON BOROUGH COUNCIL,http://statistics.data.gov.uk/id/local-authority/00EU,FWB,Care Purchase AMH,54135,CP-Domicil.External,440950,18-Aug-14,1900151753,1594,Creative Support Ltd,100902
WARRINGTON BOROUGH COUNCIL,http://statistics.data.gov.uk/id/local-authority/00EU,FWB,Care Purchase - Learning Disability,54450,CP-Domicil.External,440950,18-Aug-14,1900151751,41711,Creative Support Ltd,100902
WARRINGTON BOROUGH COUNCIL,http://statistics.data.gov.uk/id/local-authority/00EU,FWB,Care Purchase - Learning Disability,54450,Supporting People - External,441250,18-Aug-14,1900151751,3534,Creative Support Ltd,100902
WARRINGTON BOROUGH COUNCIL,http://statistics.data.gov.uk/id/local-authority/00EU,FWB,Care Purchase Budget,54490,Voids,515150,18-Aug-14,1900151751,1506,Creative Support Ltd,100902
WARRINGTON BOROUGH COUNCIL,http://statistics.data.gov.uk/id/local-authority/00EU,FWB,Care Purchase AMH,54135,CP-LongStayExternal,441150,18-Aug-14,1900151794,620,Phoenix House,100085
WARRINGTON BOROUGH COUNCIL,http://statistics.data.gov.uk/id/local-authority/00EU,FWB,Care Purchase AMH,54135,CP-LongStayExternal,441150,18-Aug-14,1900151723,2746,Phoenix House,100085
WARRINGTON BOROUGH COUNCIL,http://statistics.data.gov.uk/id/local-authority/00EU,FWB,Care Purchase AMH,54135,CP-LongStayExternal,441150,18-Aug-14,1900151759,1417,Phoenix House,100085
WARRINGTON BOROUGH COUNCIL,http://statistics.data.gov.uk/id/local-authority/00EU,FWB,Care Purchase - PD,54440,CP-LongStayExternal,441150,18-Aug-14,1900151760,974,Phoenix House,100085
WARRINGTON BOROUGH COUNCIL,http://statistics.data.gov.uk/id/local-authority/00EU,FWB,Care Purchase AMH,54135,CP-LongStayExternal,441150,18-Aug-14,1900151758,2746,Phoenix House,100085
WARRINGTON BOROUGH COUNCIL,http://statistics.data.gov.uk/id/local-authority/00EU,FWB,Contracts - OM HPHL Team,55940,Public Health Contract Payments,540000,18-Aug-14,1900151798,2203,St Helens & Knowsley Hosp Nhs Trust,102001
WARRINGTON BOROUGH COUNCIL,http://statistics.data.gov.uk/id/local-authority/00EU,FWB,Contracts - SM Commissioning Team 1,55910,Public Health Contract Payments,540000,18-Aug-14,1900151844,40579,Bridgewater Community Healthcare,108932
WARRINGTON BOROUGH COUNCIL,http://statistics.data.gov.uk/id/local-authority/00EU,FWB,Care Purchase - OP & OT South,54480,CP-LongStayExternal,441150,18-Aug-14,1900151754,2150,Lancashire County Council,410062
WARRINGTON BOROUGH COUNCIL,http://statistics.data.gov.uk/id/local-authority/00EU,RSC,Individual Electoral Registration,11660,Postages,450000,18-Aug-14,1900151840,1803,Royal Mail,101445
WARRINGTON BOROUGH COUNCIL,http://statistics.data.gov.uk/id/local-authority/00EU,ENO,Housing Projects,82008,Disabled Persons Grant 1996,554000,18-Aug-14,1900151832,861,Warrington Housing Current Acc,101208
WARRINGTON BOROUGH COUNCIL,http://statistics.data.gov.uk/id/local-authority/00EU,RSC,ICT Networks,23400,ICT Comms - Line Rental,450200,18-Aug-14,1900151787,11480,Virgin Media Business,106824
WARRINGTON BOROUGH COUNCIL,http://statistics.data.gov.uk/id/local-authority/00EU,ENO,Housing Projects,82008,Renewals Assistance,554050,18-Aug-14,1900151827,20160,Gt Builders,104761
WARRINGTON BOROUGH COUNCIL,http://statistics.data.gov.uk/id/local-authority/00EU,ENO,Housing Projects,82008,Disabled Persons Grant 1996,554000,18-Aug-14,1900151826,11400,Acorn Building Projects Ltd,105557
WARRINGTON BOROUGH COUNCIL,http://statistics.data.gov.uk/id/local-authority/00EU,ENO,Housing Projects,82008,Disabled Persons Grant 1996,554000,18-Aug-14,1900151829,3520,Independent Adaptations,110198
WARRINGTON BOROUGH COUNCIL,http://statistics.data.gov.uk/id/local-authority/00EU,FWB,Care Purchase AMH,54135,CP-Domicil.External,440950,18-Aug-14,1900151784,2345,Community Integrated Care (Cic),100171
WARRINGTON BOROUGH COUNCIL,http://statistics.data.gov.uk/id/local-authority/00EU,FWB,Care Purchase AMH,54135,CP-Domicil.External,440950,18-Aug-14,1900151786,2989,Community Integrated Care (Cic),100171
WARRINGTON BOROUGH COUNCIL,http://statistics.data.gov.uk/id/local-authority/00EU,ENO,Housing Projects,82008,Disabled Persons Grant 1996,554000,18-Aug-14,1900151834,767,Warrington Housing Current Acc,101208
WARRINGTON BOROUGH COUNCIL,http://statistics.data.gov.uk/id/local-authority/00EU,ENO,Housing Projects,82008,Disabled Persons Grant 1996,554000,18-Aug-14,1900151842,4416,ThyssenKrupp Encasa Ltd,105382
WARRINGTON BOROUGH COUNCIL,http://statistics.data.gov.uk/id/local-authority/00EU,CYP,Childrens Other,81004,Consult.& Prof. Serv,440000,18-Aug-14,1900151792,1200,Virgin Media Business,106824
WARRINGTON BOROUGH COUNCIL,http://statistics.data.gov.uk/id/local-authority/00EU,EG0,Contingency,45227,Maintenance of Plant & Machinery,250050,18-Aug-14,1900151805,13852,Manchester Working Limited,105646
WARRINGTON BOROUGH COUNCIL,http://statistics.data.gov.uk/id/local-authority/00EU,EG0,Contingency,45227,Maintenance of Plant & Machinery,250050,18-Aug-14,1900151805,1851,Manchester Working Limited,105646
WARRINGTON BOROUGH COUNCIL,http://statistics.data.gov.uk/id/local-authority/00EU,HOL,Single Billing Holding Account,91130,Non BMP General Repairs,200050,18-Aug-14,1900151803,555,Manchester Working Limited,105646
WARRINGTON BOROUGH COUNCIL,http://statistics.data.gov.uk/id/local-authority/00EU,HOL,Single Billing Holding Account,91130,Non BMP General Repairs,200050,18-Aug-14,1900151808,1292,Manchester Working Limited,105646
WARRINGTON BOROUGH COUNCIL,http://statistics.data.gov.uk/id/local-authority/00EU,HOL,Single Billing Holding Account,91130,Non BMP General Repairs,200050,18-Aug-14,1900151817,1484,Manchester Working Limited,105646
WARRINGTON BOROUGH COUNCIL,http://statistics.data.gov.uk/id/local-authority/00EU,HOL,Single Billing Holding Account,91130,Specific Work,200200,18-Aug-14,1900151806,1636,Manchester Working Limited,105646
WARRINGTON BOROUGH COUNCIL,http://statistics.data.gov.uk/id/local-authority/00EU,HOL,Single Billing Holding Account,91130,Specific Work,200200,18-Aug-14,1900151801,6920,Manchester Working Limited,105646
WARRINGTON BOROUGH COUNCIL,http://statistics.data.gov.uk/id/local-authority/00EU,HOL,Single Billing Holding Account,91130,Specific Work,200200,18-Aug-14,1900151819,3425,Manchester Working Limited,105646
WARRINGTON BOROUGH COUNCIL,http://statistics.data.gov.uk/id/local-authority/00EU,RSC,Coroners Service,11100,Post Mortem Fees-Rep,440250,18-Aug-14,1900151791,20000,Countess Of Chester Hospital Nhs,440146
WARRINGTON BOROUGH COUNCIL,http://statistics.data.gov.uk/id/local-authority/00EU,HOL,Insurance Fund,91100,Insurance Claims,443400,18-Aug-14,1900151836,14959,Zurich Insurance Company,105263
WARRINGTON BOROUGH COUNCIL,http://statistics.data.gov.uk/id/local-authority/00EU,RSC,Coroners Service,11100,Removal Bodies & Exc,440350,18-Aug-14,1900151734,1204,Redacted Personal Data,105133
WARRINGTON BOROUGH COUNCIL,http://statistics.data.gov.uk/id/local-authority/00EU,FWB,Neighbourhood Co-o Central,51309,Payment of Grants,470050,18-Aug-14,1900151775,1700,Crosfields under 12's ARLFC,113519
WARRINGTON BOROUGH COUNCIL,http://statistics.data.gov.uk/id/local-authority/00EU,FWB,Care Purchase Budget,54490,CP Free Nursing Care External,443500,18-Aug-14,1900151749,13329,Barchester Homes Westvale House,105246
WARRINGTON BOROUGH COUNCIL,http://statistics.data.gov.uk/id/local-authority/00EU,FWB,Care Purchase - OP & OT West,54470,CP-Nursing Care-External,441200,18-Aug-14,1900151761,1312,Barchester Homes Westvale House,105246
WARRINGTON BOROUGH COUNCIL,http://statistics.data.gov.uk/id/local-authority/00EU,FWB,Foster Allowances,31106,Travel Allowance,550250,18-Aug-14,1900151831,558,Redacted Personal Data,460506
WARRINGTON BOROUGH COUNCIL,http://statistics.data.gov.uk/id/local-authority/00EU,FWB,CiC Team 1,31100,Personal Needs Allowance,550400,18-Aug-14,1900151845,601,Redacted Personal Data,460949
WARRINGTON BOROUGH COUNCIL,http://statistics.data.gov.uk/id/local-authority/00EU,FWB,Care Purchase Budget,54490,CP ExternalOther Exp,440800,18-Aug-14,1900151756,9585,Leyton Healthcare,102517
WARRINGTON BOROUGH COUNCIL,http://statistics.data.gov.uk/id/local-authority/00EU,FWB,Care Purchase Budget,54490,CP ExternalOther Exp,440800,18-Aug-14,1900151757,9842,Old Rectory Private Nursing Home,104990
WARRINGTON BOROUGH COUNCIL,http://statistics.data.gov.uk/id/local-authority/00EU,RSC,Coroners Service,11100,Removal Bodies & Exc,440350,18-Aug-14,1900151752,619,Co-Operative Funeralcare,104637
WARRINGTON BOROUGH COUNCIL,http://statistics.data.gov.uk/id/local-authority/00EU,FWB,Solar,63623,Consult.& Prof. Serv,440000,18-Aug-14,1900151821,1654,Pannone Part of Slater and Gordon,110046
WARRINGTON BOROUGH COUNCIL,http://statistics.data.gov.uk/id/local-authority/00EU,RSC,Warrington Against Business Crime,16020,Consult.& Prof. Serv,440000,19-Aug-14,1900151858,589,Cheshire & Greater Manchester CRC,113466
WARRINGTON BOROUGH COUNCIL,http://statistics.data.gov.uk/id/local-authority/00EU,FWB,Contracts - SM Commissioning Team 1,55910,Public Health Contract Payments,540000,19-Aug-14,1900151866,7139,Warrington Ymca,440065
WARRINGTON BOROUGH COUNCIL,http://statistics.data.gov.uk/id/local-authority/00EU,FWB,Contracts - SM Commissioning Team 1,55910,Public Health Contract Payments,540000,19-Aug-14,1900151867,7139,Warrington Ymca,440065
WARRINGTON BOROUGH COUNCIL,http://statistics.data.gov.uk/id/local-authority/00EU,EG1,Transport Holding Account,41311,Road Fund Licences,300200,19-Aug-14,1900151872,4080,Post Office Counters Ltd,100004
WARRINGTON BOROUGH COUNCIL,http://statistics.data.gov.uk/id/local-authority/00EU,FWB,Contracts - SM Commissioning Team 1,55910,Public Health Contract Payments,540000,19-Aug-14,1900151865,3721,Warrington And Halton Nhs Ft,440132
WARRINGTON BOROUGH COUNCIL,http://statistics.data.gov.uk/id/local-authority/00EU,FWB,Statutory Homeless Properties,43652,Water & Sewerage Chg,240000,19-Aug-14,1900151855,579,United Utilities Water Limited,104982
WARRINGTON BOROUGH COUNCIL,http://statistics.data.gov.uk/id/local-authority/00EU,RSC,Council Tax & Recovery,10320,Court Costs,460100,19-Aug-14,1900151857,4965,Hmcs North Cheshire Collections,102261
WARRINGTON BOROUGH COUNCIL,http://statistics.data.gov.uk/id/local-authority/00EU,FWB,CiC Team 1,31100,Personal Needs Allowance,550400,19-Aug-14,1900151850,600,Redacted Personal Data,460949
WARRINGTON BOROUGH COUNCIL,http://statistics.data.gov.uk/id/local-authority/00EU,RSC,Coroners Service,11100,Removal Bodies & Exc,440350,19-Aug-14,1900151873,521,Co-Operative Funeralcare,104637
WARRINGTON BOROUGH COUNCIL,http://statistics.data.gov.uk/id/local-authority/00EU,FWB,Adoption Team,31107,Consult.& Prof. Serv,440000,20-Aug-14,1900152013,2900,Redacted Personal Data,111105
WARRINGTON BOROUGH COUNCIL,http://statistics.data.gov.uk/id/local-authority/00EU,FWB,Care Purchase - OP & OT South,54480,CP-LongStayExternal,441150,20-Aug-14,1900151987,3864,CareConcepts (Appleton) Ltd,105804
WARRINGTON BOROUGH COUNCIL,http://statistics.data.gov.uk/id/local-authority/00EU,FWB,Care Purchase - OP & OT South,54480,CP-Nursing Care-External,441200,20-Aug-14,1900151987,21356,CareConcepts (Appleton) Ltd,105804
WARRINGTON BOROUGH COUNCIL,http://statistics.data.gov.uk/id/local-authority/00EU,FWB,Care Purchase -OP & OT East,54430,CP-Nursing Care-External,441200,20-Aug-14,1900151987,3988,CareConcepts (Appleton) Ltd,105804
WARRINGTON BOROUGH COUNCIL,http://statistics.data.gov.uk/id/local-authority/00EU,FWB,Care Purchase - OP & OT Central,54420,CP-Nursing Care-External,441200,20-Aug-14,1900151987,1976,CareConcepts (Appleton) Ltd,105804
WARRINGTON BOROUGH COUNCIL,http://statistics.data.gov.uk/id/local-authority/00EU,FWB,Care Purchase Budget,54490,CP - Cont Care - External,441350,20-Aug-14,1900151987,48708,CareConcepts (Appleton) Ltd,105804
WARRINGTON BOROUGH COUNCIL,http://statistics.data.gov.uk/id/local-authority/00EU,FWB,Care Purchase Budget,54490,CP Free Nursing Care External,443500,20-Aug-14,1900151987,6210,CareConcepts (Appleton) Ltd,105804
WARRINGTON BOROUGH COUNCIL,http://statistics.data.gov.uk/id/local-authority/00EU,FWB,Child Disability,32212,CP-Domicil.External,440950,20-Aug-14,1900151968,2508,Carewatch North Cheshire,104573
WARRINGTON BOROUGH COUNCIL,http://statistics.data.gov.uk/id/local-authority/00EU,FWB,DAT Pooled Budget,53860,Drug Action,443600,20-Aug-14,1900152051,908,Medicx Pharmacy Ltd,104278
WARRINGTON BOROUGH COUNCIL,http://statistics.data.gov.uk/id/local-authority/00EU,FWB,Care Matters / PEAs,31112,Looked after children in Warrington,301000,20-Aug-14,1900151976,800,Northumberland County Council,410025
WARRINGTON BOROUGH COUNCIL,http://statistics.data.gov.uk/id/local-authority/00EU,FWB,Child Disability,32212,CP-Domicil.External,440950,20-Aug-14,1900151970,1481,Castlerock Recruitment Group,105279
WARRINGTON BOROUGH COUNCIL,http://statistics.data.gov.uk/id/local-authority/00EU,FWB,Child Disability,32212,CP-Domicil.External,440950,20-Aug-14,1900151972,1478,Castlerock Recruitment Group,105279
WARRINGTON BOROUGH COUNCIL,http://statistics.data.gov.uk/id/local-authority/00EU,ENP,Environment & Regeneration,82000,Legal Costs Incurred,440200,20-Aug-14,1900151973,1086,Dwf LLP,101511
WARRINGTON BOROUGH COUNCIL,http://statistics.data.gov.uk/id/local-authority/00EU,EG0,86 Sankey Street,43115,Equipment Purchase & Contract,400000,20-Aug-14,1900152002,978,Chubb Fire and Security Ltd,105335
WARRINGTON BOROUGH COUNCIL,http://statistics.data.gov.uk/id/local-authority/00EU,RSC,Head of Integrated Commissioning,53500,Training,190150,20-Aug-14,1900152037,2244,Salford City Council,410033
WARRINGTON BOROUGH COUNCIL,http://statistics.data.gov.uk/id/local-authority/00EU,FWB,Statutory Homeless Properties,43652,NNDR,230000,20-Aug-14,1900152031,936,Warrington Borough Council,440006
WARRINGTON BOROUGH COUNCIL,http://statistics.data.gov.uk/id/local-authority/00EU,FWB,Statutory Homeless Properties,43652,NNDR,230000,20-Aug-14,1900152032,936,Warrington Borough Council,440006
WARRINGTON BOROUGH COUNCIL,http://statistics.data.gov.uk/id/local-authority/00EU,FWB,Statutory Homeless Properties,43652,NNDR,230000,20-Aug-14,1900152025,936,Warrington Borough Council,440006
WARRINGTON BOROUGH COUNCIL,http://statistics.data.gov.uk/id/local-authority/00EU,FWB,Statutory Homeless Properties,43652,NNDR,230000,20-Aug-14,1900152023,936,Warrington Borough Council,440006
WARRINGTON BOROUGH COUNCIL,http://statistics.data.gov.uk/id/local-authority/00EU,FWB,Statutory Homeless Properties,43652,NNDR,230000,20-Aug-14,1900152024,936,Warrington Borough Council,440006
WARRINGTON BOROUGH COUNCIL,http://statistics.data.gov.uk/id/local-authority/00EU,FWB,Statutory Homeless Properties,43652,NNDR,230000,20-Aug-14,1900152033,936,Warrington Borough Council,440006
WARRINGTON BOROUGH COUNCIL,http://statistics.data.gov.uk/id/local-authority/00EU,FWB,Statutory Homeless Properties,43652,NNDR,230000,20-Aug-14,1900152027,936,Warrington Borough Council,440006
WARRINGTON BOROUGH COUNCIL,http://statistics.data.gov.uk/id/local-authority/00EU,FWB,Statutory Homeless Properties,43652,NNDR,230000,20-Aug-14,1900152030,936,Warrington Borough Council,440006
WARRINGTON BOROUGH COUNCIL,http://statistics.data.gov.uk/id/local-authority/00EU,FWB,Statutory Homeless Properties,43652,NNDR,230000,20-Aug-14,1900152028,936,Warrington Borough Council,440006
WARRINGTON BOROUGH COUNCIL,http://statistics.data.gov.uk/id/local-authority/00EU,FWB,Statutory Homeless Properties,43652,NNDR,230000,20-Aug-14,1900152026,936,Warrington Borough Council,440006
WARRINGTON BOROUGH COUNCIL,http://statistics.data.gov.uk/id/local-authority/00EU,FWB,Statutory Homeless Properties,43652,NNDR,230000,20-Aug-14,1900152021,936,Warrington Borough Council,440006
WARRINGTON BOROUGH COUNCIL,http://statistics.data.gov.uk/id/local-authority/00EU,FWB,P.F.I.,43630,PFI,480000,20-Aug-14,1900152056,45125,Arena Options,101746
WARRINGTON BOROUGH COUNCIL,http://statistics.data.gov.uk/id/local-authority/00EU,FWB,Care Matters / PEAs,31112,Looked after children in Warrington,301000,20-Aug-14,1900151967,7200,Beamont Collegiate Academy,111598
WARRINGTON BOROUGH COUNCIL,http://statistics.data.gov.uk/id/local-authority/00EU,FWB,Care Purchase - Learning Disability,54450,CP-Domicil.External,440950,20-Aug-14,1900151950,4499,Independent Living Alliance,100726
WARRINGTON BOROUGH COUNCIL,http://statistics.data.gov.uk/id/local-authority/00EU,FWB,Care Purchase AMH,54135,CP-Domicil.External,440950,20-Aug-14,1900151952,2361,Independent Living Alliance,100726
WARRINGTON BOROUGH COUNCIL,http://statistics.data.gov.uk/id/local-authority/00EU,FWB,Care Purchase AMH,54135,CP-Domicil.External,440950,20-Aug-14,1900151953,7665,Independent Living Alliance,100726
WARRINGTON BOROUGH COUNCIL,http://statistics.data.gov.uk/id/local-authority/00EU,FWB,Care Purchase - ABI,54260,CP-Domicil.External,440950,20-Aug-14,1900151953,2357,Independent Living Alliance,100726
WARRINGTON BOROUGH COUNCIL,http://statistics.data.gov.uk/id/local-authority/00EU,FWB,Care Purchase Budget,54490,CP - Cont Care - External,441350,20-Aug-14,1900151953,8702,Independent Living Alliance,100726
WARRINGTON BOROUGH COUNCIL,http://statistics.data.gov.uk/id/local-authority/00EU,FWB,Care Purchase AMH,54135,CP-Domicil.External,440950,20-Aug-14,1900151951,14410,Independent Living Alliance,100726
WARRINGTON BOROUGH COUNCIL,http://statistics.data.gov.uk/id/local-authority/00EU,FWB,Care Purchase - ABI,54260,CP-Domicil.External,440950,20-Aug-14,1900151951,1605,Independent Living Alliance,100726
WARRINGTON BOROUGH COUNCIL,http://statistics.data.gov.uk/id/local-authority/00EU,FWB,Care Purchase AMH,54135,CP-Domicil.External,440950,20-Aug-14,1900151949,10257,Independent Living Alliance,100726
WARRINGTON BOROUGH COUNCIL,http://statistics.data.gov.uk/id/local-authority/00EU,FWB,Care Purchase - PD,54440,CP-Domicil.External,440950,20-Aug-14,1900151949,2564,Independent Living Alliance,100726
WARRINGTON BOROUGH COUNCIL,http://statistics.data.gov.uk/id/local-authority/00EU,FWB,Care Purchase AMH,54135,Supporting People - External,441250,20-Aug-14,1900151949,5453,Independent Living Alliance,100726
WARRINGTON BOROUGH COUNCIL,http://statistics.data.gov.uk/id/local-authority/00EU,FWB,Care Purchase - PD,54440,Supporting People - External,441250,20-Aug-14,1900151949,1363,Independent Living Alliance,100726
WARRINGTON BOROUGH COUNCIL,http://statistics.data.gov.uk/id/local-authority/00EU,FWB,Care Purchase AMH,54135,CP-Domicil.External,440950,20-Aug-14,1900151948,15461,Independent Living Alliance,100726
WARRINGTON BOROUGH COUNCIL,http://statistics.data.gov.uk/id/local-authority/00EU,FWB,Care Purchase AMH,54135,Supporting People - External,441250,20-Aug-14,1900151948,2470,Independent Living Alliance,100726
WARRINGTON BOROUGH COUNCIL,http://statistics.data.gov.uk/id/local-authority/00EU,FWB,Care Purchase AMH,54135,CP-Domicil.External,440950,20-Aug-14,1900151947,9900,Independent Living Alliance,100726
WARRINGTON BOROUGH COUNCIL,http://statistics.data.gov.uk/id/local-authority/00EU,FWB,Care Purchase AMH,54135,Supporting People - External,441250,20-Aug-14,1900151947,5329,Independent Living Alliance,100726
WARRINGTON BOROUGH COUNCIL,http://statistics.data.gov.uk/id/local-authority/00EU,FWB,DAT Pooled Budget,53860,Drug Action,443600,20-Aug-14,1900152054,1114,Medicx Pharmacy Ltd,104278
WARRINGTON BOROUGH COUNCIL,http://statistics.data.gov.uk/id/local-authority/00EU,FWB,Neighbourhood Co-o South,51308,Payment of Grants,470050,20-Aug-14,1900152029,920,Latchford Albions Under 15's,109444
WARRINGTON BOROUGH COUNCIL,http://statistics.data.gov.uk/id/local-authority/00EU,FWB,Care Purchase - OP & OT West,54470,CP-Nursing Care-External,441200,20-Aug-14,1900151985,30219,Barchester Homes Westvale House,105246
WARRINGTON BOROUGH COUNCIL,http://statistics.data.gov.uk/id/local-authority/00EU,FWB,Care Purchase -OP & OT East,54430,CP-Nursing Care-External,441200,20-Aug-14,1900151985,7087,Barchester Homes Westvale House,105246
WARRINGTON BOROUGH COUNCIL,http://statistics.data.gov.uk/id/local-authority/00EU,FWB,Care Purchase - OP & OT Central,54420,CP-Nursing Care-External,441200,20-Aug-14,1900151985,869,Barchester Homes Westvale House,105246
WARRINGTON BOROUGH COUNCIL,http://statistics.data.gov.uk/id/local-authority/00EU,FWB,Care Purchase - PD,54440,CP-Nursing Care-External,441200,20-Aug-14,1900151985,1872,Barchester Homes Westvale House,105246
WARRINGTON BOROUGH COUNCIL,http://statistics.data.gov.uk/id/local-authority/00EU,FWB,Care Purchase Budget,54490,CP - Cont Care - External,441350,20-Aug-14,1900151985,18710,Barchester Homes Westvale House,105246
WARRINGTON BOROUGH COUNCIL,http://statistics.data.gov.uk/id/local-authority/00EU,FWB,Carers Co-ordinator,53240,CP - Cont Care - External,441350,20-Aug-14,1900151985,1179,Barchester Homes Westvale House,105246
WARRINGTON BOROUGH COUNCIL,http://statistics.data.gov.uk/id/local-authority/00EU,FWB,Child Arrangement Orders,31114,Residence Orders,550350,20-Aug-14,1900152055,2252,Redacted Personal Data,460908
WARRINGTON BOROUGH COUNCIL,http://statistics.data.gov.uk/id/local-authority/00EU,FWB,Care Purchase - OP & OT South,54480,CP-LongStayExternal,441150,20-Aug-14,1900151937,7000,Barchester Healthcare Brookfield,104548
WARRINGTON BOROUGH COUNCIL,http://statistics.data.gov.uk/id/local-authority/00EU,FWB,Care Purchase - OP & OT Central,54420,CP-LongStayExternal,441150,20-Aug-14,1900151937,1700,Barchester Healthcare Brookfield,104548
WARRINGTON BOROUGH COUNCIL,http://statistics.data.gov.uk/id/local-authority/00EU,FWB,Care Purchase Budget,54490,CP ExternalOther Exp,440800,20-Aug-14,1900151938,32955,Bupa Care Homes,104572
WARRINGTON BOROUGH COUNCIL,http://statistics.data.gov.uk/id/local-authority/00EU,FWB,Care Purchase Budget,54490,CP ExternalOther Exp,440800,20-Aug-14,1900151942,5889,Heathfield Residental Home,100059
WARRINGTON BOROUGH COUNCIL,http://statistics.data.gov.uk/id/local-authority/00EU,FWB,Care Purchase Budget,54490,CP ExternalOther Exp,440800,20-Aug-14,1900151946,22680,European Care (Uk) Ltd,100320
WARRINGTON BOROUGH COUNCIL,http://statistics.data.gov.uk/id/local-authority/00EU,FWB,Care Purchase Budget,54490,CP ExternalOther Exp,440800,20-Aug-14,1900151935,22000,Arlington House,104491
WARRINGTON BOROUGH COUNCIL,http://statistics.data.gov.uk/id/local-authority/00EU,FWB,Care Purchase Budget,54490,CP ExternalOther Exp,440800,20-Aug-14,1900151936,49000,Ashberry Healthcare Ltd,101061
WARRINGTON BOROUGH COUNCIL,http://statistics.data.gov.uk/id/local-authority/00EU,FWB,Care Purchase Budget,54490,CP ExternalOther Exp,440800,20-Aug-14,1900151940,42000,Embrace Group,109675
WARRINGTON BOROUGH COUNCIL,http://statistics.data.gov.uk/id/local-authority/00EU,FWB,Care Purchase Budget,54490,CP ExternalOther Exp,440800,20-Aug-14,1900151941,30000,Harbour Healthcare 1 Ltd,110527
WARRINGTON BOROUGH COUNCIL,http://statistics.data.gov.uk/id/local-authority/00EU,FWB,Care Purchase Budget,54490,CP ExternalOther Exp,440800,20-Aug-14,1900151943,17000,Heathfield Residental Home,100059
WARRINGTON BOROUGH COUNCIL,http://statistics.data.gov.uk/id/local-authority/00EU,FWB,Care Purchase Budget,54490,CP ExternalOther Exp,440800,20-Aug-14,1900151944,40000,Heathside Elderly Persons Home,104777
WARRINGTON BOROUGH COUNCIL,http://statistics.data.gov.uk/id/local-authority/00EU,FWB,Care Purchase Budget,54490,CP ExternalOther Exp,440800,20-Aug-14,1900151945,33000,Wcl - Heathside Mews,101742
WARRINGTON BOROUGH COUNCIL,http://statistics.data.gov.uk/id/local-authority/00EU,FWB,Care Purchase Budget,54490,CP ExternalOther Exp,440800,20-Aug-14,1900151954,33000,Keate House Residential Home,104849
WARRINGTON BOROUGH COUNCIL,http://statistics.data.gov.uk/id/local-authority/00EU,FWB,Care Purchase Budget,54490,CP ExternalOther Exp,440800,20-Aug-14,1900151956,48000,Minster Care Management Ltd,105179
WARRINGTON BOROUGH COUNCIL,http://statistics.data.gov.uk/id/local-authority/00EU,FWB,Care Purchase Budget,54490,CP ExternalOther Exp,440800,20-Aug-14,1900151957,20000,Old Rectory Private Nursing Home,104990
WARRINGTON BOROUGH COUNCIL,http://statistics.data.gov.uk/id/local-authority/00EU,FWB,Care Purchase Budget,54490,CP ExternalOther Exp,440800,20-Aug-14,1900151958,16000,Rosevilla Residential Home,105084
WARRINGTON BOROUGH COUNCIL,http://statistics.data.gov.uk/id/local-authority/00EU,FWB,Care Purchase Budget,54490,CP ExternalOther Exp,440800,20-Aug-14,1900151959,45000,St Marys Care Centre,101503
WARRINGTON BOROUGH COUNCIL,http://statistics.data.gov.uk/id/local-authority/00EU,FWB,Care Purchase Budget,54490,CP ExternalOther Exp,440800,20-Aug-14,1900151960,30000,Four Seasons ta St Oswalds Care Hom,109422
WARRINGTON BOROUGH COUNCIL,http://statistics.data.gov.uk/id/local-authority/00EU,FWB,Care Purchase Budget,54490,CP ExternalOther Exp,440800,20-Aug-14,1900151961,36000,Summerville Nursing Home -Private C,105162
WARRINGTON BOROUGH COUNCIL,http://statistics.data.gov.uk/id/local-authority/00EU,FWB,Care Purchase Budget,54490,CP ExternalOther Exp,440800,20-Aug-14,1900151962,23000,Thelwall Grange Nursing Home,105174
WARRINGTON BOROUGH COUNCIL,http://statistics.data.gov.uk/id/local-authority/00EU,FWB,Care Purchase Budget,54490,CP ExternalOther Exp,440800,20-Aug-14,1900151963,18000,W H Investments Ltd,111422
WARRINGTON BOROUGH COUNCIL,http://statistics.data.gov.uk/id/local-authority/00EU,FWB,Care Purchase Budget,54490,CP ExternalOther Exp,440800,20-Aug-14,1900151984,133000,Ashberry Healthcare Ltd,104776
WARRINGTON BOROUGH COUNCIL,http://statistics.data.gov.uk/id/local-authority/00EU,FWB,Care Purchase Budget,54490,CP ExternalOther Exp,440800,20-Aug-14,1900151986,180000,Bupa Care Homes,104572
WARRINGTON BOROUGH COUNCIL,http://statistics.data.gov.uk/id/local-authority/00EU,FWB,Care Purchase Budget,54490,CP ExternalOther Exp,440800,20-Aug-14,1900151988,70000,Cls Care Services Ltd,104615
WARRINGTON BOROUGH COUNCIL,http://statistics.data.gov.uk/id/local-authority/00EU,FWB,Care Purchase Budget,54490,CP ExternalOther Exp,440800,20-Aug-14,1900151989,160000,HC-One Limited Callands,109640
WARRINGTON BOROUGH COUNCIL,http://statistics.data.gov.uk/id/local-authority/00EU,FWB,Care Purchase Budget,54490,CP ExternalOther Exp,440800,20-Aug-14,1900151990,110000,London & Manchester Healthcare Ltd,109185
WARRINGTON BOROUGH COUNCIL,http://statistics.data.gov.uk/id/local-authority/00EU,FWB,Care Purchase Budget,54490,CP ExternalOther Exp,440800,20-Aug-14,1900151991,117000,Leyton Healthcare Limited,108970
WARRINGTON BOROUGH COUNCIL,http://statistics.data.gov.uk/id/local-authority/00EU,FWB,Care Purchase Budget,54490,CP ExternalOther Exp,440800,20-Aug-14,1900151992,167000,Leyton Healthcare,102517
WARRINGTON BOROUGH COUNCIL,http://statistics.data.gov.uk/id/local-authority/00EU,FWB,Care Purchase Budget,54490,CP ExternalOther Exp,440800,20-Aug-14,1900151993,75000,Bondcare St Andrews,109634
WARRINGTON BOROUGH COUNCIL,http://statistics.data.gov.uk/id/local-authority/00EU,FWB,Care Purchase Budget,54490,CP ExternalOther Exp,440800,20-Aug-14,1900151994,75000,WCL - Warrington Community Living,105230
WARRINGTON BOROUGH COUNCIL,http://statistics.data.gov.uk/id/local-authority/00EU,FWB,Care Purchase - Learning Disability,54450,CP-Domicil.External,440950,20-Aug-14,1900151955,18152,Macintyre Care,104907
WARRINGTON BOROUGH COUNCIL,http://statistics.data.gov.uk/id/local-authority/00EU,FWB,Legal Fees - Safeguarding,30100,Legal Costs Incurred,440200,21-Aug-14,1900152057,981,Bromleys Solicitors,113506
WARRINGTON BOROUGH COUNCIL,http://statistics.data.gov.uk/id/local-authority/00EU,FWB,Care Purchase - PD,54440,Direct Payments,552000,21-Aug-14,1900152059,2768,Redacted Personal Data,100049
WARRINGTON BOROUGH COUNCIL,http://statistics.data.gov.uk/id/local-authority/00EU,FWB,Care Purchase - Learning Disability,54450,Direct Payments,552000,21-Aug-14,1900152061,717,Redacted Personal Data,100270
WARRINGTON BOROUGH COUNCIL,http://statistics.data.gov.uk/id/local-authority/00EU,FWB,Care Purchase - PD,54440,Direct Payments,552000,21-Aug-14,1900152062,1358,Redacted Personal Data,100338
WARRINGTON BOROUGH COUNCIL,http://statistics.data.gov.uk/id/local-authority/00EU,FWB,Care Purchase - PD,54440,Direct Payments,552000,21-Aug-14,1900152063,1061,Redacted Personal Data,100340
WARRINGTON BOROUGH COUNCIL,http://statistics.data.gov.uk/id/local-authority/00EU,FWB,Care Purchase - Learning Disability,54450,Direct Payments,552000,21-Aug-14,1900152065,720,Redacted Personal Data,100452
WARRINGTON BOROUGH COUNCIL,http://statistics.data.gov.uk/id/local-authority/00EU,FWB,Care Purchase - PD,54440,Direct Payments,552000,21-Aug-14,1900152066,737,Redacted Personal Data,100508
WARRINGTON BOROUGH COUNCIL,http://statistics.data.gov.uk/id/local-authority/00EU,FWB,Care Purchase - Learning Disability,54450,Direct Payments,552000,21-Aug-14,1900152067,1120,Redacted Personal Data,100607
WARRINGTON BOROUGH COUNCIL,http://statistics.data.gov.uk/id/local-authority/00EU,FWB,Care Purchase - PD,54440,Direct Payments,552000,21-Aug-14,1900152069,1907,Redacted Personal Data,100666
WARRINGTON BOROUGH COUNCIL,http://statistics.data.gov.uk/id/local-authority/00EU,FWB,Care Purchase - PD,54440,Direct Payments,552000,21-Aug-14,1900152070,1778,Redacted Personal Data,100667
WARRINGTON BOROUGH COUNCIL,http://statistics.data.gov.uk/id/local-authority/00EU,FWB,Care Purchase - PD,54440,Direct Payments,552000,21-Aug-14,1900152071,851,Redacted Personal Data,100766
WARRINGTON BOROUGH COUNCIL,http://statistics.data.gov.uk/id/local-authority/00EU,FWB,Care Purchase - PD,54440,Direct Payments,552000,21-Aug-14,1900152072,3059,Redacted Personal Data,100879
WARRINGTON BOROUGH COUNCIL,http://statistics.data.gov.uk/id/local-authority/00EU,FWB,Care Purchase - PD,54440,Direct Payments,552000,21-Aug-14,1900152073,1231,Redacted Personal Data,100890
WARRINGTON BOROUGH COUNCIL,http://statistics.data.gov.uk/id/local-authority/00EU,FWB,Care Purchase -OP & OT East,54430,Direct Payments,552000,21-Aug-14,1900152074,1351,Redacted Personal Data,100907
WARRINGTON BOROUGH COUNCIL,http://statistics.data.gov.uk/id/local-authority/00EU,FWB,Care Purchase - OP & OT South,54480,Direct Payments,552000,21-Aug-14,1900152076,757,Redacted Personal Data,100934
WARRINGTON BOROUGH COUNCIL,http://statistics.data.gov.uk/id/local-authority/00EU,FWB,Care Purchase - Learning Disability,54450,Direct Payments,552000,21-Aug-14,1900152077,1120,Redacted Personal Data,100945
WARRINGTON BOROUGH COUNCIL,http://statistics.data.gov.uk/id/local-authority/00EU,FWB,Care Purchase - Learning Disability,54450,Direct Payments,552000,21-Aug-14,1900152078,3353,Redacted Personal Data,100954
WARRINGTON BOROUGH COUNCIL,http://statistics.data.gov.uk/id/local-authority/00EU,FWB,Care Purchase - Learning Disability,54450,Supporting People - External,441250,21-Aug-14,1900152079,1485,Redacted Personal Data,100959
WARRINGTON BOROUGH COUNCIL,http://statistics.data.gov.uk/id/local-authority/00EU,FWB,Care Purchase - Learning Disability,54450,Direct Payments,552000,21-Aug-14,1900152079,2475,Redacted Personal Data,100959
WARRINGTON BOROUGH COUNCIL,http://statistics.data.gov.uk/id/local-authority/00EU,FWB,Care Purchase - PD,54440,Direct Payments,552000,21-Aug-14,1900152080,1146,Redacted Personal Data,101007
WARRINGTON BOROUGH COUNCIL,http://statistics.data.gov.uk/id/local-authority/00EU,FWB,Care Purchase - ABI,54260,Direct Payments,552000,21-Aug-14,1900152081,2390,Redacted Personal Data,101016
WARRINGTON BOROUGH COUNCIL,http://statistics.data.gov.uk/id/local-authority/00EU,FWB,Care Purchase - PD,54440,Direct Payments,552000,21-Aug-14,1900152082,855,Redacted Personal Data,101030
WARRINGTON BOROUGH COUNCIL,http://statistics.data.gov.uk/id/local-authority/00EU,FWB,Care Purchase - Learning Disability,54450,Direct Payments,552000,21-Aug-14,1900152083,1760,Redacted Personal Data,101045
WARRINGTON BOROUGH COUNCIL,http://statistics.data.gov.uk/id/local-authority/00EU,FWB,Care Purchase - Learning Disability,54450,Direct Payments,552000,21-Aug-14,1900152085,9048,Redacted Personal Data,101104
WARRINGTON BOROUGH COUNCIL,http://statistics.data.gov.uk/id/local-authority/00EU,FWB,Care Purchase - PD,54440,Direct Payments,552000,21-Aug-14,1900152086,962,Redacted Personal Data,101147
WARRINGTON BOROUGH COUNCIL,http://statistics.data.gov.uk/id/local-authority/00EU,FWB,Care Purchase -OP & OT East,54430,Direct Payments,552000,21-Aug-14,1900152088,812,Redacted Personal Data,101174
WARRINGTON BOROUGH COUNCIL,http://statistics.data.gov.uk/id/local-authority/00EU,FWB,Care Purchase - Learning Disability,54450,Direct Payments,552000,21-Aug-14,1900152089,2815,Redacted Personal Data,101246
WARRINGTON BOROUGH COUNCIL,http://statistics.data.gov.uk/id/local-authority/00EU,FWB,Care Purchase - Learning Disability,54450,Direct Payments,552000,21-Aug-14,1900152090,509,Redacted Personal Data,101261
WARRINGTON BOROUGH COUNCIL,http://statistics.data.gov.uk/id/local-authority/00EU,FWB,Care Purchase - PD,54440,CP - Cont Care - External,441350,21-Aug-14,1900152091,1797,Redacted Personal Data,101276
WARRINGTON BOROUGH COUNCIL,http://statistics.data.gov.uk/id/local-authority/00EU,FWB,Care Purchase - PD,54440,Direct Payments,552000,21-Aug-14,1900152091,1797,Redacted Personal Data,101276
WARRINGTON BOROUGH COUNCIL,http://statistics.data.gov.uk/id/local-authority/00EU,FWB,Child Disability,32212,Direct Payments,552000,21-Aug-14,1900152092,666,Redacted Personal Data,101322
WARRINGTON BOROUGH COUNCIL,http://statistics.data.gov.uk/id/local-authority/00EU,FWB,Care Purchase - PD,54440,Direct Payments,552000,21-Aug-14,1900152094,2328,Redacted Personal Data,101335
WARRINGTON BOROUGH COUNCIL,http://statistics.data.gov.uk/id/local-authority/00EU,FWB,Care Purchase - PD,54440,Direct Payments,552000,21-Aug-14,1900152095,939,Redacted Personal Data,101336
WARRINGTON BOROUGH COUNCIL,http://statistics.data.gov.uk/id/local-authority/00EU,FWB,Care Purchase - Learning Disability,54450,Direct Payments,552000,21-Aug-14,1900152096,4063,Redacted Personal Data,101341
WARRINGTON BOROUGH COUNCIL,http://statistics.data.gov.uk/id/local-authority/00EU,FWB,Care Purchase - PD,54440,Direct Payments,552000,21-Aug-14,1900152097,1231,Redacted Personal Data,101354
WARRINGTON BOROUGH COUNCIL,http://statistics.data.gov.uk/id/local-authority/00EU,FWB,Care Purchase - Learning Disability,54450,Direct Payments,552000,21-Aug-14,1900152098,800,Redacted Personal Data,101396
WARRINGTON BOROUGH COUNCIL,http://statistics.data.gov.uk/id/local-authority/00EU,FWB,Care Purchase - PD,54440,CP - Cont Care - External,441350,21-Aug-14,1900152099,2115,Redacted Personal Data,101407
WARRINGTON BOROUGH COUNCIL,http://statistics.data.gov.uk/id/local-authority/00EU,FWB,Care Purchase - Learning Disability,54450,Direct Payments,552000,21-Aug-14,1900152100,1370,Redacted Personal Data,101420
WARRINGTON BOROUGH COUNCIL,http://statistics.data.gov.uk/id/local-authority/00EU,FWB,Care Purchase - PD,54440,Supporting People - External,441250,21-Aug-14,1900152101,637,Redacted Personal Data,101431
WARRINGTON BOROUGH COUNCIL,http://statistics.data.gov.uk/id/local-authority/00EU,FWB,Care Purchase - PD,54440,Direct Payments,552000,21-Aug-14,1900152101,764,Redacted Personal Data,101431
WARRINGTON BOROUGH COUNCIL,http://statistics.data.gov.uk/id/local-authority/00EU,FWB,Care Purchase - Learning Disability,54450,Direct Payments,552000,21-Aug-14,1900152103,4802,Redacted Personal Data,101472
WARRINGTON BOROUGH COUNCIL,http://statistics.data.gov.uk/id/local-authority/00EU,FWB,Care Purchase - PD,54440,Direct Payments,552000,21-Aug-14,1900152104,637,Redacted Personal Data,101483
WARRINGTON BOROUGH COUNCIL,http://statistics.data.gov.uk/id/local-authority/00EU,FWB,Care Purchase - PD,54440,Direct Payments,552000,21-Aug-14,1900152105,729,Redacted Personal Data,101515
WARRINGTON BOROUGH COUNCIL,http://statistics.data.gov.uk/id/local-authority/00EU,FWB,Care Purchase - Learning Disability,54450,Direct Payments,552000,21-Aug-14,1900152106,2401,Redacted Personal Data,101516
WARRINGTON BOROUGH COUNCIL,http://statistics.data.gov.uk/id/local-authority/00EU,FWB,Care Purchase - PD,54440,Direct Payments,552000,21-Aug-14,1900152108,912,Redacted Personal Data,101541
WARRINGTON BOROUGH COUNCIL,http://statistics.data.gov.uk/id/local-authority/00EU,FWB,Care Purchase - ABI,54260,Direct Payments,552000,21-Aug-14,1900152109,849,Redacted Personal Data,101542
WARRINGTON BOROUGH COUNCIL,http://statistics.data.gov.uk/id/local-authority/00EU,FWB,Care Purchase - Learning Disability,54450,Direct Payments,552000,21-Aug-14,1900152110,934,Redacted Personal Data,101547
WARRINGTON BOROUGH COUNCIL,http://statistics.data.gov.uk/id/local-authority/00EU,FWB,Care Purchase - PD,54440,Direct Payments,552000,21-Aug-14,1900152112,509,Redacted Personal Data,101558
WARRINGTON BOROUGH COUNCIL,http://statistics.data.gov.uk/id/local-authority/00EU,FWB,Care Purchase - Learning Disability,54450,Direct Payments,552000,21-Aug-14,1900152113,2462,Redacted Personal Data,101568
WARRINGTON BOROUGH COUNCIL,http://statistics.data.gov.uk/id/local-authority/00EU,FWB,Care Purchase - Learning Disability,54450,Direct Payments,552000,21-Aug-14,1900152114,1698,Redacted Personal Data,101584
WARRINGTON BOROUGH COUNCIL,http://statistics.data.gov.uk/id/local-authority/00EU,FWB,Care Purchase - OP & OT West,54470,Direct Payments,552000,21-Aug-14,1900152115,856,Redacted Personal Data,101592
WARRINGTON BOROUGH COUNCIL,http://statistics.data.gov.uk/id/local-authority/00EU,FWB,Child Disability,32212,Direct Payments,552000,21-Aug-14,1900152116,622,Redacted Personal Data,101595
WARRINGTON BOROUGH COUNCIL,http://statistics.data.gov.uk/id/local-authority/00EU,FWB,Care Purchase - Learning Disability,54450,Direct Payments,552000,21-Aug-14,1900152117,1629,Redacted Personal Data,101614
WARRINGTON BOROUGH COUNCIL,http://statistics.data.gov.uk/id/local-authority/00EU,FWB,Care Purchase - Learning Disability,54450,Direct Payments,552000,21-Aug-14,1900152118,1019,Redacted Personal Data,101625
WARRINGTON BOROUGH COUNCIL,http://statistics.data.gov.uk/id/local-authority/00EU,FWB,Child Disability,32212,CP - Cont Care - External,441350,21-Aug-14,1900152120,580,Redacted Personal Data,101630
WARRINGTON BOROUGH COUNCIL,http://statistics.data.gov.uk/id/local-authority/00EU,FWB,Child Disability,32212,Direct Payments,552000,21-Aug-14,1900152120,580,Redacted Personal Data,101630
WARRINGTON BOROUGH COUNCIL,http://statistics.data.gov.uk/id/local-authority/00EU,FWB,Care Purchase - PD,54440,Direct Payments,552000,21-Aug-14,1900152123,560,Redacted Personal Data,101677
WARRINGTON BOROUGH COUNCIL,http://statistics.data.gov.uk/id/local-authority/00EU,FWB,Care Purchase - Learning Disability,54450,Direct Payments,552000,21-Aug-14,1900152124,2177,Redacted Personal Data,101686
WARRINGTON BOROUGH COUNCIL,http://statistics.data.gov.uk/id/local-authority/00EU,FWB,Care Purchase - Learning Disability,54450,Direct Payments,552000,21-Aug-14,1900152125,3533,Redacted Personal Data,101701
WARRINGTON BOROUGH COUNCIL,http://statistics.data.gov.uk/id/local-authority/00EU,FWB,Care Purchase - Learning Disability,54450,Direct Payments,552000,21-Aug-14,1900152126,3533,Redacted Personal Data,101704
WARRINGTON BOROUGH COUNCIL,http://statistics.data.gov.uk/id/local-authority/00EU,FWB,Care Purchase - Learning Disability,54450,Direct Payments,552000,21-Aug-14,1900152127,1347,Redacted Personal Data,101730
WARRINGTON BOROUGH COUNCIL,http://statistics.data.gov.uk/id/local-authority/00EU,FWB,Care Purchase - Learning Disability,54450,Direct Payments,552000,21-Aug-14,1900152128,687,Redacted Personal Data,101748
WARRINGTON BOROUGH COUNCIL,http://statistics.data.gov.uk/id/local-authority/00EU,FWB,Child Disability,32212,Direct Payments,552000,21-Aug-14,1900152130,1002,Redacted Personal Data,101758
WARRINGTON BOROUGH COUNCIL,http://statistics.data.gov.uk/id/local-authority/00EU,FWB,Care Purchase - Learning Disability,54450,Direct Payments,552000,21-Aug-14,1900152131,509,Redacted Personal Data,101759
WARRINGTON BOROUGH COUNCIL,http://statistics.data.gov.uk/id/local-authority/00EU,FWB,Care Purchase - OP & OT Central,54420,Direct Payments,552000,21-Aug-14,1900152132,1949,Redacted Personal Data,101808
WARRINGTON BOROUGH COUNCIL,http://statistics.data.gov.uk/id/local-authority/00EU,FWB,Care Purchase - OP & OT South,54480,Direct Payments,552000,21-Aug-14,1900152133,912,Redacted Personal Data,101825
WARRINGTON BOROUGH COUNCIL,http://statistics.data.gov.uk/id/local-authority/00EU,FWB,Care Purchase - Learning Disability,54450,CP - Cont Care - External,441350,21-Aug-14,1900152135,785,Redacted Personal Data,101849
WARRINGTON BOROUGH COUNCIL,http://statistics.data.gov.uk/id/local-authority/00EU,FWB,Care Purchase - Learning Disability,54450,Direct Payments,552000,21-Aug-14,1900152135,785,Redacted Personal Data,101849
WARRINGTON BOROUGH COUNCIL,http://statistics.data.gov.uk/id/local-authority/00EU,FWB,Care Purchase - PD,54440,Direct Payments,552000,21-Aug-14,1900152138,524,Redacted Personal Data,102010
WARRINGTON BOROUGH COUNCIL,http://statistics.data.gov.uk/id/local-authority/00EU,FWB,Child Disability,32212,Direct Payments,552000,21-Aug-14,1900152140,510,Redacted Personal Data,102107
WARRINGTON BOROUGH COUNCIL,http://statistics.data.gov.uk/id/local-authority/00EU,FWB,Care Purchase - OP & OT Central,54420,Direct Payments,552000,21-Aug-14,1900152142,610,Redacted Personal Data,102183
WARRINGTON BOROUGH COUNCIL,http://statistics.data.gov.uk/id/local-authority/00EU,FWB,Care Purchase - Learning Disability,54450,Direct Payments,552000,21-Aug-14,1900152143,542,Redacted Personal Data,102225
WARRINGTON BOROUGH COUNCIL,http://statistics.data.gov.uk/id/local-authority/00EU,FWB,Care Purchase - Learning Disability,54450,Direct Payments,552000,21-Aug-14,1900152144,1103,Redacted Personal Data,102348
WARRINGTON BOROUGH COUNCIL,http://statistics.data.gov.uk/id/local-authority/00EU,FWB,Care Purchase - Learning Disability,54450,Direct Payments,552000,21-Aug-14,1900152145,1011,Redacted Personal Data,102547
WARRINGTON BOROUGH COUNCIL,http://statistics.data.gov.uk/id/local-authority/00EU,FWB,Care Purchase - Learning Disability,54450,Direct Payments,552000,21-Aug-14,1900152150,721,Redacted Personal Data,102667
WARRINGTON BOROUGH COUNCIL,http://statistics.data.gov.uk/id/local-authority/00EU,FWB,Care Purchase - Learning Disability,54450,Direct Payments,552000,21-Aug-14,1900152151,1273,Redacted Personal Data,102710
WARRINGTON BOROUGH COUNCIL,http://statistics.data.gov.uk/id/local-authority/00EU,FWB,Care Purchase - Learning Disability,54450,Direct Payments,552000,21-Aug-14,1900152152,849,Redacted Personal Data,102718
WARRINGTON BOROUGH COUNCIL,http://statistics.data.gov.uk/id/local-authority/00EU,FWB,Care Purchase - Learning Disability,54450,Direct Payments,552000,21-Aug-14,1900152153,900,Redacted Personal Data,102759
WARRINGTON BOROUGH COUNCIL,http://statistics.data.gov.uk/id/local-authority/00EU,FWB,Care Purchase - PD,54440,Direct Payments,552000,21-Aug-14,1900152160,935,Redacted Personal Data,103320
WARRINGTON BOROUGH COUNCIL,http://statistics.data.gov.uk/id/local-authority/00EU,FWB,Care Purchase - PD,54440,CP - Cont Care - External,441350,21-Aug-14,1900152161,1584,Redacted Personal Data,103372
WARRINGTON BOROUGH COUNCIL,http://statistics.data.gov.uk/id/local-authority/00EU,FWB,Care Purchase - PD,54440,Direct Payments,552000,21-Aug-14,1900152161,1485,Redacted Personal Data,103372
WARRINGTON BOROUGH COUNCIL,http://statistics.data.gov.uk/id/local-authority/00EU,FWB,Care Purchase - PD,54440,Direct Payments,552000,21-Aug-14,1900152162,1732,Redacted Personal Data,103404
WARRINGTON BOROUGH COUNCIL,http://statistics.data.gov.uk/id/local-authority/00EU,FWB,Care Purchase - Learning Disability,54450,Direct Payments,552000,21-Aug-14,1900152166,696,Redacted Personal Data,103573
WARRINGTON BOROUGH COUNCIL,http://statistics.data.gov.uk/id/local-authority/00EU,FWB,Care Purchase - PD,54440,Direct Payments,552000,21-Aug-14,1900152169,1500,Redacted Personal Data,103593
WARRINGTON BOROUGH COUNCIL,http://statistics.data.gov.uk/id/local-authority/00EU,FWB,Care Purchase - Learning Disability,54450,Direct Payments,552000,21-Aug-14,1900152170,1167,Redacted Personal Data,103611
WARRINGTON BOROUGH COUNCIL,http://statistics.data.gov.uk/id/local-authority/00EU,FWB,Care Purchase - PD,54440,Direct Payments,552000,21-Aug-14,1900152171,1594,Redacted Personal Data,103613
WARRINGTON BOROUGH COUNCIL,http://statistics.data.gov.uk/id/local-authority/00EU,FWB,Care Purchase - Learning Disability,54450,Direct Payments,552000,21-Aug-14,1900152172,1401,Redacted Personal Data,103614
WARRINGTON BOROUGH COUNCIL,http://statistics.data.gov.uk/id/local-authority/00EU,FWB,Care Purchase - Learning Disability,54450,Direct Payments,552000,21-Aug-14,1900152174,964,Redacted Personal Data,103660
WARRINGTON BOROUGH COUNCIL,http://statistics.data.gov.uk/id/local-authority/00EU,FWB,Care Purchase - PD,54440,Direct Payments,552000,21-Aug-14,1900152175,679,Redacted Personal Data,103674
WARRINGTON BOROUGH COUNCIL,http://statistics.data.gov.uk/id/local-authority/00EU,FWB,Care Purchase - Learning Disability,54450,Direct Payments,552000,21-Aug-14,1900152176,2060,Redacted Personal Data,103696
WARRINGTON BOROUGH COUNCIL,http://statistics.data.gov.uk/id/local-authority/00EU,FWB,Care Purchase - Learning Disability,54450,Direct Payments,552000,21-Aug-14,1900152177,1378,Redacted Personal Data,103697
WARRINGTON BOROUGH COUNCIL,http://statistics.data.gov.uk/id/local-authority/00EU,FWB,Care Purchase - Learning Disability,54450,Direct Payments,552000,21-Aug-14,1900152183,9177,Redacted Personal Data,103771
WARRINGTON BOROUGH COUNCIL,http://statistics.data.gov.uk/id/local-authority/00EU,FWB,Care Purchase - PD,54440,Supporting People - External,441250,21-Aug-14,1900152184,849,Redacted Personal Data,103794
WARRINGTON BOROUGH COUNCIL,http://statistics.data.gov.uk/id/local-authority/00EU,FWB,Child Disability,32212,Direct Payments,552000,21-Aug-14,1900152185,502,Redacted Personal Data,103820
WARRINGTON BOROUGH COUNCIL,http://statistics.data.gov.uk/id/local-authority/00EU,FWB,Care Purchase - PD,54440,Direct Payments,552000,21-Aug-14,1900152192,1179,Redacted Personal Data,104205
WARRINGTON BOROUGH COUNCIL,http://statistics.data.gov.uk/id/local-authority/00EU,FWB,Care Purchase - PD,54440,Direct Payments,552000,21-Aug-14,1900152194,849,Redacted Personal Data,104327
WARRINGTON BOROUGH COUNCIL,http://statistics.data.gov.uk/id/local-authority/00EU,FWB,Care Purchase - Learning Disability,54450,Direct Payments,552000,21-Aug-14,1900152196,1240,Redacted Personal Data,105576
WARRINGTON BOROUGH COUNCIL,http://statistics.data.gov.uk/id/local-authority/00EU,FWB,Care Purchase - Learning Disability,54450,Direct Payments,552000,21-Aug-14,1900152198,538,Redacted Personal Data,105598
WARRINGTON BOROUGH COUNCIL,http://statistics.data.gov.uk/id/local-authority/00EU,FWB,Care Purchase - Learning Disability,54450,Direct Payments,552000,21-Aug-14,1900152199,956,Redacted Personal Data,105621
WARRINGTON BOROUGH COUNCIL,http://statistics.data.gov.uk/id/local-authority/00EU,FWB,Care Purchase - Learning Disability,54450,CP - Cont Care - External,441350,21-Aug-14,1900152203,638,Redacted Personal Data,105625
WARRINGTON BOROUGH COUNCIL,http://statistics.data.gov.uk/id/local-authority/00EU,FWB,Care Purchase - Learning Disability,54450,Direct Payments,552000,21-Aug-14,1900152208,669,Redacted Personal Data,105641
WARRINGTON BOROUGH COUNCIL,http://statistics.data.gov.uk/id/local-authority/00EU,FWB,Care Purchase - PD,54440,Direct Payments,552000,21-Aug-14,1900152209,784,Redacted Personal Data,105665
WARRINGTON BOROUGH COUNCIL,http://statistics.data.gov.uk/id/local-authority/00EU,FWB,Care Purchase - OP & OT Central,54420,Direct Payments,552000,21-Aug-14,1900152210,576,Redacted Personal Data,105666
WARRINGTON BOROUGH COUNCIL,http://statistics.data.gov.uk/id/local-authority/00EU,FWB,Care Purchase AMH,54135,Direct Payments,552000,21-Aug-14,1900152213,1570,Redacted Personal Data,105687
WARRINGTON BOROUGH COUNCIL,http://statistics.data.gov.uk/id/local-authority/00EU,FWB,Care Purchase - PD,54440,Direct Payments,552000,21-Aug-14,1900152216,849,Redacted Personal Data,105758
WARRINGTON BOROUGH COUNCIL,http://statistics.data.gov.uk/id/local-authority/00EU,FWB,Care Purchase - OP & OT Central,54420,Direct Payments,552000,21-Aug-14,1900152217,834,Redacted Personal Data,105861
WARRINGTON BOROUGH COUNCIL,http://statistics.data.gov.uk/id/local-authority/00EU,FWB,Care Purchase - Learning Disability,54450,Direct Payments,552000,21-Aug-14,1900152220,637,Redacted Personal Data,106066
WARRINGTON BOROUGH COUNCIL,http://statistics.data.gov.uk/id/local-authority/00EU,FWB,Care Purchase - PD,54440,Direct Payments,552000,21-Aug-14,1900152222,538,Redacted Personal Data,106145
WARRINGTON BOROUGH COUNCIL,http://statistics.data.gov.uk/id/local-authority/00EU,FWB,Care Purchase - OP & OT West,54470,Direct Payments,552000,21-Aug-14,1900152224,706,Redacted Personal Data,106441
WARRINGTON BOROUGH COUNCIL,http://statistics.data.gov.uk/id/local-authority/00EU,FWB,Care Purchase - PD,54440,Direct Payments,552000,21-Aug-14,1900152228,855,Redacted Personal Data,106630
WARRINGTON BOROUGH COUNCIL,http://statistics.data.gov.uk/id/local-authority/00EU,FWB,Child Disability,32212,Direct Payments,552000,21-Aug-14,1900152230,687,Redacted Personal Data,106708
WARRINGTON BOROUGH COUNCIL,http://statistics.data.gov.uk/id/local-authority/00EU,FWB,Care Purchase - Learning Disability,54450,Direct Payments,552000,21-Aug-14,1900152233,668,Redacted Personal Data,106866
WARRINGTON BOROUGH COUNCIL,http://statistics.data.gov.uk/id/local-authority/00EU,FWB,Care Purchase - PD,54440,Direct Payments,552000,21-Aug-14,1900152240,606,Redacted Personal Data,107299
WARRINGTON BOROUGH COUNCIL,http://statistics.data.gov.uk/id/local-authority/00EU,FWB,Care Purchase -OP & OT East,54430,Direct Payments,552000,21-Aug-14,1900152242,842,Redacted Personal Data,107436
WARRINGTON BOROUGH COUNCIL,http://statistics.data.gov.uk/id/local-authority/00EU,FWB,Care Purchase - Learning Disability,54450,Direct Payments,552000,21-Aug-14,1900152243,1202,Redacted Personal Data,107437
WARRINGTON BOROUGH COUNCIL,http://statistics.data.gov.uk/id/local-authority/00EU,FWB,Care Purchase - PD,54440,Direct Payments,552000,21-Aug-14,1900152246,1019,Redacted Personal Data,107665
WARRINGTON BOROUGH COUNCIL,http://statistics.data.gov.uk/id/local-authority/00EU,FWB,Care Purchase - OP & OT Central,54420,Direct Payments,552000,21-Aug-14,1900152255,637,Redacted Personal Data,107960
WARRINGTON BOROUGH COUNCIL,http://statistics.data.gov.uk/id/local-authority/00EU,FWB,Care Purchase - PD,54440,Direct Payments,552000,21-Aug-14,1900152259,949,Redacted Personal Data,112510
WARRINGTON BOROUGH COUNCIL,http://statistics.data.gov.uk/id/local-authority/00EU,FWB,Care Purchase - Learning Disability,54450,Direct Payments,552000,21-Aug-14,1900152262,857,Redacted Personal Data,460054
WARRINGTON BOROUGH COUNCIL,http://statistics.data.gov.uk/id/local-authority/00EU,FWB,Care Purchase - ABI,54260,Direct Payments,552000,21-Aug-14,1900152263,560,Redacted Personal Data,460066
WARRINGTON BOROUGH COUNCIL,http://statistics.data.gov.uk/id/local-authority/00EU,FWB,Care Purchase - Learning Disability,54450,CP - Cont Care - External,441350,21-Aug-14,1900152265,1889,Redacted Personal Data,460091
WARRINGTON BOROUGH COUNCIL,http://statistics.data.gov.uk/id/local-authority/00EU,FWB,Care Purchase - Learning Disability,54450,Direct Payments,552000,21-Aug-14,1900152265,1889,Redacted Personal Data,460091
WARRINGTON BOROUGH COUNCIL,http://statistics.data.gov.uk/id/local-authority/00EU,FWB,Care Purchase - PD,54440,Direct Payments,552000,21-Aug-14,1900152266,679,Redacted Personal Data,460097
WARRINGTON BOROUGH COUNCIL,http://statistics.data.gov.uk/id/local-authority/00EU,FWB,Child Disability,32212,Direct Payments,552000,21-Aug-14,1900152267,977,Redacted Personal Data,460112
WARRINGTON BOROUGH COUNCIL,http://statistics.data.gov.uk/id/local-authority/00EU,FWB,Care Purchase - Learning Disability,54450,Direct Payments,552000,21-Aug-14,1900152268,5335,Redacted Personal Data,460113
WARRINGTON BOROUGH COUNCIL,http://statistics.data.gov.uk/id/local-authority/00EU,FWB,Care Purchase - PD,54440,Direct Payments,552000,21-Aug-14,1900152269,1698,Redacted Personal Data,460127
WARRINGTON BOROUGH COUNCIL,http://statistics.data.gov.uk/id/local-authority/00EU,FWB,Child Disability,32212,Direct Payments,552000,21-Aug-14,1900152270,1510,Redacted Personal Data,460139
WARRINGTON BOROUGH COUNCIL,http://statistics.data.gov.uk/id/local-authority/00EU,FWB,Child Disability,32212,Direct Payments,552000,21-Aug-14,1900152274,666,Redacted Personal Data,460160
WARRINGTON BOROUGH COUNCIL,http://statistics.data.gov.uk/id/local-authority/00EU,FWB,Care Purchase -OP & OT East,54430,Direct Payments,552000,21-Aug-14,1900152277,820,Redacted Personal Data,460165
WARRINGTON BOROUGH COUNCIL,http://statistics.data.gov.uk/id/local-authority/00EU,FWB,Care Purchase - Learning Disability,54450,Direct Payments,552000,21-Aug-14,1900152280,1013,Redacted Personal Data,460172
WARRINGTON BOROUGH COUNCIL,http://statistics.data.gov.uk/id/local-authority/00EU,FWB,Care Purchase - Learning Disability,54450,Direct Payments,552000,21-Aug-14,1900152282,770,Redacted Personal Data,460177
WARRINGTON BOROUGH COUNCIL,http://statistics.data.gov.uk/id/local-authority/00EU,FWB,Care Purchase - Learning Disability,54450,Direct Payments,552000,21-Aug-14,1900152283,1387,Redacted Personal Data,460182
WARRINGTON BOROUGH COUNCIL,http://statistics.data.gov.uk/id/local-authority/00EU,FWB,Care Purchase - PD,54440,Direct Payments,552000,21-Aug-14,1900152286,539,Redacted Personal Data,460192
WARRINGTON BOROUGH COUNCIL,http://statistics.data.gov.uk/id/local-authority/00EU,FWB,Care Purchase - Learning Disability,54450,Direct Payments,552000,21-Aug-14,1900152287,1000,Redacted Personal Data,460195
WARRINGTON BOROUGH COUNCIL,http://statistics.data.gov.uk/id/local-authority/00EU,FWB,Care Purchase - Learning Disability,54450,Direct Payments,552000,21-Aug-14,1900152288,720,Redacted Personal Data,460199
WARRINGTON BOROUGH COUNCIL,http://statistics.data.gov.uk/id/local-authority/00EU,FWB,Care Purchase - Learning Disability,54450,Direct Payments,552000,21-Aug-14,1900152289,520,Redacted Personal Data,460202
WARRINGTON BOROUGH COUNCIL,http://statistics.data.gov.uk/id/local-authority/00EU,FWB,Care Purchase - Learning Disability,54450,Direct Payments,552000,21-Aug-14,1900152291,7667,Redacted Personal Data,460210
WARRINGTON BOROUGH COUNCIL,http://statistics.data.gov.uk/id/local-authority/00EU,FWB,Care Purchase - PD,54440,Direct Payments,552000,21-Aug-14,1900152293,915,Redacted Personal Data,460214
WARRINGTON BOROUGH COUNCIL,http://statistics.data.gov.uk/id/local-authority/00EU,FWB,Care Purchase -OP & OT East,54430,Direct Payments,552000,21-Aug-14,1900152295,1455,Redacted Personal Data,460218
WARRINGTON BOROUGH COUNCIL,http://statistics.data.gov.uk/id/local-authority/00EU,FWB,Care Purchase - OP & OT Central,54420,Direct Payments,552000,21-Aug-14,1900152296,1272,Redacted Personal Data,460222
WARRINGTON BOROUGH COUNCIL,http://statistics.data.gov.uk/id/local-authority/00EU,FWB,Child Disability,32212,Direct Payments,552000,21-Aug-14,1900152298,866,Redacted Personal Data,460224
WARRINGTON BOROUGH COUNCIL,http://statistics.data.gov.uk/id/local-authority/00EU,FWB,Care Purchase - PD,54440,Direct Payments,552000,21-Aug-14,1900152299,817,Redacted Personal Data,460226
WARRINGTON BOROUGH COUNCIL,http://statistics.data.gov.uk/id/local-authority/00EU,FWB,Care Purchase - Learning Disability,54450,Direct Payments,552000,21-Aug-14,1900152300,721,Redacted Personal Data,460229
WARRINGTON BOROUGH COUNCIL,http://statistics.data.gov.uk/id/local-authority/00EU,FWB,Care Purchase - OP & OT Central,54420,Direct Payments,552000,21-Aug-14,1900152303,714,Redacted Personal Data,460238
WARRINGTON BOROUGH COUNCIL,http://statistics.data.gov.uk/id/local-authority/00EU,FWB,Care Purchase - PD,54440,Direct Payments,552000,21-Aug-14,1900152305,959,Redacted Personal Data,460243
WARRINGTON BOROUGH COUNCIL,http://statistics.data.gov.uk/id/local-authority/00EU,FWB,Child Disability,32212,Direct Payments,552000,21-Aug-14,1900152307,680,Redacted Personal Data,460248
WARRINGTON BOROUGH COUNCIL,http://statistics.data.gov.uk/id/local-authority/00EU,FWB,Care Purchase - PD,54440,Direct Payments,552000,21-Aug-14,1900152312,2798,Redacted Personal Data,460257
WARRINGTON BOROUGH COUNCIL,http://statistics.data.gov.uk/id/local-authority/00EU,FWB,Care Purchase - Learning Disability,54450,Direct Payments,552000,21-Aug-14,1900152314,5131,Redacted Personal Data,460263
WARRINGTON BOROUGH COUNCIL,http://statistics.data.gov.uk/id/local-authority/00EU,FWB,Care Purchase - OP & OT Central,54420,Direct Payments,552000,21-Aug-14,1900152316,661,Redacted Personal Data,460265
WARRINGTON BOROUGH COUNCIL,http://statistics.data.gov.uk/id/local-authority/00EU,FWB,Care Purchase - OP & OT Central,54420,Direct Payments,552000,21-Aug-14,1900152317,829,Redacted Personal Data,460266
WARRINGTON BOROUGH COUNCIL,http://statistics.data.gov.uk/id/local-authority/00EU,FWB,Care Purchase - PD,54440,Direct Payments,552000,21-Aug-14,1900152319,1613,Redacted Personal Data,460269
WARRINGTON BOROUGH COUNCIL,http://statistics.data.gov.uk/id/local-authority/00EU,FWB,Care Purchase - PD,54440,Direct Payments,552000,21-Aug-14,1900152320,550,Redacted Personal Data,460270
WARRINGTON BOROUGH COUNCIL,http://statistics.data.gov.uk/id/local-authority/00EU,FWB,Care Purchase - OP & OT West,54470,Direct Payments,552000,21-Aug-14,1900152321,1702,Redacted Personal Data,460273
WARRINGTON BOROUGH COUNCIL,http://statistics.data.gov.uk/id/local-authority/00EU,FWB,Care Purchase - Learning Disability,54450,Direct Payments,552000,21-Aug-14,1900152322,849,Redacted Personal Data,460275
WARRINGTON BOROUGH COUNCIL,http://statistics.data.gov.uk/id/local-authority/00EU,FWB,Care Purchase - PD,54440,Direct Payments,552000,21-Aug-14,1900152323,849,Redacted Personal Data,460278
WARRINGTON BOROUGH COUNCIL,http://statistics.data.gov.uk/id/local-authority/00EU,FWB,Care Purchase - Learning Disability,54450,Direct Payments,552000,21-Aug-14,1900152324,520,Redacted Personal Data,460279
WARRINGTON BOROUGH COUNCIL,http://statistics.data.gov.uk/id/local-authority/00EU,FWB,Care Purchase - Learning Disability,54450,Direct Payments,552000,21-Aug-14,1900152325,921,Redacted Personal Data,460281
WARRINGTON BOROUGH COUNCIL,http://statistics.data.gov.uk/id/local-authority/00EU,FWB,Care Purchase - OP & OT South,54480,Direct Payments,552000,21-Aug-14,1900152327,1304,Redacted Personal Data,460283
WARRINGTON BOROUGH COUNCIL,http://statistics.data.gov.uk/id/local-authority/00EU,FWB,Care Purchase - Learning Disability,54450,Direct Payments,552000,21-Aug-14,1900152329,1841,Redacted Personal Data,460286
WARRINGTON BOROUGH COUNCIL,http://statistics.data.gov.uk/id/local-authority/00EU,FWB,Care Purchase - Learning Disability,54450,Direct Payments,552000,21-Aug-14,1900152330,1889,Redacted Personal Data,460290
WARRINGTON BOROUGH COUNCIL,http://statistics.data.gov.uk/id/local-authority/00EU,FWB,Care Purchase - ABI,54260,Direct Payments,552000,21-Aug-14,1900152333,1273,Redacted Personal Data,460295
WARRINGTON BOROUGH COUNCIL,http://statistics.data.gov.uk/id/local-authority/00EU,FWB,Care Purchase - PD,54440,Direct Payments,552000,21-Aug-14,1900152334,934,Redacted Personal Data,460297
WARRINGTON BOROUGH COUNCIL,http://statistics.data.gov.uk/id/local-authority/00EU,FWB,Care Purchase - Learning Disability,54450,Direct Payments,552000,21-Aug-14,1900152339,1489,Redacted Personal Data,460316
WARRINGTON BOROUGH COUNCIL,http://statistics.data.gov.uk/id/local-authority/00EU,FWB,Care Purchase - PD,54440,Direct Payments,552000,21-Aug-14,1900152342,1194,Redacted Personal Data,460324
WARRINGTON BOROUGH COUNCIL,http://statistics.data.gov.uk/id/local-authority/00EU,FWB,Care Purchase - PD,54440,Direct Payments,552000,21-Aug-14,1900152345,2788,Redacted Personal Data,460329
WARRINGTON BOROUGH COUNCIL,http://statistics.data.gov.uk/id/local-authority/00EU,FWB,Care Purchase - Learning Disability,54450,Direct Payments,552000,21-Aug-14,1900152346,545,Redacted Personal Data,460330
WARRINGTON BOROUGH COUNCIL,http://statistics.data.gov.uk/id/local-authority/00EU,FWB,Care Purchase - OP & OT West,54470,Direct Payments,552000,21-Aug-14,1900152349,564,Redacted Personal Data,460418
WARRINGTON BOROUGH COUNCIL,http://statistics.data.gov.uk/id/local-authority/00EU,FWB,Care Purchase - Learning Disability,54450,Direct Payments,552000,21-Aug-14,1900152351,1202,Redacted Personal Data,460425
WARRINGTON BOROUGH COUNCIL,http://statistics.data.gov.uk/id/local-authority/00EU,FWB,Care Purchase - PD,54440,Direct Payments,552000,21-Aug-14,1900152354,1443,Redacted Personal Data,460430
WARRINGTON BOROUGH COUNCIL,http://statistics.data.gov.uk/id/local-authority/00EU,FWB,Care Purchase -OP & OT East,54430,Direct Payments,552000,21-Aug-14,1900152359,748,Redacted Personal Data,460446
WARRINGTON BOROUGH COUNCIL,http://statistics.data.gov.uk/id/local-authority/00EU,FWB,Care Purchase - OP & OT West,54470,Direct Payments,552000,21-Aug-14,1900152361,774,Redacted Personal Data,460454
WARRINGTON BOROUGH COUNCIL,http://statistics.data.gov.uk/id/local-authority/00EU,FWB,Care Purchase - PD,54440,Direct Payments,552000,21-Aug-14,1900152363,719,Redacted Personal Data,460457
WARRINGTON BOROUGH COUNCIL,http://statistics.data.gov.uk/id/local-authority/00EU,FWB,Care Purchase AMH,54135,Direct Payments,552000,21-Aug-14,1900152364,509,Redacted Personal Data,460463
WARRINGTON BOROUGH COUNCIL,http://statistics.data.gov.uk/id/local-authority/00EU,FWB,Care Purchase - PD,54440,Direct Payments,552000,21-Aug-14,1900152365,668,Redacted Personal Data,460468
WARRINGTON BOROUGH COUNCIL,http://statistics.data.gov.uk/id/local-authority/00EU,FWB,Care Purchase - PD,54440,Direct Payments,552000,21-Aug-14,1900152369,637,Redacted Personal Data,460482
WARRINGTON BOROUGH COUNCIL,http://statistics.data.gov.uk/id/local-authority/00EU,FWB,Care Purchase - PD,54440,Direct Payments,552000,21-Aug-14,1900152372,685,Redacted Personal Data,460509
WARRINGTON BOROUGH COUNCIL,http://statistics.data.gov.uk/id/local-authority/00EU,FWB,Care Purchase - Learning Disability,54450,Direct Payments,552000,21-Aug-14,1900152375,1616,Redacted Personal Data,460514
WARRINGTON BOROUGH COUNCIL,http://statistics.data.gov.uk/id/local-authority/00EU,FWB,Care Purchase - PD,54440,Direct Payments,552000,21-Aug-14,1900152376,1141,Redacted Personal Data,460518
WARRINGTON BOROUGH COUNCIL,http://statistics.data.gov.uk/id/local-authority/00EU,FWB,Care Purchase - Learning Disability,54450,Direct Payments,552000,21-Aug-14,1900152377,1188,Redacted Personal Data,460519
WARRINGTON BOROUGH COUNCIL,http://statistics.data.gov.uk/id/local-authority/00EU,FWB,Care Purchase AMH,54135,Direct Payments,552000,21-Aug-14,1900152378,978,Redacted Personal Data,460520
WARRINGTON BOROUGH COUNCIL,http://statistics.data.gov.uk/id/local-authority/00EU,FWB,Care Purchase - PD,54440,Direct Payments,552000,21-Aug-14,1900152382,659,Redacted Personal Data,460545
WARRINGTON BOROUGH COUNCIL,http://statistics.data.gov.uk/id/local-authority/00EU,FWB,Care Purchase - Learning Disability,54450,Direct Payments,552000,21-Aug-14,1900152384,2466,Redacted Personal Data,460566
WARRINGTON BOROUGH COUNCIL,http://statistics.data.gov.uk/id/local-authority/00EU,FWB,Care Purchase - PD,54440,Direct Payments,552000,21-Aug-14,1900152385,615,Redacted Personal Data,460568
WARRINGTON BOROUGH COUNCIL,http://statistics.data.gov.uk/id/local-authority/00EU,FWB,Care Purchase - PD,54440,Direct Payments,552000,21-Aug-14,1900152387,1591,Redacted Personal Data,460576
WARRINGTON BOROUGH COUNCIL,http://statistics.data.gov.uk/id/local-authority/00EU,FWB,Care Purchase - PD,54440,Direct Payments,552000,21-Aug-14,1900152390,838,Redacted Personal Data,460581
WARRINGTON BOROUGH COUNCIL,http://statistics.data.gov.uk/id/local-authority/00EU,FWB,Care Purchase - PD,54440,Direct Payments,552000,21-Aug-14,1900152397,1178,Redacted Personal Data,460622
WARRINGTON BOROUGH COUNCIL,http://statistics.data.gov.uk/id/local-authority/00EU,FWB,Care Purchase - PD,54440,Direct Payments,552000,21-Aug-14,1900152398,753,Redacted Personal Data,460623
WARRINGTON BOROUGH COUNCIL,http://statistics.data.gov.uk/id/local-authority/00EU,FWB,Care Purchase - Learning Disability,54450,Direct Payments,552000,21-Aug-14,1900152399,2550,Redacted Personal Data,460625
WARRINGTON BOROUGH COUNCIL,http://statistics.data.gov.uk/id/local-authority/00EU,FWB,Care Purchase - PD,54440,Direct Payments,552000,21-Aug-14,1900152401,902,Redacted Personal Data,460638
WARRINGTON BOROUGH COUNCIL,http://statistics.data.gov.uk/id/local-authority/00EU,FWB,Care Purchase - Learning Disability,54450,Direct Payments,552000,21-Aug-14,1900152402,1188,Redacted Personal Data,460665
WARRINGTON BOROUGH COUNCIL,http://statistics.data.gov.uk/id/local-authority/00EU,FWB,Care Purchase AMH,54135,Direct Payments,552000,21-Aug-14,1900152403,679,Redacted Personal Data,460671
WARRINGTON BOROUGH COUNCIL,http://statistics.data.gov.uk/id/local-authority/00EU,FWB,Care Purchase - OP & OT West,54470,Direct Payments,552000,21-Aug-14,1900152405,533,Redacted Personal Data,460682
WARRINGTON BOROUGH COUNCIL,http://statistics.data.gov.uk/id/local-authority/00EU,FWB,Care Purchase - PD,54440,Direct Payments,552000,21-Aug-14,1900152407,552,Redacted Personal Data,460684
WARRINGTON BOROUGH COUNCIL,http://statistics.data.gov.uk/id/local-authority/00EU,FWB,Care Purchase - OP & OT West,54470,Direct Payments,552000,21-Aug-14,1900152410,601,Redacted Personal Data,460699
WARRINGTON BOROUGH COUNCIL,http://statistics.data.gov.uk/id/local-authority/00EU,FWB,Care Purchase - PD,54440,Direct Payments,552000,21-Aug-14,1900152413,881,Redacted Personal Data,460703
WARRINGTON BOROUGH COUNCIL,http://statistics.data.gov.uk/id/local-authority/00EU,FWB,Care Purchase - Learning Disability,54450,Direct Payments,552000,21-Aug-14,1900152416,11453,Redacted Personal Data,460725
WARRINGTON BOROUGH COUNCIL,http://statistics.data.gov.uk/id/local-authority/00EU,FWB,Care Purchase - PD,54440,Direct Payments,552000,21-Aug-14,1900152417,707,Redacted Personal Data,460726
WARRINGTON BOROUGH COUNCIL,http://statistics.data.gov.uk/id/local-authority/00EU,FWB,Care Purchase - OP & OT Central,54420,Direct Payments,552000,21-Aug-14,1900152418,646,Redacted Personal Data,460727
WARRINGTON BOROUGH COUNCIL,http://statistics.data.gov.uk/id/local-authority/00EU,FWB,Care Purchase - OP & OT South,54480,Direct Payments,552000,21-Aug-14,1900152422,744,Redacted Personal Data,460737
WARRINGTON BOROUGH COUNCIL,http://statistics.data.gov.uk/id/local-authority/00EU,FWB,Care Purchase AMH,54135,Direct Payments,552000,21-Aug-14,1900152424,763,Redacted Personal Data,460748
WARRINGTON BOROUGH COUNCIL,http://statistics.data.gov.uk/id/local-authority/00EU,FWB,Care Purchase - Learning Disability,54450,Direct Payments,552000,21-Aug-14,1900152425,790,Redacted Personal Data,460749
WARRINGTON BOROUGH COUNCIL,http://statistics.data.gov.uk/id/local-authority/00EU,FWB,Care Purchase - OP & OT West,54470,Direct Payments,552000,21-Aug-14,1900152426,872,Redacted Personal Data,460752
WARRINGTON BOROUGH COUNCIL,http://statistics.data.gov.uk/id/local-authority/00EU,FWB,Care Purchase - Learning Disability,54450,Direct Payments,552000,21-Aug-14,1900152433,1524,Redacted Personal Data,460765
WARRINGTON BOROUGH COUNCIL,http://statistics.data.gov.uk/id/local-authority/00EU,FWB,Care Purchase - Learning Disability,54450,Direct Payments,552000,21-Aug-14,1900152434,1629,Redacted Personal Data,460779
WARRINGTON BOROUGH COUNCIL,http://statistics.data.gov.uk/id/local-authority/00EU,FWB,Care Purchase - OP & OT West,54470,Direct Payments,552000,21-Aug-14,1900152436,704,Redacted Personal Data,460785
WARRINGTON BOROUGH COUNCIL,http://statistics.data.gov.uk/id/local-authority/00EU,FWB,Care Purchase - Learning Disability,54450,Direct Payments,552000,21-Aug-14,1900152439,594,Redacted Personal Data,460804
WARRINGTON BOROUGH COUNCIL,http://statistics.data.gov.uk/id/local-authority/00EU,FWB,Care Purchase - OP & OT West,54470,Direct Payments,552000,21-Aug-14,1900152443,517,Redacted Personal Data,460809
WARRINGTON BOROUGH COUNCIL,http://statistics.data.gov.uk/id/local-authority/00EU,FWB,Care Purchase -OP & OT East,54430,Direct Payments,552000,21-Aug-14,1900152447,784,Redacted Personal Data,460818
WARRINGTON BOROUGH COUNCIL,http://statistics.data.gov.uk/id/local-authority/00EU,FWB,Care Purchase - PD,54440,Direct Payments,552000,21-Aug-14,1900152449,976,Redacted Personal Data,460850
WARRINGTON BOROUGH COUNCIL,http://statistics.data.gov.uk/id/local-authority/00EU,FWB,Care Purchase - PD,54440,Direct Payments,552000,21-Aug-14,1900152450,1380,Redacted Personal Data,460853
WARRINGTON BOROUGH COUNCIL,http://statistics.data.gov.uk/id/local-authority/00EU,FWB,Care Purchase - OP & OT Central,54420,Direct Payments,552000,21-Aug-14,1900152451,576,Redacted Personal Data,460854
WARRINGTON BOROUGH COUNCIL,http://statistics.data.gov.uk/id/local-authority/00EU,FWB,Care Purchase - Learning Disability,54450,CP - Cont Care - External,441350,21-Aug-14,1900152452,1973,Redacted Personal Data,460859
WARRINGTON BOROUGH COUNCIL,http://statistics.data.gov.uk/id/local-authority/00EU,FWB,Care Purchase - Learning Disability,54450,Direct Payments,552000,21-Aug-14,1900152452,1973,Redacted Personal Data,460859
WARRINGTON BOROUGH COUNCIL,http://statistics.data.gov.uk/id/local-authority/00EU,FWB,Care Purchase - Learning Disability,54450,Direct Payments,552000,21-Aug-14,1900152456,679,Redacted Personal Data,460867
WARRINGTON BOROUGH COUNCIL,http://statistics.data.gov.uk/id/local-authority/00EU,FWB,Care Purchase - Learning Disability,54450,Direct Payments,552000,21-Aug-14,1900152458,1875,Redacted Personal Data,460879
WARRINGTON BOROUGH COUNCIL,http://statistics.data.gov.uk/id/local-authority/00EU,FWB,Care Purchase - Learning Disability,54450,Direct Payments,552000,21-Aug-14,1900152459,592,Redacted Personal Data,460884
WARRINGTON BOROUGH COUNCIL,http://statistics.data.gov.uk/id/local-authority/00EU,FWB,Care Purchase - PD,54440,Direct Payments,552000,21-Aug-14,1900152466,503,Redacted Personal Data,460913
WARRINGTON BOROUGH COUNCIL,http://statistics.data.gov.uk/id/local-authority/00EU,FWB,Care Purchase - OP & OT Central,54420,Direct Payments,552000,21-Aug-14,1900152467,1170,Redacted Personal Data,460918
WARRINGTON BOROUGH COUNCIL,http://statistics.data.gov.uk/id/local-authority/00EU,FWB,Care Purchase - PD,54440,Direct Payments,552000,21-Aug-14,1900152468,721,Redacted Personal Data,460919
WARRINGTON BOROUGH COUNCIL,http://statistics.data.gov.uk/id/local-authority/00EU,FWB,Care Purchase AMH,54135,Direct Payments,552000,21-Aug-14,1900152470,615,Redacted Personal Data,460924
WARRINGTON BOROUGH COUNCIL,http://statistics.data.gov.uk/id/local-authority/00EU,FWB,Care Purchase - PD,54440,Direct Payments,552000,21-Aug-14,1900152474,1167,Redacted Personal Data,460939
WARRINGTON BOROUGH COUNCIL,http://statistics.data.gov.uk/id/local-authority/00EU,FWB,Care Purchase - OP & OT West,54470,Direct Payments,552000,21-Aug-14,1900152475,1152,Redacted Personal Data,460950
WARRINGTON BOROUGH COUNCIL,http://statistics.data.gov.uk/id/local-authority/00EU,FWB,Assistant Director - Adult Social Care,54000,Gen. Personal Needs,490850,22-Aug-14,1900152489,5000,Tameside M B,440155
WARRINGTON BOROUGH COUNCIL,http://statistics.data.gov.uk/id/local-authority/00EU,FWB,Homelessness,43650,Training,190150,22-Aug-14,1900152517,970,Chartered Institute of Housing,106826
WARRINGTON BOROUGH COUNCIL,http://statistics.data.gov.uk/id/local-authority/00EU,RSC,Postal & Courier Services,52130,Postages,450000,22-Aug-14,1900152504,1096,Royal Mail,101445
WARRINGTON BOROUGH COUNCIL,http://statistics.data.gov.uk/id/local-authority/00EU,FWB,North West Children's Improvement Prog,31004,Events Costs,490000,22-Aug-14,1900152499,518,Lancashire County Council,410062
WARRINGTON BOROUGH COUNCIL,http://statistics.data.gov.uk/id/local-authority/00EU,FWB,Homelessness,43650,B.& B.Allowances,525050,22-Aug-14,1900152515,980,Mr K Willams Adelphi Vaults,110456
WARRINGTON BOROUGH COUNCIL,http://statistics.data.gov.uk/id/local-authority/00EU,ENO,Housing Projects,82008,Disabled Persons Grant 1996,554000,22-Aug-14,1900152485,2681,Your Housing Group,100233
WARRINGTON BOROUGH COUNCIL,http://statistics.data.gov.uk/id/local-authority/00EU,ENO,Housing Projects,82008,Disabled Persons Grant 1996,554000,22-Aug-14,1900152487,665,Warrington Housing Current Acc,101208
WARRINGTON BOROUGH COUNCIL,http://statistics.data.gov.uk/id/local-authority/00EU,FWB,Homelessness,43650,B.& B.Allowances,525050,22-Aug-14,1900152514,1180,Mr K Willams Adelphi Vaults,110456
WARRINGTON BOROUGH COUNCIL,http://statistics.data.gov.uk/id/local-authority/00EU,ENO,Housing Projects,82008,Disabled Persons Grant 1996,554000,22-Aug-14,1900152493,1066,Total Plumbing Solutions,102587
WARRINGTON BOROUGH COUNCIL,http://statistics.data.gov.uk/id/local-authority/00EU,FWB,Care Purchase - Learning Disability,54450,CP Adult Placement,443450,22-Aug-14,1900152482,503,Redacted Personal Data,102916
WARRINGTON BOROUGH COUNCIL,http://statistics.data.gov.uk/id/local-authority/00EU,FWB,Foster Allowances,31106,Fostering Allowance,550050,22-Aug-14,1900152510,714,Redacted Personal Data,460828
WARRINGTON BOROUGH COUNCIL,http://statistics.data.gov.uk/id/local-authority/00EU,FWB,Sankey,31313,Materials,400500,26-Aug-14,1900152547,680,A & R Decorators,113527
WARRINGTON BOROUGH COUNCIL,http://statistics.data.gov.uk/id/local-authority/00EU,HOL,Single Billing Holding Account,91130,Agency Supply - GF,180000,26-Aug-14,1900152523,49708,Hays Specialist Recruitment Ltd,107512
WARRINGTON BOROUGH COUNCIL,http://statistics.data.gov.uk/id/local-authority/00EU,HOL,Single Billing Holding Account,91130,Agency Supply - GF,180000,26-Aug-14,1900152522,52655,Hays Specialist Recruitment Ltd,107512
WARRINGTON BOROUGH COUNCIL,http://statistics.data.gov.uk/id/local-authority/00EU,FWB,Adoption Reform Grant,31117,Agency Supply - GF,180000,26-Aug-14,1900152533,1463,Venn Group Limited,113471
WARRINGTON BOROUGH COUNCIL,http://statistics.data.gov.uk/id/local-authority/00EU,RSC,Building Safer Communities,16000,Security Systems,250000,26-Aug-14,1900152541,129800,Police and Crime Commissioner Chesh,104596
WARRINGTON BOROUGH COUNCIL,http://statistics.data.gov.uk/id/local-authority/00EU,FWB,EIG Funding - Dallam Childrens Centre,31511,NNDR,230000,26-Aug-14,1900152525,7536,Warrington Borough Council,440006
WARRINGTON BOROUGH COUNCIL,http://statistics.data.gov.uk/id/local-authority/00EU,ENO,Housing Projects,82008,Disabled Persons Grant 1996,554000,26-Aug-14,1900152558,3516,Hughes & Hilton Pilling Ltd,113543
WARRINGTON BOROUGH COUNCIL,http://statistics.data.gov.uk/id/local-authority/00EU,ENO,Housing Projects,82008,Disabled Persons Grant 1996,554000,26-Aug-14,1900152536,3565,Reilly Brothers Builders,111223
WARRINGTON BOROUGH COUNCIL,http://statistics.data.gov.uk/id/local-authority/00EU,EG0,Site Management,43530,Building Work,200850,26-Aug-14,1900152552,1036,SP Manweb PLC,105411
WARRINGTON BOROUGH COUNCIL,http://statistics.data.gov.uk/id/local-authority/00EU,FWB,Care Purchase - Learning Disability,54450,CP Adult Placement,443450,26-Aug-14,1900152545,1556,Redacted Personal Data,101175
WARRINGTON BOROUGH COUNCIL,http://statistics.data.gov.uk/id/local-authority/00EU,FWB,Care Purchase - PD,54440,CP Adult Placement,443450,26-Aug-14,1900152548,1556,Redacted Personal Data,460225
WARRINGTON BOROUGH COUNCIL,http://statistics.data.gov.uk/id/local-authority/00EU,FWB,Care Purchase - Learning Disability,54450,CP Adult Placement,443450,26-Aug-14,1900152549,1962,Redacted Personal Data,460332
WARRINGTON BOROUGH COUNCIL,http://statistics.data.gov.uk/id/local-authority/00EU,FWB,Care Purchase - Learning Disability,54450,CP Adult Placement,443450,26-Aug-14,1900152550,1556,Redacted Personal Data,100044
WARRINGTON BOROUGH COUNCIL,http://statistics.data.gov.uk/id/local-authority/00EU,FWB,Care Purchase - Learning Disability,54450,CP Adult Placement,443450,26-Aug-14,1900152551,1556,Redacted Personal Data,460115
WARRINGTON BOROUGH COUNCIL,http://statistics.data.gov.uk/id/local-authority/00EU,FWB,Care Purchase - PD,54440,CP Adult Placement,443450,26-Aug-14,1900152553,3112,Redacted Personal Data,460030
WARRINGTON BOROUGH COUNCIL,http://statistics.data.gov.uk/id/local-authority/00EU,FWB,Care Purchase - PD,54440,CP Adult Placement,443450,26-Aug-14,1900152554,3231,Redacted Personal Data,102249
WARRINGTON BOROUGH COUNCIL,http://statistics.data.gov.uk/id/local-authority/00EU,FWB,Foster Allowances,31106,Fostering Allowance,550050,26-Aug-14,1900152539,600,Redacted Personal Data,460201
WARRINGTON BOROUGH COUNCIL,http://statistics.data.gov.uk/id/local-authority/00EU,FWB,Foster Allowances,31106,Fostering Allowance,550050,26-Aug-14,1900152542,506,Redacted Personal Data,460201
WARRINGTON BOROUGH COUNCIL,http://statistics.data.gov.uk/id/local-authority/00EU,FWB,Care Purchase - PD,54440,CP-LongStayExternal,441150,27-Aug-14,1900152589,2502,Spinal Unit Action Group,110574
WARRINGTON BOROUGH COUNCIL,http://statistics.data.gov.uk/id/local-authority/00EU,FWB,Care Purchase AMH,54135,CP-Domicil.External,440950,27-Aug-14,1900152587,1149,Next Stage A Way Forward Ltd,101217
WARRINGTON BOROUGH COUNCIL,http://statistics.data.gov.uk/id/local-authority/00EU,FWB,SCM Green Lane Special School,33171,Response Maintenance,200000,27-Aug-14,1900152636,555,Hoult Group Services,111129
WARRINGTON BOROUGH COUNCIL,http://statistics.data.gov.uk/id/local-authority/00EU,FWB,SCM St Ann's Primary School,33108,Response Maintenance,200000,27-Aug-14,1900152640,607,Hoult Group Services,111129
WARRINGTON BOROUGH COUNCIL,http://statistics.data.gov.uk/id/local-authority/00EU,FWB,SCM St Helen's Primary School,33158,Response Maintenance,200000,27-Aug-14,1900152646,784,Hoult Group Services,111129
WARRINGTON BOROUGH COUNCIL,http://statistics.data.gov.uk/id/local-authority/00EU,FWB,SCM Grappenhall Hall Special School,33173,Response Maintenance,200000,27-Aug-14,1900152635,660,Hoult Group Services,111129
WARRINGTON BOROUGH COUNCIL,http://statistics.data.gov.uk/id/local-authority/00EU,FWB,Care Purchase - OP & OT Central,54420,CP-Domicil.External,440950,27-Aug-14,1900152568,2469,Castlerock Recruitment Group,105279
WARRINGTON BOROUGH COUNCIL,http://statistics.data.gov.uk/id/local-authority/00EU,FWB,Care Purchase - OP & OT South,54480,CP-Domicil.External,440950,27-Aug-14,1900152568,697,Castlerock Recruitment Group,105279
WARRINGTON BOROUGH COUNCIL,http://statistics.data.gov.uk/id/local-authority/00EU,FWB,Care Purchase -OP & OT East,54430,CP-Domicil.External,440950,27-Aug-14,1900152568,659,Castlerock Recruitment Group,105279
WARRINGTON BOROUGH COUNCIL,http://statistics.data.gov.uk/id/local-authority/00EU,FWB,Care Purchase - PD,54440,CP-Domicil.External,440950,27-Aug-14,1900152568,1474,Castlerock Recruitment Group,105279
WARRINGTON BOROUGH COUNCIL,http://statistics.data.gov.uk/id/local-authority/00EU,FWB,Care Purchase - OP & OT Central,54420,CP-Domicil.External,440950,27-Aug-14,1900152569,2525,Castlerock Recruitment Group,105279
WARRINGTON BOROUGH COUNCIL,http://statistics.data.gov.uk/id/local-authority/00EU,FWB,Care Purchase - OP & OT South,54480,CP-Domicil.External,440950,27-Aug-14,1900152569,639,Castlerock Recruitment Group,105279
WARRINGTON BOROUGH COUNCIL,http://statistics.data.gov.uk/id/local-authority/00EU,FWB,Care Purchase -OP & OT East,54430,CP-Domicil.External,440950,27-Aug-14,1900152569,637,Castlerock Recruitment Group,105279
WARRINGTON BOROUGH COUNCIL,http://statistics.data.gov.uk/id/local-authority/00EU,FWB,Care Purchase - PD,54440,CP-Domicil.External,440950,27-Aug-14,1900152569,1425,Castlerock Recruitment Group,105279
WARRINGTON BOROUGH COUNCIL,http://statistics.data.gov.uk/id/local-authority/00EU,FWB,Care Purchase - OP & OT Central,54420,CP-Domicil.External,440950,27-Aug-14,1900152570,2437,Castlerock Recruitment Group,105279
WARRINGTON BOROUGH COUNCIL,http://statistics.data.gov.uk/id/local-authority/00EU,FWB,Care Purchase - OP & OT South,54480,CP-Domicil.External,440950,27-Aug-14,1900152570,646,Castlerock Recruitment Group,105279
WARRINGTON BOROUGH COUNCIL,http://statistics.data.gov.uk/id/local-authority/00EU,FWB,Care Purchase -OP & OT East,54430,CP-Domicil.External,440950,27-Aug-14,1900152570,586,Castlerock Recruitment Group,105279
WARRINGTON BOROUGH COUNCIL,http://statistics.data.gov.uk/id/local-authority/00EU,FWB,Care Purchase - PD,54440,CP-Domicil.External,440950,27-Aug-14,1900152570,1474,Castlerock Recruitment Group,105279
WARRINGTON BOROUGH COUNCIL,http://statistics.data.gov.uk/id/local-authority/00EU,FWB,Care Purchase - OP & OT Central,54420,CP-Domicil.External,440950,27-Aug-14,1900152571,2315,Castlerock Recruitment Group,105279
WARRINGTON BOROUGH COUNCIL,http://statistics.data.gov.uk/id/local-authority/00EU,FWB,Care Purchase - OP & OT South,54480,CP-Domicil.External,440950,27-Aug-14,1900152571,641,Castlerock Recruitment Group,105279
WARRINGTON BOROUGH COUNCIL,http://statistics.data.gov.uk/id/local-authority/00EU,FWB,Care Purchase -OP & OT East,54430,CP-Domicil.External,440950,27-Aug-14,1900152571,546,Castlerock Recruitment Group,105279
WARRINGTON BOROUGH COUNCIL,http://statistics.data.gov.uk/id/local-authority/00EU,FWB,Care Purchase - PD,54440,CP-Domicil.External,440950,27-Aug-14,1900152571,1414,Castlerock Recruitment Group,105279
WARRINGTON BOROUGH COUNCIL,http://statistics.data.gov.uk/id/local-authority/00EU,FWB,Care Purchase Budget,54490,Direct Payments,552000,27-Aug-14,1900152663,519,Advanced Payment Solutions Limited,109731
WARRINGTON BOROUGH COUNCIL,http://statistics.data.gov.uk/id/local-authority/00EU,FWB,Care Purchase - OP & OT South,54480,CP-Nursing Care-External,441200,27-Aug-14,1900152577,2332,East Dunbartonshire Council,410087
WARRINGTON BOROUGH COUNCIL,http://statistics.data.gov.uk/id/local-authority/00EU,FWB,DAAT (PCT Funded),53820,Consult.& Prof. Serv,440000,27-Aug-14,1900152625,4363,Bond Dickenson LLP,113180
WARRINGTON BOROUGH COUNCIL,http://statistics.data.gov.uk/id/local-authority/00EU,EG0,Local Bus Contracts,44430,Consult.& Prof. Serv,440000,27-Aug-14,1900152579,6319,GMPTIL,101780
WARRINGTON BOROUGH COUNCIL,http://statistics.data.gov.uk/id/local-authority/00EU,FWB,Care Purchase - Learning Disability,54450,CP-Day Care-External,441100,27-Aug-14,1900152593,872,Wigan Council,410018
WARRINGTON BOROUGH COUNCIL,http://statistics.data.gov.uk/id/local-authority/00EU,FWB,Care Purchase - Learning Disability,54450,CP-Day Care-External,441100,27-Aug-14,1900152592,654,Wigan Council,410018
WARRINGTON BOROUGH COUNCIL,http://statistics.data.gov.uk/id/local-authority/00EU,FWB,Care Purchase AMH,54135,CP-Domicil.External,440950,27-Aug-14,1900152576,10227,Continuum Support Ltd,112065
WARRINGTON BOROUGH COUNCIL,http://statistics.data.gov.uk/id/local-authority/00EU,FWB,Care Purchase AMH,54135,CP-Domicil.External,440950,27-Aug-14,1900152575,11932,Continuum Support Ltd,112065
WARRINGTON BOROUGH COUNCIL,http://statistics.data.gov.uk/id/local-authority/00EU,FWB,Care Purchase AMH,54135,CP-Domicil.External,440950,27-Aug-14,1900152588,5230,SLC Raglin Ltd,111037
WARRINGTON BOROUGH COUNCIL,http://statistics.data.gov.uk/id/local-authority/00EU,FWB,Care Purchase - Learning Disability,54450,CP-Domicil.External,440950,27-Aug-14,1900152578,6566,Future Directions Community Interes,111498
WARRINGTON BOROUGH COUNCIL,http://statistics.data.gov.uk/id/local-authority/00EU,FWB,Care Purchase - Learning Disability,54450,CP-Domicil.External,440950,27-Aug-14,1900152578,1360,Future Directions Community Interes,111498
WARRINGTON BOROUGH COUNCIL,http://statistics.data.gov.uk/id/local-authority/00EU,FWB,Care Purchase Budget,54490,CP ExternalOther Exp,440800,27-Aug-14,1900152581,9889,Heathside Elderly Persons Home,104777
WARRINGTON BOROUGH COUNCIL,http://statistics.data.gov.uk/id/local-authority/00EU,FWB,Care Purchase Budget,54490,CP ExternalOther Exp,440800,27-Aug-14,1900152582,6396,London & Manchester Healthcare Ltd,109185
WARRINGTON BOROUGH COUNCIL,http://statistics.data.gov.uk/id/local-authority/00EU,FWB,Care Purchase Budget,54490,CP ExternalOther Exp,440800,27-Aug-14,1900152590,7318,Thelwall Grange Nursing Home,105174
WARRINGTON BOROUGH COUNCIL,http://statistics.data.gov.uk/id/local-authority/00EU,FWB,Care Purchase -OP & OT East,54430,Direct Payments,552000,27-Aug-14,1900152602,1576,Redacted Personal Data,100907
WARRINGTON BOROUGH COUNCIL,http://statistics.data.gov.uk/id/local-authority/00EU,FWB,Child Disability,32212,Direct Payments,552000,27-Aug-14,1900152605,720,Redacted Personal Data,101826
WARRINGTON BOROUGH COUNCIL,http://statistics.data.gov.uk/id/local-authority/00EU,FWB,Care Purchase - Learning Disability,54450,CP - Cont Care - External,441350,27-Aug-14,1900152606,2438,Redacted Personal Data,101849
WARRINGTON BOROUGH COUNCIL,http://statistics.data.gov.uk/id/local-authority/00EU,FWB,Care Purchase - Learning Disability,54450,CP - Cont Care - External,441350,27-Aug-14,1900152608,3304,Redacted Personal Data,105625
WARRINGTON BOROUGH COUNCIL,http://statistics.data.gov.uk/id/local-authority/00EU,FWB,Care Purchase -OP & OT East,54430,Direct Payments,552000,27-Aug-14,1900152610,3124,Redacted Personal Data,460446
WARRINGTON BOROUGH COUNCIL,http://statistics.data.gov.uk/id/local-authority/00EU,FWB,Care Purchase - OP & OT South,54480,Direct Payments,552000,27-Aug-14,1900152614,1602,Redacted Personal Data,460972
WARRINGTON BOROUGH COUNCIL,http://statistics.data.gov.uk/id/local-authority/00EU,FWB,Care Purchase - Learning Disability,54450,Direct Payments,552000,27-Aug-14,1900152615,9836,Redacted Personal Data,460172
WARRINGTON BOROUGH COUNCIL,http://statistics.data.gov.uk/id/local-authority/00EU,FWB,Care Purchase - PD,54440,Direct Payments,552000,27-Aug-14,1900152618,3368,Redacted Personal Data,460973
WARRINGTON BOROUGH COUNCIL,http://statistics.data.gov.uk/id/local-authority/00EU,FWB,Care Purchase - Learning Disability,54450,Direct Payments,552000,27-Aug-14,1900152619,21546,Redacted Personal Data,460974
WARRINGTON BOROUGH COUNCIL,http://statistics.data.gov.uk/id/local-authority/00EU,FWB,Care Purchase AMH,54135,Direct Payments,552000,27-Aug-14,1900152620,1501,Redacted Personal Data,460975
WARRINGTON BOROUGH COUNCIL,http://statistics.data.gov.uk/id/local-authority/00EU,FWB,Care Purchase - PD,54440,Direct Payments,552000,27-Aug-14,1900152621,1196,Redacted Personal Data,460976
WARRINGTON BOROUGH COUNCIL,http://statistics.data.gov.uk/id/local-authority/00EU,FWB,Care Purchase - OP & OT Central,54420,CP-Nursing Care-External,441200,27-Aug-14,1900152563,1684,BUPA - Bedford Res,104569
WARRINGTON BOROUGH COUNCIL,http://statistics.data.gov.uk/id/local-authority/00EU,FWB,Care Purchase - OP & OT Central,54420,CP-Nursing Care-External,441200,27-Aug-14,1900152566,1684,BUPA - Bedford Res,104569
WARRINGTON BOROUGH COUNCIL,http://statistics.data.gov.uk/id/local-authority/00EU,FWB,Care Purchase - OP & OT Central,54420,CP-Nursing Care-External,441200,27-Aug-14,1900152564,1684,BUPA - Bedford Res,104569
WARRINGTON BOROUGH COUNCIL,http://statistics.data.gov.uk/id/local-authority/00EU,FWB,Care Purchase - OP & OT Central,54420,CP-Nursing Care-External,441200,27-Aug-14,1900152567,1684,BUPA - Bedford Res,104569
WARRINGTON BOROUGH COUNCIL,http://statistics.data.gov.uk/id/local-authority/00EU,FWB,Strategic Director,30000,Events Costs,490000,28-Aug-14,1900152682,630,Warrington Cultural Trust,100957
WARRINGTON BOROUGH COUNCIL,http://statistics.data.gov.uk/id/local-authority/00EU,RSC,Coroners Service,11100,Hire Of Mortuaries,220200,28-Aug-14,1900152707,2038,East Cheshire Nhs Trust,440130
WARRINGTON BOROUGH COUNCIL,http://statistics.data.gov.uk/id/local-authority/00EU,RSC,Coroners Service,11100,Post Mortem Fees-Rep,440250,28-Aug-14,1900152684,693,Redacted Personal Data,112026
WARRINGTON BOROUGH COUNCIL,http://statistics.data.gov.uk/id/local-authority/00EU,RSC,Coroners Service,11100,Post Mortem Fees-Rep,440250,28-Aug-14,1900152691,1316,Dr Suboda M Weerasinghe,105924
WARRINGTON BOROUGH COUNCIL,http://statistics.data.gov.uk/id/local-authority/00EU,RSC,Coroners Service,11100,Post Mortem Fees-Rep,440250,28-Aug-14,1900152692,930,Dr P Simcock,102209
WARRINGTON BOROUGH COUNCIL,http://statistics.data.gov.uk/id/local-authority/00EU,RSC,Coroners Service,11100,Post Mortem Fees-Rep,440250,28-Aug-14,1900152696,803,Dr J Krajacevic,100409
WARRINGTON BOROUGH COUNCIL,http://statistics.data.gov.uk/id/local-authority/00EU,RSC,Coroners Service,11100,Post Mortem Fees-Rep,440250,28-Aug-14,1900152703,1493,Dr S A Hales,100988
WARRINGTON BOROUGH COUNCIL,http://statistics.data.gov.uk/id/local-authority/00EU,RSC,Coroners Service,11100,Post Mortem Fees-Rep,440250,28-Aug-14,1900152705,1490,Dr B.N.A Hamid,100354
WARRINGTON BOROUGH COUNCIL,http://statistics.data.gov.uk/id/local-authority/00EU,RSC,Coroners Service,11100,Post Mortem Fees-Rep,440250,28-Aug-14,1900152709,1266,Dr N Alash,100579
WARRINGTON BOROUGH COUNCIL,http://statistics.data.gov.uk/id/local-authority/00EU,RSC,Coroners Service,11100,Post Mortem Fees-Rep,440250,28-Aug-14,1900152712,3121,Dr Debdeep Dey,106869
WARRINGTON BOROUGH COUNCIL,http://statistics.data.gov.uk/id/local-authority/00EU,HOL,Insurance Fund,91100,Insurance Claims,443400,28-Aug-14,1900152715,5152,Gallagher Bassett International Ltd,104739
WARRINGTON BOROUGH COUNCIL,http://statistics.data.gov.uk/id/local-authority/00EU,RSC,Coroners Service,11100,Post Mortem Fees-Rep,440250,28-Aug-14,1900152718,1307,Dr D Butterworth,100765
WARRINGTON BOROUGH COUNCIL,http://statistics.data.gov.uk/id/local-authority/00EU,RSC,Coroners Service,11100,Post Mortem Fees-Rep,440250,28-Aug-14,1900152719,527,Dr Cheng Li,107950
WARRINGTON BOROUGH COUNCIL,http://statistics.data.gov.uk/id/local-authority/00EU,RSC,Coroners Service,11100,Post Mortem Fees-Rep,440250,28-Aug-14,1900152720,1189,Dr C M Manson,100080
WARRINGTON BOROUGH COUNCIL,http://statistics.data.gov.uk/id/local-authority/00EU,RSC,Coroners Service,11100,Post Mortem Fees-Rep,440250,28-Aug-14,1900152721,2412,Dr A Nicol,104970
WARRINGTON BOROUGH COUNCIL,http://statistics.data.gov.uk/id/local-authority/00EU,RSC,Coroners Service,11100,Removal Bodies & Exc,440350,28-Aug-14,1900152710,799,Funerals from the Heart,113413
WARRINGTON BOROUGH COUNCIL,http://statistics.data.gov.uk/id/local-authority/00EU,RSC,Coroners Service,11100,Post Mortem Fees-Rep,440250,28-Aug-14,1900152706,596,Dr Gk Kokai,100079
WARRINGTON BOROUGH COUNCIL,http://statistics.data.gov.uk/id/local-authority/00EU,RSC,Coroners Service,11100,Post Mortem Fees-Rep,440250,28-Aug-14,1900152716,857,Dr Daniel Crooks,101689
WARRINGTON BOROUGH COUNCIL,http://statistics.data.gov.uk/id/local-authority/00EU,RSC,Coroners Service,11100,Hire Of Mortuaries,220200,28-Aug-14,1900152700,20000,Countess Of Chester Hospital Nhs,440146
WARRINGTON BOROUGH COUNCIL,http://statistics.data.gov.uk/id/local-authority/00EU,RSC,Coroners Service,11100,Post Mortem Fees-Rep,440250,28-Aug-14,1900152694,596,Dr Jo McPartland,106129
WARRINGTON BOROUGH COUNCIL,http://statistics.data.gov.uk/id/local-authority/00EU,FWB,DSG 2 Year Old Trajectory Fund,31602,Learning Resources,400100,28-Aug-14,1900152672,4000,Rosebank Naturegarten,400154
WARRINGTON BOROUGH COUNCIL,http://statistics.data.gov.uk/id/local-authority/00EU,FWB,DSG 2 Year Old Trajectory Fund,31602,Learning Resources,400100,28-Aug-14,1900152678,2000,Wasps Nursery and Link Clubs,400087
WARRINGTON BOROUGH COUNCIL,http://statistics.data.gov.uk/id/local-authority/00EU,FWB,Legal Fees - Safeguarding,30100,Legal Costs Incurred,440200,29-Aug-14,1900152731,570,AVR Transcription Limited,109005
WARRINGTON BOROUGH COUNCIL,http://statistics.data.gov.uk/id/local-authority/00EU,FWB,Home to School Transport,33210,Statemented - Special Unit Pupil Transpo,300750,29-Aug-14,1900152735,966,Courtyard Care Ltd,109673
WARRINGTON BOROUGH COUNCIL,http://statistics.data.gov.uk/id/local-authority/00EU,FWB,Home to School Transport,33210,Statemented - Special Unit Pupil Transpo,300750,29-Aug-14,1900152739,570,Courtyard Care Ltd,109673
WARRINGTON BOROUGH COUNCIL,http://statistics.data.gov.uk/id/local-authority/00EU,FWB,Legal Fees - Safeguarding,30100,Legal Costs Incurred,440200,29-Aug-14,1900152918,1125,Redacted Personal Data,113516
WARRINGTON BOROUGH COUNCIL,http://statistics.data.gov.uk/id/local-authority/00EU,RSC,Reablement/ WP/ ASC Grant c/f,53700,Joint Arrangements,505200,29-Aug-14,1900152904,2139,Warrington And Halton Nhs Ft,440132
WARRINGTON BOROUGH COUNCIL,http://statistics.data.gov.uk/id/local-authority/00EU,COR,Car Leasing Scheme - Salary Sacrifice,52126,Car Leasing Charges,350000,29-Aug-14,1900152729,4545,NHS Foundation Trust,110359
WARRINGTON BOROUGH COUNCIL,http://statistics.data.gov.uk/id/local-authority/00EU,COR,Car Leasing Scheme - Salary Sacrifice,52126,Car Leasing Charges,350000,29-Aug-14,1900152729,739,NHS Foundation Trust,110359
WARRINGTON BOROUGH COUNCIL,http://statistics.data.gov.uk/id/local-authority/00EU,COR,Car Leasing Scheme - Salary Sacrifice,52126,Car Leasing Charges,350000,29-Aug-14,1900152730,3471,NHS Foundation Trust,110359
WARRINGTON BOROUGH COUNCIL,http://statistics.data.gov.uk/id/local-authority/00EU,COR,Car Leasing Scheme - Salary Sacrifice,52126,Car Leasing Charges,350000,29-Aug-14,1900152730,739,NHS Foundation Trust,110359
WARRINGTON BOROUGH COUNCIL,http://statistics.data.gov.uk/id/local-authority/00EU,FWB,DSG 2 Year Old Fund,31601,Payment of Grants,470050,29-Aug-14,1900152844,4278,Burnett Nursery,440143
WARRINGTON BOROUGH COUNCIL,http://statistics.data.gov.uk/id/local-authority/00EU,FWB,DSG 2 Year Old Fund,31601,Payment of Grants,470050,29-Aug-14,1900152845,12135,Busy 0 To 5S (St Nicolas House),400119
WARRINGTON BOROUGH COUNCIL,http://statistics.data.gov.uk/id/local-authority/00EU,FWB,DSG 2 Year Old Fund,31601,Payment of Grants,470050,29-Aug-14,1900152846,4991,Busy Nought To Fives,400120
WARRINGTON BOROUGH COUNCIL,http://statistics.data.gov.uk/id/local-authority/00EU,FWB,DSG 2 Year Old Fund,31601,Payment of Grants,470050,29-Aug-14,1900152847,4278,Butterflys Nursery,107718
WARRINGTON BOROUGH COUNCIL,http://statistics.data.gov.uk/id/local-authority/00EU,FWB,DSG 2 Year Old Fund,31601,Payment of Grants,470050,29-Aug-14,1900152848,4430,Callands Pre-School,112850
WARRINGTON BOROUGH COUNCIL,http://statistics.data.gov.uk/id/local-authority/00EU,FWB,DSG 2 Year Old Fund,31601,Payment of Grants,470050,29-Aug-14,1900152849,4278,Chapel Road Day Nursery,109632
WARRINGTON BOROUGH COUNCIL,http://statistics.data.gov.uk/id/local-authority/00EU,FWB,DSG 2 Year Old Fund,31601,Payment of Grants,470050,29-Aug-14,1900152850,1426,Chapelford Village Nursery & Link C,400101
WARRINGTON BOROUGH COUNCIL,http://statistics.data.gov.uk/id/local-authority/00EU,FWB,DSG 2 Year Old Fund,31601,Payment of Grants,470050,29-Aug-14,1900152851,2139,Redacted Personal Data,112993
WARRINGTON BOROUGH COUNCIL,http://statistics.data.gov.uk/id/local-authority/00EU,FWB,DSG 2 Year Old Fund,31601,Payment of Grants,470050,29-Aug-14,1900152852,11960,Cheshire Day Nursery Guardian St,106265
WARRINGTON BOROUGH COUNCIL,http://statistics.data.gov.uk/id/local-authority/00EU,FWB,DSG 2 Year Old Fund,31601,Payment of Grants,470050,29-Aug-14,1900152853,3565,Kids on top t/a Cotton Tails Nurser,400137
WARRINGTON BOROUGH COUNCIL,http://statistics.data.gov.uk/id/local-authority/00EU,FWB,DSG 2 Year Old Fund,31601,Payment of Grants,470050,29-Aug-14,1900152854,618,Cromdale Way Preschool,400128
WARRINGTON BOROUGH COUNCIL,http://statistics.data.gov.uk/id/local-authority/00EU,FWB,DSG 2 Year Old Fund,31601,Payment of Grants,470050,29-Aug-14,1900152855,4278,Culcheth Day Nursery Ltd,400130
WARRINGTON BOROUGH COUNCIL,http://statistics.data.gov.uk/id/local-authority/00EU,FWB,DSG 2 Year Old Fund,31601,Payment of Grants,470050,29-Aug-14,1900152856,955,Glazebury Pre-School Playgroup,400132
WARRINGTON BOROUGH COUNCIL,http://statistics.data.gov.uk/id/local-authority/00EU,FWB,DSG 2 Year Old Fund,31601,Payment of Grants,470050,29-Aug-14,1900152857,2139,Green Park Nursery,400089
WARRINGTON BOROUGH COUNCIL,http://statistics.data.gov.uk/id/local-authority/00EU,FWB,DSG 2 Year Old Fund,31601,Payment of Grants,470050,29-Aug-14,1900152858,2139,Heathfield House Day Nursery,400138
WARRINGTON BOROUGH COUNCIL,http://statistics.data.gov.uk/id/local-authority/00EU,FWB,DSG 2 Year Old Fund,31601,Payment of Grants,470050,29-Aug-14,1900152859,713,Holly Grange Montessori Nursery Ltd,400236
WARRINGTON BOROUGH COUNCIL,http://statistics.data.gov.uk/id/local-authority/00EU,FWB,DSG 2 Year Old Fund,31601,Payment of Grants,470050,29-Aug-14,1900152860,2139,A & J Tots to Teens Childcare,113264
WARRINGTON BOROUGH COUNCIL,http://statistics.data.gov.uk/id/local-authority/00EU,FWB,DSG 2 Year Old Fund,31601,Payment of Grants,470050,29-Aug-14,1900152861,13168,Kids Planet Warrington,105710
WARRINGTON BOROUGH COUNCIL,http://statistics.data.gov.uk/id/local-authority/00EU,FWB,DSG 2 Year Old Fund,31601,Payment of Grants,470050,29-Aug-14,1900152862,8133,Kids Planet Warrington,105710
WARRINGTON BOROUGH COUNCIL,http://statistics.data.gov.uk/id/local-authority/00EU,FWB,DSG 2 Year Old Fund,31601,Payment of Grants,470050,29-Aug-14,1900152863,12210,Abc 123 Day Nursery Ltd,400152
WARRINGTON BOROUGH COUNCIL,http://statistics.data.gov.uk/id/local-authority/00EU,FWB,DSG 2 Year Old Fund,31601,Payment of Grants,470050,29-Aug-14,1900152864,2139,A & J Tots to Teens Childcare,113264
WARRINGTON BOROUGH COUNCIL,http://statistics.data.gov.uk/id/local-authority/00EU,FWB,DSG 2 Year Old Fund,31601,Payment of Grants,470050,29-Aug-14,1900152865,22577,Birch Grove Day Nursery Ltd,101367
WARRINGTON BOROUGH COUNCIL,http://statistics.data.gov.uk/id/local-authority/00EU,FWB,DSG 2 Year Old Fund,31601,Payment of Grants,470050,29-Aug-14,1900152866,9894,Bloomings Pre-School Day Nursery,400114
WARRINGTON BOROUGH COUNCIL,http://statistics.data.gov.uk/id/local-authority/00EU,FWB,DSG 2 Year Old Fund,31601,Payment of Grants,470050,29-Aug-14,1900152867,2852,Kids Planet Warrington,105710
WARRINGTON BOROUGH COUNCIL,http://statistics.data.gov.uk/id/local-authority/00EU,FWB,DSG 2 Year Old Fund,31601,Payment of Grants,470050,29-Aug-14,1900152868,5296,Wasps Nursery and Link Clubs,400087
WARRINGTON BOROUGH COUNCIL,http://statistics.data.gov.uk/id/local-authority/00EU,FWB,DSG 2 Year Old Fund,31601,Payment of Grants,470050,29-Aug-14,1900152869,9981,Little Acorns Day Nursery,400012
WARRINGTON BOROUGH COUNCIL,http://statistics.data.gov.uk/id/local-authority/00EU,FWB,DSG 2 Year Old Fund,31601,Payment of Grants,470050,29-Aug-14,1900152870,11407,Little Browsers Playgroup,400140
WARRINGTON BOROUGH COUNCIL,http://statistics.data.gov.uk/id/local-authority/00EU,FWB,DSG 2 Year Old Fund,31601,Payment of Grants,470050,29-Aug-14,1900152871,4350,Little Penguins Day Nursery,110768
WARRINGTON BOROUGH COUNCIL,http://statistics.data.gov.uk/id/local-authority/00EU,FWB,DSG 2 Year Old Fund,31601,Payment of Grants,470050,29-Aug-14,1900152872,6417,Little Treasures Nursery Ltd,400091
WARRINGTON BOROUGH COUNCIL,http://statistics.data.gov.uk/id/local-authority/00EU,FWB,DSG 2 Year Old Fund,31601,Payment of Grants,470050,29-Aug-14,1900152873,3066,Locking Stumps Day Nursery,400142
WARRINGTON BOROUGH COUNCIL,http://statistics.data.gov.uk/id/local-authority/00EU,FWB,DSG 2 Year Old Fund,31601,Payment of Grants,470050,29-Aug-14,1900152874,2139,Locking Stumps Pre School,400008
WARRINGTON BOROUGH COUNCIL,http://statistics.data.gov.uk/id/local-authority/00EU,FWB,DSG 2 Year Old Fund,31601,Payment of Grants,470050,29-Aug-14,1900152875,1141,Lymm Village Preschool,400146
WARRINGTON BOROUGH COUNCIL,http://statistics.data.gov.uk/id/local-authority/00EU,FWB,DSG 2 Year Old Fund,31601,Payment of Grants,470050,29-Aug-14,1900152876,713,Redacted Personal Data,113283
WARRINGTON BOROUGH COUNCIL,http://statistics.data.gov.uk/id/local-authority/00EU,FWB,DSG 2 Year Old Fund,31601,Payment of Grants,470050,29-Aug-14,1900152877,873,Redacted Personal Data,110817
WARRINGTON BOROUGH COUNCIL,http://statistics.data.gov.uk/id/local-authority/00EU,FWB,DSG 2 Year Old Fund,31601,Payment of Grants,470050,29-Aug-14,1900152878,1283,Newchurch Pre-School Limited,400148
WARRINGTON BOROUGH COUNCIL,http://statistics.data.gov.uk/id/local-authority/00EU,FWB,DSG 2 Year Old Fund,31601,Payment of Grants,470050,29-Aug-14,1900152879,4111,Old Hall Pre School,400017
WARRINGTON BOROUGH COUNCIL,http://statistics.data.gov.uk/id/local-authority/00EU,FWB,DSG 2 Year Old Fund,31601,Payment of Grants,470050,29-Aug-14,1900152880,2994,Wasps Nursery and Link Clubs,400087
WARRINGTON BOROUGH COUNCIL,http://statistics.data.gov.uk/id/local-authority/00EU,FWB,DSG 2 Year Old Fund,31601,Payment of Grants,470050,29-Aug-14,1900152881,5704,Play Days Pre-School,400016
WARRINGTON BOROUGH COUNCIL,http://statistics.data.gov.uk/id/local-authority/00EU,FWB,DSG 2 Year Old Fund,31601,Payment of Grants,470050,29-Aug-14,1900152882,4991,Puddleducks Day Nursery,400001
WARRINGTON BOROUGH COUNCIL,http://statistics.data.gov.uk/id/local-authority/00EU,FWB,DSG 2 Year Old Fund,31601,Payment of Grants,470050,29-Aug-14,1900152883,4278,Rainbow Day Nursery,400153
WARRINGTON BOROUGH COUNCIL,http://statistics.data.gov.uk/id/local-authority/00EU,FWB,DSG 2 Year Old Fund,31601,Payment of Grants,470050,29-Aug-14,1900152884,1426,Risley Day Nursery,400081
WARRINGTON BOROUGH COUNCIL,http://statistics.data.gov.uk/id/local-authority/00EU,FWB,DSG 2 Year Old Fund,31601,Payment of Grants,470050,29-Aug-14,1900152885,713,Rosebank Naturegarten,400154
WARRINGTON BOROUGH COUNCIL,http://statistics.data.gov.uk/id/local-authority/00EU,FWB,DSG 2 Year Old Fund,31601,Payment of Grants,470050,29-Aug-14,1900152886,1426,Safe Hands Nursery,400086
WARRINGTON BOROUGH COUNCIL,http://statistics.data.gov.uk/id/local-authority/00EU,FWB,DSG 2 Year Old Fund,31601,Payment of Grants,470050,29-Aug-14,1900152887,713,St Mary's Pre School,400159
WARRINGTON BOROUGH COUNCIL,http://statistics.data.gov.uk/id/local-authority/00EU,FWB,DSG 2 Year Old Fund,31601,Payment of Grants,470050,29-Aug-14,1900152888,713,St Matthews Pre-School Group,400160
WARRINGTON BOROUGH COUNCIL,http://statistics.data.gov.uk/id/local-authority/00EU,FWB,DSG 2 Year Old Fund,31601,Payment of Grants,470050,29-Aug-14,1900152890,12833,The Cheshire Day Nursery,400013
WARRINGTON BOROUGH COUNCIL,http://statistics.data.gov.uk/id/local-authority/00EU,FWB,DSG 2 Year Old Fund,31601,Payment of Grants,470050,29-Aug-14,1900152891,29656,The Lakes Nursery,101036
WARRINGTON BOROUGH COUNCIL,http://statistics.data.gov.uk/id/local-authority/00EU,FWB,DSG 2 Year Old Fund,31601,Payment of Grants,470050,29-Aug-14,1900152892,4088,The Little Lot Nursery,400141
WARRINGTON BOROUGH COUNCIL,http://statistics.data.gov.uk/id/local-authority/00EU,FWB,DSG 2 Year Old Fund,31601,Payment of Grants,470050,29-Aug-14,1900152893,1426,The Quays Day Nursery,105052
WARRINGTON BOROUGH COUNCIL,http://statistics.data.gov.uk/id/local-authority/00EU,FWB,DSG 2 Year Old Fund,31601,Payment of Grants,470050,29-Aug-14,1900152894,2852,Rosebank Naturegarten,400154
WARRINGTON BOROUGH COUNCIL,http://statistics.data.gov.uk/id/local-authority/00EU,FWB,DSG 2 Year Old Fund,31601,Payment of Grants,470050,29-Aug-14,1900152895,2292,Thelwall Pre-School,400010
WARRINGTON BOROUGH COUNCIL,http://statistics.data.gov.uk/id/local-authority/00EU,FWB,DSG 2 Year Old Fund,31601,Payment of Grants,470050,29-Aug-14,1900152896,15801,Tiggy-Winkles Day Nursery,400082
WARRINGTON BOROUGH COUNCIL,http://statistics.data.gov.uk/id/local-authority/00EU,FWB,DSG 2 Year Old Fund,31601,Payment of Grants,470050,29-Aug-14,1900152897,1426,Warren Pre-School Playgroup,400176
WARRINGTON BOROUGH COUNCIL,http://statistics.data.gov.uk/id/local-authority/00EU,FWB,DSG 2 Year Old Fund,31601,Payment of Grants,470050,29-Aug-14,1900152898,2139,Warrington Day Nursery,400002
WARRINGTON BOROUGH COUNCIL,http://statistics.data.gov.uk/id/local-authority/00EU,FWB,DSG 2 Year Old Fund,31601,Payment of Grants,470050,29-Aug-14,1900152899,3094,Willows Pre-School Nursery,400094
WARRINGTON BOROUGH COUNCIL,http://statistics.data.gov.uk/id/local-authority/00EU,FWB,DSG 2 Year Old Fund,31601,Payment of Grants,470050,29-Aug-14,1900152900,5704,Wind in the Willows,400168
WARRINGTON BOROUGH COUNCIL,http://statistics.data.gov.uk/id/local-authority/00EU,FWB,DSG 2 Year Old Fund,31601,Payment of Grants,470050,29-Aug-14,1900152901,7290,Wind in The Willows Childcare,112697
WARRINGTON BOROUGH COUNCIL,http://statistics.data.gov.uk/id/local-authority/00EU,FWB,DSG 2 Year Old Fund,31601,Payment of Grants,470050,29-Aug-14,1900152902,713,Redacted Personal Data,107904
WARRINGTON BOROUGH COUNCIL,http://statistics.data.gov.uk/id/local-authority/00EU,FWB,DSG Early Years PVI Settings,32417,Private & Voluntary 3 Year Olds,470100,29-Aug-14,1900152756,10200,Abc 123 Day Nursery Ltd,400152
WARRINGTON BOROUGH COUNCIL,http://statistics.data.gov.uk/id/local-authority/00EU,FWB,DSG Early Years PVI Settings,32417,Private & Voluntary 3 Year Olds,470100,29-Aug-14,1900152757,9965,Abc Pre-School Limited,400009
WARRINGTON BOROUGH COUNCIL,http://statistics.data.gov.uk/id/local-authority/00EU,FWB,DSG Early Years PVI Settings,32417,Private & Voluntary 3 Year Olds,470100,29-Aug-14,1900152758,586,Redacted Personal Data,113455
WARRINGTON BOROUGH COUNCIL,http://statistics.data.gov.uk/id/local-authority/00EU,FWB,DSG Early Years PVI Settings,32417,Private & Voluntary 3 Year Olds,470100,29-Aug-14,1900152759,1893,Appleton Thorn Pre School,400111
WARRINGTON BOROUGH COUNCIL,http://statistics.data.gov.uk/id/local-authority/00EU,FWB,DSG Early Years PVI Settings,32417,Private & Voluntary 3 Year Olds,470100,29-Aug-14,1900152760,711,Redacted Personal Data,111661
WARRINGTON BOROUGH COUNCIL,http://statistics.data.gov.uk/id/local-authority/00EU,FWB,DSG Early Years PVI Settings,32417,Private & Voluntary 3 Year Olds,470100,29-Aug-14,1900152761,8297,Birch Grove Day Nursery Ltd,101367
WARRINGTON BOROUGH COUNCIL,http://statistics.data.gov.uk/id/local-authority/00EU,FWB,DSG Early Years PVI Settings,32417,Private & Voluntary 3 Year Olds,470100,29-Aug-14,1900152762,7993,Bloomings Pre-School Day Nursery,400114
WARRINGTON BOROUGH COUNCIL,http://statistics.data.gov.uk/id/local-authority/00EU,FWB,DSG Early Years PVI Settings,32417,Private & Voluntary 3 Year Olds,470100,29-Aug-14,1900152763,6345,Burnett Nursery,440143
WARRINGTON BOROUGH COUNCIL,http://statistics.data.gov.uk/id/local-authority/00EU,FWB,DSG Early Years PVI Settings,32417,Private & Voluntary 3 Year Olds,470100,29-Aug-14,1900152764,13238,Busy 0 To 5S (St Nicolas House),400119
WARRINGTON BOROUGH COUNCIL,http://statistics.data.gov.uk/id/local-authority/00EU,FWB,DSG Early Years PVI Settings,32417,Private & Voluntary 3 Year Olds,470100,29-Aug-14,1900152765,28306,Busy Nought To Fives,400120
WARRINGTON BOROUGH COUNCIL,http://statistics.data.gov.uk/id/local-authority/00EU,FWB,DSG Early Years PVI Settings,32417,Private & Voluntary 3 Year Olds,470100,29-Aug-14,1900152766,8860,Butterflys Nursery,107718
WARRINGTON BOROUGH COUNCIL,http://statistics.data.gov.uk/id/local-authority/00EU,FWB,DSG Early Years PVI Settings,32417,Private & Voluntary 3 Year Olds,470100,29-Aug-14,1900152767,10539,Callands Pre-School,112850
WARRINGTON BOROUGH COUNCIL,http://statistics.data.gov.uk/id/local-authority/00EU,FWB,DSG Early Years PVI Settings,32417,Private & Voluntary 3 Year Olds,470100,29-Aug-14,1900152768,4880,Chapel Road Day Nursery,109632
WARRINGTON BOROUGH COUNCIL,http://statistics.data.gov.uk/id/local-authority/00EU,FWB,DSG Early Years PVI Settings,32417,Private & Voluntary 3 Year Olds,470100,29-Aug-14,1900152769,19131,Chapelford Village Nursery & Link C,400101
WARRINGTON BOROUGH COUNCIL,http://statistics.data.gov.uk/id/local-authority/00EU,FWB,DSG Early Years PVI Settings,32417,Private & Voluntary 3 Year Olds,470100,29-Aug-14,1900152770,16170,Cheshire Day Nursery Guardian St,106265
WARRINGTON BOROUGH COUNCIL,http://statistics.data.gov.uk/id/local-authority/00EU,FWB,DSG Early Years PVI Settings,32417,Private & Voluntary 3 Year Olds,470100,29-Aug-14,1900152771,24402,Kids on top t/a Cotton Tails Nurser,400137
WARRINGTON BOROUGH COUNCIL,http://statistics.data.gov.uk/id/local-authority/00EU,FWB,DSG Early Years PVI Settings,32417,Private & Voluntary 3 Year Olds,470100,29-Aug-14,1900152772,7707,Croft Early Years Centre,105880
WARRINGTON BOROUGH COUNCIL,http://statistics.data.gov.uk/id/local-authority/00EU,FWB,DSG Early Years PVI Settings,32417,Private & Voluntary 3 Year Olds,470100,29-Aug-14,1900152773,12140,Croft Village Pre School,109167
WARRINGTON BOROUGH COUNCIL,http://statistics.data.gov.uk/id/local-authority/00EU,FWB,DSG Early Years PVI Settings,32417,Private & Voluntary 3 Year Olds,470100,29-Aug-14,1900152774,9293,Cromdale Way Preschool,400128
WARRINGTON BOROUGH COUNCIL,http://statistics.data.gov.uk/id/local-authority/00EU,FWB,DSG Early Years PVI Settings,32417,Private & Voluntary 3 Year Olds,470100,29-Aug-14,1900152775,21474,Culcheth Day Nursery Ltd,400130
WARRINGTON BOROUGH COUNCIL,http://statistics.data.gov.uk/id/local-authority/00EU,FWB,DSG Early Years PVI Settings,32417,Private & Voluntary 3 Year Olds,470100,29-Aug-14,1900152776,976,Cupcakes Pre School Limited,400241
WARRINGTON BOROUGH COUNCIL,http://statistics.data.gov.uk/id/local-authority/00EU,FWB,DSG Early Years PVI Settings,32417,Private & Voluntary 3 Year Olds,470100,29-Aug-14,1900152777,4230,Fun 4 Kids,102275
WARRINGTON BOROUGH COUNCIL,http://statistics.data.gov.uk/id/local-authority/00EU,FWB,DSG Early Years PVI Settings,32417,Private & Voluntary 3 Year Olds,470100,29-Aug-14,1900152778,2209,Glazebury Pre-School Playgroup,400132
WARRINGTON BOROUGH COUNCIL,http://statistics.data.gov.uk/id/local-authority/00EU,FWB,DSG Early Years PVI Settings,32417,Private & Voluntary 3 Year Olds,470100,29-Aug-14,1900152779,8723,Grappenhall Pre-School,400134
WARRINGTON BOROUGH COUNCIL,http://statistics.data.gov.uk/id/local-authority/00EU,FWB,DSG Early Years PVI Settings,32417,Private & Voluntary 3 Year Olds,470100,29-Aug-14,1900152780,14153,Green Park Nursery,400089
WARRINGTON BOROUGH COUNCIL,http://statistics.data.gov.uk/id/local-authority/00EU,FWB,DSG Early Years PVI Settings,32417,Private & Voluntary 3 Year Olds,470100,29-Aug-14,1900152781,10151,Heathfield House Day Nursery,400138
WARRINGTON BOROUGH COUNCIL,http://statistics.data.gov.uk/id/local-authority/00EU,FWB,DSG Early Years PVI Settings,32417,Private & Voluntary 3 Year Olds,470100,29-Aug-14,1900152782,1319,Hood Lane Playgroup,400139
WARRINGTON BOROUGH COUNCIL,http://statistics.data.gov.uk/id/local-authority/00EU,FWB,DSG Early Years PVI Settings,32417,Private & Voluntary 3 Year Olds,470100,29-Aug-14,1900152783,7100,Jack & Jill Pre School,400014
WARRINGTON BOROUGH COUNCIL,http://statistics.data.gov.uk/id/local-authority/00EU,FWB,DSG Early Years PVI Settings,32417,Private & Voluntary 3 Year Olds,470100,29-Aug-14,1900152784,19034,Kalgarth Grange Nursery,400096
WARRINGTON BOROUGH COUNCIL,http://statistics.data.gov.uk/id/local-authority/00EU,FWB,DSG Early Years PVI Settings,32417,Private & Voluntary 3 Year Olds,470100,29-Aug-14,1900152785,12886,Kids Planet Warrington,105710
WARRINGTON BOROUGH COUNCIL,http://statistics.data.gov.uk/id/local-authority/00EU,FWB,DSG Early Years PVI Settings,32417,Private & Voluntary 3 Year Olds,470100,29-Aug-14,1900152786,4880,Kids Planet Warrington,105710
WARRINGTON BOROUGH COUNCIL,http://statistics.data.gov.uk/id/local-authority/00EU,FWB,DSG Early Years PVI Settings,32417,Private & Voluntary 3 Year Olds,470100,29-Aug-14,1900152787,25980,Kids Planet Warrington,105710
WARRINGTON BOROUGH COUNCIL,http://statistics.data.gov.uk/id/local-authority/00EU,FWB,DSG Early Years PVI Settings,32417,Private & Voluntary 3 Year Olds,470100,29-Aug-14,1900152788,17058,Kids Unlimited Callands,400121
WARRINGTON BOROUGH COUNCIL,http://statistics.data.gov.uk/id/local-authority/00EU,FWB,DSG Early Years PVI Settings,32417,Private & Voluntary 3 Year Olds,470100,29-Aug-14,1900152789,29737,Little Acorns Day Nursery,400012
WARRINGTON BOROUGH COUNCIL,http://statistics.data.gov.uk/id/local-authority/00EU,FWB,DSG Early Years PVI Settings,32417,Private & Voluntary 3 Year Olds,470100,29-Aug-14,1900152790,2928,Little Browsers Playgroup,400140
WARRINGTON BOROUGH COUNCIL,http://statistics.data.gov.uk/id/local-authority/00EU,FWB,DSG Early Years PVI Settings,32417,Private & Voluntary 3 Year Olds,470100,29-Aug-14,1900152791,8499,Little Penguins Day Nursery,110768
WARRINGTON BOROUGH COUNCIL,http://statistics.data.gov.uk/id/local-authority/00EU,FWB,DSG Early Years PVI Settings,32417,Private & Voluntary 3 Year Olds,470100,29-Aug-14,1900152792,14153,Little Treasures Nursery Ltd,400091
WARRINGTON BOROUGH COUNCIL,http://statistics.data.gov.uk/id/local-authority/00EU,FWB,DSG Early Years PVI Settings,32417,Private & Voluntary 3 Year Olds,470100,29-Aug-14,1900152793,10540,Locking Stumps Day Nursery,400142
WARRINGTON BOROUGH COUNCIL,http://statistics.data.gov.uk/id/local-authority/00EU,FWB,DSG Early Years PVI Settings,32417,Private & Voluntary 3 Year Olds,470100,29-Aug-14,1900152794,11575,Locking Stumps Pre School,400008
WARRINGTON BOROUGH COUNCIL,http://statistics.data.gov.uk/id/local-authority/00EU,FWB,DSG Early Years PVI Settings,32417,Private & Voluntary 3 Year Olds,470100,29-Aug-14,1900152795,5301,Lymm Village Preschool,400146
WARRINGTON BOROUGH COUNCIL,http://statistics.data.gov.uk/id/local-authority/00EU,FWB,DSG Early Years PVI Settings,32417,Private & Voluntary 3 Year Olds,470100,29-Aug-14,1900152796,4342,Lynton Private Day Nursery,400003
WARRINGTON BOROUGH COUNCIL,http://statistics.data.gov.uk/id/local-authority/00EU,FWB,DSG Early Years PVI Settings,32417,Private & Voluntary 3 Year Olds,470100,29-Aug-14,1900152798,3416,Newchurch Pre-School Limited,400148
WARRINGTON BOROUGH COUNCIL,http://statistics.data.gov.uk/id/local-authority/00EU,FWB,DSG Early Years PVI Settings,32417,Private & Voluntary 3 Year Olds,470100,29-Aug-14,1900152799,11060,Old Hall Pre School,400017
WARRINGTON BOROUGH COUNCIL,http://statistics.data.gov.uk/id/local-authority/00EU,FWB,DSG Early Years PVI Settings,32417,Private & Voluntary 3 Year Olds,470100,29-Aug-14,1900152800,12159,Oughtrington Pre-School,400044
WARRINGTON BOROUGH COUNCIL,http://statistics.data.gov.uk/id/local-authority/00EU,FWB,DSG Early Years PVI Settings,32417,Private & Voluntary 3 Year Olds,470100,29-Aug-14,1900152801,1018,Wasps Nursery and Link Clubs,400087
WARRINGTON BOROUGH COUNCIL,http://statistics.data.gov.uk/id/local-authority/00EU,FWB,DSG Early Years PVI Settings,32417,Private & Voluntary 3 Year Olds,470100,29-Aug-14,1900152802,2752,Play Days Pre-School,400016
WARRINGTON BOROUGH COUNCIL,http://statistics.data.gov.uk/id/local-authority/00EU,FWB,DSG Early Years PVI Settings,32417,Private & Voluntary 3 Year Olds,470100,29-Aug-14,1900152803,10737,Puddleducks Day Nursery,400001
WARRINGTON BOROUGH COUNCIL,http://statistics.data.gov.uk/id/local-authority/00EU,FWB,DSG Early Years PVI Settings,32417,Private & Voluntary 3 Year Olds,470100,29-Aug-14,1900152804,8297,Rainbow Day Nursery,400153
WARRINGTON BOROUGH COUNCIL,http://statistics.data.gov.uk/id/local-authority/00EU,FWB,DSG Early Years PVI Settings,32417,Private & Voluntary 3 Year Olds,470100,29-Aug-14,1900152806,7809,Risley Day Nursery,400081
WARRINGTON BOROUGH COUNCIL,http://statistics.data.gov.uk/id/local-authority/00EU,FWB,DSG Early Years PVI Settings,32417,Private & Voluntary 3 Year Olds,470100,29-Aug-14,1900152807,6404,Rixton With Glazebrook Pre-School,400080
WARRINGTON BOROUGH COUNCIL,http://statistics.data.gov.uk/id/local-authority/00EU,FWB,DSG Early Years PVI Settings,32417,Private & Voluntary 3 Year Olds,470100,29-Aug-14,1900152808,13958,Rosebank Naturegarten,400154
WARRINGTON BOROUGH COUNCIL,http://statistics.data.gov.uk/id/local-authority/00EU,FWB,DSG Early Years PVI Settings,32417,Private & Voluntary 3 Year Olds,470100,29-Aug-14,1900152809,10281,Safe Hands Nursery,400086
WARRINGTON BOROUGH COUNCIL,http://statistics.data.gov.uk/id/local-authority/00EU,FWB,DSG Early Years PVI Settings,32417,Private & Voluntary 3 Year Olds,470100,29-Aug-14,1900152810,6327,Springwood Nursery,400167
WARRINGTON BOROUGH COUNCIL,http://statistics.data.gov.uk/id/local-authority/00EU,FWB,DSG Early Years PVI Settings,32417,Private & Voluntary 3 Year Olds,470100,29-Aug-14,1900152811,4371,St Mary's Pre School,400159
WARRINGTON BOROUGH COUNCIL,http://statistics.data.gov.uk/id/local-authority/00EU,FWB,DSG Early Years PVI Settings,32417,Private & Voluntary 3 Year Olds,470100,29-Aug-14,1900152812,6059,St Matthews Pre-School Group,400160
WARRINGTON BOROUGH COUNCIL,http://statistics.data.gov.uk/id/local-authority/00EU,FWB,DSG Early Years PVI Settings,32417,Private & Voluntary 3 Year Olds,470100,29-Aug-14,1900152813,11085,St Monica's Pre School,103081
WARRINGTON BOROUGH COUNCIL,http://statistics.data.gov.uk/id/local-authority/00EU,FWB,DSG Early Years PVI Settings,32417,Private & Voluntary 3 Year Olds,470100,29-Aug-14,1900152814,9656,St Oswald's Pre -School Nursery,400162
WARRINGTON BOROUGH COUNCIL,http://statistics.data.gov.uk/id/local-authority/00EU,FWB,DSG Early Years PVI Settings,32417,Private & Voluntary 3 Year Olds,470100,29-Aug-14,1900152815,10035,St Philips Pre School,400163
WARRINGTON BOROUGH COUNCIL,http://statistics.data.gov.uk/id/local-authority/00EU,FWB,DSG Early Years PVI Settings,32417,Private & Voluntary 3 Year Olds,470100,29-Aug-14,1900152816,7573,Statham Little Foxes Pre-School & L,400079
WARRINGTON BOROUGH COUNCIL,http://statistics.data.gov.uk/id/local-authority/00EU,FWB,DSG Early Years PVI Settings,32417,Private & Voluntary 3 Year Olds,470100,29-Aug-14,1900152817,12689,Stepping Stones Nurseries (Lingley,400169
WARRINGTON BOROUGH COUNCIL,http://statistics.data.gov.uk/id/local-authority/00EU,FWB,DSG Early Years PVI Settings,32417,Private & Voluntary 3 Year Olds,470100,29-Aug-14,1900152818,3026,Stepping Stones Child Care,400103
WARRINGTON BOROUGH COUNCIL,http://statistics.data.gov.uk/id/local-authority/00EU,FWB,DSG Early Years PVI Settings,32417,Private & Voluntary 3 Year Olds,470100,29-Aug-14,1900152819,2440,Stepping Stone Day Nurse Stockton H,400043
WARRINGTON BOROUGH COUNCIL,http://statistics.data.gov.uk/id/local-authority/00EU,FWB,DSG Early Years PVI Settings,32417,Private & Voluntary 3 Year Olds,470100,29-Aug-14,1900152820,7321,Stretton Day Nursery,400172
WARRINGTON BOROUGH COUNCIL,http://statistics.data.gov.uk/id/local-authority/00EU,FWB,DSG Early Years PVI Settings,32417,Private & Voluntary 3 Year Olds,470100,29-Aug-14,1900152821,13665,The Cheshire Day Nursery,400013
WARRINGTON BOROUGH COUNCIL,http://statistics.data.gov.uk/id/local-authority/00EU,FWB,DSG Early Years PVI Settings,32417,Private & Voluntary 3 Year Olds,470100,29-Aug-14,1900152822,13623,The Lakes Nursery,101036
WARRINGTON BOROUGH COUNCIL,http://statistics.data.gov.uk/id/local-authority/00EU,FWB,DSG Early Years PVI Settings,32417,Private & Voluntary 3 Year Olds,470100,29-Aug-14,1900152823,10603,The Little Lot Nursery,400141
WARRINGTON BOROUGH COUNCIL,http://statistics.data.gov.uk/id/local-authority/00EU,FWB,DSG Early Years PVI Settings,32417,Private & Voluntary 3 Year Olds,470100,29-Aug-14,1900152824,16593,The Old Vicarage,104991
WARRINGTON BOROUGH COUNCIL,http://statistics.data.gov.uk/id/local-authority/00EU,FWB,DSG Early Years PVI Settings,32417,Private & Voluntary 3 Year Olds,470100,29-Aug-14,1900152825,17081,The Quays Day Nursery,105052
WARRINGTON BOROUGH COUNCIL,http://statistics.data.gov.uk/id/local-authority/00EU,FWB,DSG Early Years PVI Settings,32417,Private & Voluntary 3 Year Olds,470100,29-Aug-14,1900152826,12118,The Village Pre-School,400174
WARRINGTON BOROUGH COUNCIL,http://statistics.data.gov.uk/id/local-authority/00EU,FWB,DSG Early Years PVI Settings,32417,Private & Voluntary 3 Year Olds,470100,29-Aug-14,1900152827,6018,Thelwall Pre-School,400010
WARRINGTON BOROUGH COUNCIL,http://statistics.data.gov.uk/id/local-authority/00EU,FWB,DSG Early Years PVI Settings,32417,Private & Voluntary 3 Year Olds,470100,29-Aug-14,1900152828,19522,Tiggy-Winkles Day Nursery,400082
WARRINGTON BOROUGH COUNCIL,http://statistics.data.gov.uk/id/local-authority/00EU,FWB,DSG Early Years PVI Settings,32417,Private & Voluntary 3 Year Olds,470100,29-Aug-14,1900152829,9534,Tugboats Pre-School,400028
WARRINGTON BOROUGH COUNCIL,http://statistics.data.gov.uk/id/local-authority/00EU,FWB,DSG Early Years PVI Settings,32417,Private & Voluntary 3 Year Olds,470100,29-Aug-14,1900152830,6345,University Of Chester Nursery Padga,400102
WARRINGTON BOROUGH COUNCIL,http://statistics.data.gov.uk/id/local-authority/00EU,FWB,DSG Early Years PVI Settings,32417,Private & Voluntary 3 Year Olds,470100,29-Aug-14,1900152831,7668,Warren Pre-School Playgroup,400176
WARRINGTON BOROUGH COUNCIL,http://statistics.data.gov.uk/id/local-authority/00EU,FWB,DSG Early Years PVI Settings,32417,Private & Voluntary 3 Year Olds,470100,29-Aug-14,1900152832,14380,Warrington Day Nursery,400002
WARRINGTON BOROUGH COUNCIL,http://statistics.data.gov.uk/id/local-authority/00EU,FWB,DSG Early Years PVI Settings,32417,Private & Voluntary 3 Year Olds,470100,29-Aug-14,1900152833,15780,Willows Pre-School Nursery,400094
WARRINGTON BOROUGH COUNCIL,http://statistics.data.gov.uk/id/local-authority/00EU,FWB,DSG Early Years PVI Settings,32417,Private & Voluntary 3 Year Olds,470100,29-Aug-14,1900152834,8255,Wind in the Willows,400168
WARRINGTON BOROUGH COUNCIL,http://statistics.data.gov.uk/id/local-authority/00EU,FWB,DSG Early Years PVI Settings,32417,Private & Voluntary 3 Year Olds,470100,29-Aug-14,1900152835,1952,Wind in The Willows Childcare,112697
WARRINGTON BOROUGH COUNCIL,http://statistics.data.gov.uk/id/local-authority/00EU,FWB,DSG Early Years PVI Settings,32417,Private & Voluntary 3 Year Olds,470100,29-Aug-14,1900152836,3124,Winwick Pre-School Nursery,400181
WARRINGTON BOROUGH COUNCIL,http://statistics.data.gov.uk/id/local-authority/00EU,FWB,DSG Early Years PVI Settings,32417,Private & Voluntary 4 Year Olds,470150,29-Aug-14,1900152838,616,Butterflys Nursery,107718
WARRINGTON BOROUGH COUNCIL,http://statistics.data.gov.uk/id/local-authority/00EU,FWB,DSG Early Years PVI Settings,32417,Private & Voluntary 4 Year Olds,470150,29-Aug-14,1900152841,607,Kalgarth Grange Nursery,400096
WARRINGTON BOROUGH COUNCIL,http://statistics.data.gov.uk/id/local-authority/00EU,FWB,DSG Early Years PVI Settings,32417,Private & Voluntary 3 Year Olds,470100,29-Aug-14,1900152727,4100,Little Wonders Day Nursery,110078
WARRINGTON BOROUGH COUNCIL,http://statistics.data.gov.uk/id/local-authority/00EU,FWB,DSG 2 Year Old Fund,31601,Payment of Grants,470050,29-Aug-14,1900152728,713,Redacted Personal Data,113528
WARRINGTON BOROUGH COUNCIL,http://statistics.data.gov.uk/id/local-authority/00EU,HOL,Single Billing Holding Account,91130,Electricity,210000,29-Aug-14,1900152726,34343,Npower Electricity,101884
WARRINGTON BOROUGH COUNCIL,http://statistics.data.gov.uk/id/local-authority/00EU,HOL,Single Billing Holding Account,91130,Electricity,210000,29-Aug-14,1900152726,6000,Npower Electricity,101884
WARRINGTON BOROUGH COUNCIL,http://statistics.data.gov.uk/id/local-authority/00EU,FWB,Care Purchase - Learning Disability,54450,CP-Domicil.External,440950,29-Aug-14,1900152903,50075,Future Directions Community Interes,111498
WARRINGTON BOROUGH COUNCIL,http://statistics.data.gov.uk/id/local-authority/00EU,FWB,Care Purchase - Learning Disability,54450,Supporting People - External,441250,29-Aug-14,1900152903,7097,Future Directions Community Interes,111498
WARRINGTON BOROUGH COUNCIL,http://statistics.data.gov.uk/id/local-authority/00EU,FWB,Legal Fees - Safeguarding,30100,Legal Costs Incurred,440200,29-Aug-14,1900152905,2055,HMCTS,440115
WARRINGTON BOROUGH COUNCIL,http://statistics.data.gov.uk/id/local-authority/00EU,FWB,Housing Strategy,43620,ICT Comms - Device Usage,450500,29-Aug-14,1900152753,6572,Warrington Housing Current Acc,101208
WARRINGTON BOROUGH COUNCIL,http://statistics.data.gov.uk/id/local-authority/00EU,FWB,EIG Funding - Childcare Team,31600,Payment of Grants,470050,08-Aug-14,1900151363,756,Birch Grove Day Nursery Ltd,101367
WARRINGTON BOROUGH COUNCIL,http://statistics.data.gov.uk/id/local-authority/00EU,FWB,Transport,54950,Transport SLA,300400,08-Aug-14,1900151355,550,Tip Top Travel,113174
WARRINGTON BOROUGH COUNCIL,http://statistics.data.gov.uk/id/local-authority/00EU,FWB,Care Purchase - Learning Disability,54450,Direct Payments,552000,08-Aug-14,1900151377,2550,Redacted Personal Data,460625
WARRINGTON BOROUGH COUNCIL,http://statistics.data.gov.uk/id/local-authority/00EU,FWB,North West Children's Improvement Prog,31004,Consult.& Prof. Serv,440000,11-Aug-14,1900151473,1200,Redacted Personal Data,111016
WARRINGTON BOROUGH COUNCIL,http://statistics.data.gov.uk/id/local-authority/00EU,RSC,Head of Integrated Commissioning,53500,Payment of Grants,470050,11-Aug-14,1900151432,1303,The Speak Up Group,440125
WARRINGTON BOROUGH COUNCIL,http://statistics.data.gov.uk/id/local-authority/00EU,RSC,Coroners Service,11100,Post Mortem Fees-Rep,440250,11-Aug-14,1900151404,984,Dr Michael Wall,107545
WARRINGTON BOROUGH COUNCIL,http://statistics.data.gov.uk/id/local-authority/00EU,COR,C2W Salary Sacrfice,59995,Veh Maint. Materials,300000,11-Aug-14,1900151399,10092,Halfords Ltd,104764
WARRINGTON BOROUGH COUNCIL,http://statistics.data.gov.uk/id/local-authority/00EU,FWB,DAAT (PCT Funded),53820,Consult.& Prof. Serv,440000,11-Aug-14,1900151472,4750,Stepping out Business Development,111490
WARRINGTON BOROUGH COUNCIL,http://statistics.data.gov.uk/id/local-authority/00EU,FWB,DSG 2 Year Old Trajectory Fund,31602,Learning Resources,400100,11-Aug-14,1900151410,2000,Green Park Nursery,400089
WARRINGTON BOROUGH COUNCIL,http://statistics.data.gov.uk/id/local-authority/00EU,FWB,CIN Team 1,31001,Agency Supply - GF,180000,11-Aug-14,1900151414,1925,Hamptons Resourcing,112852
WARRINGTON BOROUGH COUNCIL,http://statistics.data.gov.uk/id/local-authority/00EU,FWB,Intergrated Services - CWD,30004,"Campaigns,  Projects and Events",491950,11-Aug-14,1900151482,544,Lindleys Catering & Event Managemen,107126
WARRINGTON BOROUGH COUNCIL,http://statistics.data.gov.uk/id/local-authority/00EU,FWB,CiC Management,30200,Agency Supply - GF,180000,11-Aug-14,1900151423,3104,Hamptons Resourcing,112852
WARRINGTON BOROUGH COUNCIL,http://statistics.data.gov.uk/id/local-authority/00EU,COR,Corporate Adjustments,60120,Actuarial Costs,190500,11-Aug-14,1900151446,312750,Cheshire West And Chester Pension F,440027
WARRINGTON BOROUGH COUNCIL,http://statistics.data.gov.uk/id/local-authority/00EU,EG0,Contingency,45227,Maintenance of Plant & Machinery,250050,11-Aug-14,1900151441,2345,Manchester Working Limited,105646
WARRINGTON BOROUGH COUNCIL,http://statistics.data.gov.uk/id/local-authority/00EU,EG0,Contingency,45227,Maintenance of Plant & Machinery,250050,11-Aug-14,1900151441,1780,Manchester Working Limited,105646
WARRINGTON BOROUGH COUNCIL,http://statistics.data.gov.uk/id/local-authority/00EU,EG0,Contingency,45227,Maintenance of Plant & Machinery,250050,11-Aug-14,1900151440,1967,Manchester Working Limited,105646
WARRINGTON BOROUGH COUNCIL,http://statistics.data.gov.uk/id/local-authority/00EU,HOL,Single Billing Holding Account,91130,Specific Work,200200,11-Aug-14,1900151445,12858,Manchester Working Limited,105646
WARRINGTON BOROUGH COUNCIL,http://statistics.data.gov.uk/id/local-authority/00EU,FWB,Homelessness,43650,B.& B.Allowances,525050,11-Aug-14,1900151451,510,Mr K Willams Adelphi Vaults,110456
WARRINGTON BOROUGH COUNCIL,http://statistics.data.gov.uk/id/local-authority/00EU,RSC,Coroners Service,11100,Analysts Fees,440300,12-Aug-14,1900151500,1050,Roar Forensics Ltd,105295
WARRINGTON BOROUGH COUNCIL,http://statistics.data.gov.uk/id/local-authority/00EU,RSC,Coroners Service,11100,Analysts Fees,440300,12-Aug-14,1900151498,1862,Roar Forensics Ltd,105295
WARRINGTON BOROUGH COUNCIL,http://statistics.data.gov.uk/id/local-authority/00EU,EG0,Estates & Valuation,43520,Agency Supply - GF,180000,12-Aug-14,1900151517,775,Macdonald And Company,100697
WARRINGTON BOROUGH COUNCIL,http://statistics.data.gov.uk/id/local-authority/00EU,HOL,Single Billing Holding Account,91130,Agency Supply - GF,180000,12-Aug-14,1900151484,53718,Hays Specialist Recruitment Ltd,107512
WARRINGTON BOROUGH COUNCIL,http://statistics.data.gov.uk/id/local-authority/00EU,FWB,Inclusion,32207,Consult.& Prof. Serv,440000,12-Aug-14,1900151485,2000,Redacted Personal Data,113460
WARRINGTON BOROUGH COUNCIL,http://statistics.data.gov.uk/id/local-authority/00EU,RSC,CRB Checks,52122,CRB Checks,190050,12-Aug-14,1900151495,20460,Criminal Records Bureau,440085
WARRINGTON BOROUGH COUNCIL,http://statistics.data.gov.uk/id/local-authority/00EU,EG0,Other Commercial Prop.,43560,Gas,210050,12-Aug-14,1900151504,964,Gazprom Energy,113253
WARRINGTON BOROUGH COUNCIL,http://statistics.data.gov.uk/id/local-authority/00EU,COR,Car Leasing Scheme - Salary Sacrifice,52126,Car Leasing Charges,350000,12-Aug-14,1900151501,1853,NHS Foundation Trust,110359
WARRINGTON BOROUGH COUNCIL,http://statistics.data.gov.uk/id/local-authority/00EU,COR,Car Leasing Scheme - Salary Sacrifice,52126,Car Leasing Charges,350000,12-Aug-14,1900151501,670,NHS Foundation Trust,110359
WARRINGTON BOROUGH COUNCIL,http://statistics.data.gov.uk/id/local-authority/00EU,COR,Car Leasing Scheme - Salary Sacrifice,52126,Car Leasing Charges,350000,12-Aug-14,1900151524,3147,NHS Foundation Trust,110359
WARRINGTON BOROUGH COUNCIL,http://statistics.data.gov.uk/id/local-authority/00EU,COR,Car Leasing Scheme - Salary Sacrifice,52126,Car Leasing Charges,350000,12-Aug-14,1900151524,670,NHS Foundation Trust,110359
WARRINGTON BOROUGH COUNCIL,http://statistics.data.gov.uk/id/local-authority/00EU,COR,Car Leasing Scheme - Salary Sacrifice,52126,Car Leasing Charges,350000,12-Aug-14,1900151530,3025,NHS Foundation Trust,110359
WARRINGTON BOROUGH COUNCIL,http://statistics.data.gov.uk/id/local-authority/00EU,COR,Car Leasing Scheme - Salary Sacrifice,52126,Car Leasing Charges,350000,12-Aug-14,1900151530,595,NHS Foundation Trust,110359
WARRINGTON BOROUGH COUNCIL,http://statistics.data.gov.uk/id/local-authority/00EU,COR,Car Leasing Scheme - Salary Sacrifice,52126,Car Leasing Charges,350000,12-Aug-14,1900151505,1946,NHS Foundation Trust,110359
WARRINGTON BOROUGH COUNCIL,http://statistics.data.gov.uk/id/local-authority/00EU,COR,Car Leasing Scheme - Salary Sacrifice,52126,Car Leasing Charges,350000,12-Aug-14,1900151505,595,NHS Foundation Trust,110359
WARRINGTON BOROUGH COUNCIL,http://statistics.data.gov.uk/id/local-authority/00EU,COR,Car Leasing Scheme - Salary Sacrifice,52126,Car Leasing Charges,350000,12-Aug-14,1900151529,2511,NHS Foundation Trust,110359
WARRINGTON BOROUGH COUNCIL,http://statistics.data.gov.uk/id/local-authority/00EU,COR,Car Leasing Scheme - Salary Sacrifice,52126,Car Leasing Charges,350000,12-Aug-14,1900151529,595,NHS Foundation Trust,110359
WARRINGTON BOROUGH COUNCIL,http://statistics.data.gov.uk/id/local-authority/00EU,COR,Car Leasing Scheme - Salary Sacrifice,52126,Car Leasing Charges,350000,12-Aug-14,1900151521,2885,NHS Foundation Trust,110359
WARRINGTON BOROUGH COUNCIL,http://statistics.data.gov.uk/id/local-authority/00EU,COR,Car Leasing Scheme - Salary Sacrifice,52126,Car Leasing Charges,350000,12-Aug-14,1900151521,595,NHS Foundation Trust,110359
WARRINGTON BOROUGH COUNCIL,http://statistics.data.gov.uk/id/local-authority/00EU,COR,Car Leasing Scheme - Salary Sacrifice,52126,Car Leasing Charges,350000,12-Aug-14,1900151520,1694,NHS Foundation Trust,110359
WARRINGTON BOROUGH COUNCIL,http://statistics.data.gov.uk/id/local-authority/00EU,COR,Car Leasing Scheme - Salary Sacrifice,52126,Car Leasing Charges,350000,12-Aug-14,1900151520,739,NHS Foundation Trust,110359
WARRINGTON BOROUGH COUNCIL,http://statistics.data.gov.uk/id/local-authority/00EU,COR,Car Leasing Scheme - Salary Sacrifice,52126,Car Leasing Charges,350000,12-Aug-14,1900151519,3697,NHS Foundation Trust,110359
WARRINGTON BOROUGH COUNCIL,http://statistics.data.gov.uk/id/local-authority/00EU,COR,Car Leasing Scheme - Salary Sacrifice,52126,Car Leasing Charges,350000,12-Aug-14,1900151519,739,NHS Foundation Trust,110359
WARRINGTON BOROUGH COUNCIL,http://statistics.data.gov.uk/id/local-authority/00EU,COR,Car Leasing Scheme - Salary Sacrifice,52126,Car Leasing Charges,350000,12-Aug-14,1900151527,2057,NHS Foundation Trust,110359
WARRINGTON BOROUGH COUNCIL,http://statistics.data.gov.uk/id/local-authority/00EU,COR,Car Leasing Scheme - Salary Sacrifice,52126,Car Leasing Charges,350000,12-Aug-14,1900151527,739,NHS Foundation Trust,110359
WARRINGTON BOROUGH COUNCIL,http://statistics.data.gov.uk/id/local-authority/00EU,FWB,Strategic Director,30000,Advertisings-Jobs,190000,12-Aug-14,1900151509,17850,Eleni Ltd,113205
WARRINGTON BOROUGH COUNCIL,http://statistics.data.gov.uk/id/local-authority/00EU,FWB,CIN Team 1,31001,Agency Supply - GF,180000,12-Aug-14,1900151528,1925,Hamptons Resourcing,112852
WARRINGTON BOROUGH COUNCIL,http://statistics.data.gov.uk/id/local-authority/00EU,FWB,CIN Team 1,31001,Agency Supply - GF,180000,12-Aug-14,1900151518,1925,Hamptons Resourcing,112852
WARRINGTON BOROUGH COUNCIL,http://statistics.data.gov.uk/id/local-authority/00EU,FWB,CIN Team 1,31001,Agency Supply - GF,180000,12-Aug-14,1900151526,1925,Hamptons Resourcing,112852
WARRINGTON BOROUGH COUNCIL,http://statistics.data.gov.uk/id/local-authority/00EU,FWB,CIN Team 1,31001,Agency Supply - GF,180000,12-Aug-14,1900151516,1925,Hamptons Resourcing,112852
WARRINGTON BOROUGH COUNCIL,http://statistics.data.gov.uk/id/local-authority/00EU,FWB,CIN Team 1,31001,Agency Supply - GF,180000,12-Aug-14,1900151515,1925,Hamptons Resourcing,112852
WARRINGTON BOROUGH COUNCIL,http://statistics.data.gov.uk/id/local-authority/00EU,FWB,Care Purchase - Learning Disability,54450,CP-Domicil.External,440950,12-Aug-14,1900151489,63343,Alternative Futures Group,104468
WARRINGTON BOROUGH COUNCIL,http://statistics.data.gov.uk/id/local-authority/00EU,FWB,Care Purchase - Learning Disability,54450,Supporting People - External,441250,12-Aug-14,1900151489,7330,Alternative Futures Group,104468
WARRINGTON BOROUGH COUNCIL,http://statistics.data.gov.uk/id/local-authority/00EU,FWB,Care Purchase Budget,54490,Voids,515150,12-Aug-14,1900151489,5745,Alternative Futures Group,104468
WARRINGTON BOROUGH COUNCIL,http://statistics.data.gov.uk/id/local-authority/00EU,FWB,Care Purchase - Learning Disability,54450,CP-Domicil.External,440950,12-Aug-14,1900151490,63343,Alternative Futures Group,104468
WARRINGTON BOROUGH COUNCIL,http://statistics.data.gov.uk/id/local-authority/00EU,FWB,Care Purchase - Learning Disability,54450,Supporting People - External,441250,12-Aug-14,1900151490,7330,Alternative Futures Group,104468
WARRINGTON BOROUGH COUNCIL,http://statistics.data.gov.uk/id/local-authority/00EU,FWB,Care Purchase Budget,54490,Voids,515150,12-Aug-14,1900151490,5745,Alternative Futures Group,104468
WARRINGTON BOROUGH COUNCIL,http://statistics.data.gov.uk/id/local-authority/00EU,FWB,Care Purchase - Learning Disability,54450,CP-Domicil.External,440950,12-Aug-14,1900151488,63343,Alternative Futures Group,104468
WARRINGTON BOROUGH COUNCIL,http://statistics.data.gov.uk/id/local-authority/00EU,FWB,Care Purchase - Learning Disability,54450,Supporting People - External,441250,12-Aug-14,1900151488,7330,Alternative Futures Group,104468
WARRINGTON BOROUGH COUNCIL,http://statistics.data.gov.uk/id/local-authority/00EU,FWB,Care Purchase Budget,54490,Voids,515150,12-Aug-14,1900151488,5745,Alternative Futures Group,104468
WARRINGTON BOROUGH COUNCIL,http://statistics.data.gov.uk/id/local-authority/00EU,FWB,Neighbourhood Co-o West,51307,Payment of Grants,470050,12-Aug-14,1900151508,2500,Burtonwood Bowling Club,113508
WARRINGTON BOROUGH COUNCIL,http://statistics.data.gov.uk/id/local-authority/00EU,HOL,Insurance Fund,91100,Insurance Premium,443350,12-Aug-14,1900151487,1579,Motor Accident Protection Services,105883
WARRINGTON BOROUGH COUNCIL,http://statistics.data.gov.uk/id/local-authority/00EU,HOL,Insurance Fund,91100,Insurance Premium,443350,12-Aug-14,1900151486,278079,Zurich Insurance Company,105263
WARRINGTON BOROUGH COUNCIL,http://statistics.data.gov.uk/id/local-authority/00EU,FWB,Care Purchase Budget,54490,CP Free Nursing Care External,443500,13-Aug-14,1900151562,1331,CareConcepts (Appleton) Ltd,105804
WARRINGTON BOROUGH COUNCIL,http://statistics.data.gov.uk/id/local-authority/00EU,FWB,Care Purchase - Learning Disability,54450,CP-LongStayExternal,441150,13-Aug-14,1900151563,6920,Clervaux Trust Ltd,110288
WARRINGTON BOROUGH COUNCIL,http://statistics.data.gov.uk/id/local-authority/00EU,FWB,Care Purchase - Learning Disability,54450,CP-LongStayExternal,441150,13-Aug-14,1900151588,2657,Ley Community Drug Services,107958
WARRINGTON BOROUGH COUNCIL,http://statistics.data.gov.uk/id/local-authority/00EU,FWB,Care Purchase - OP & OT South,54480,CP-Domicil.External,440950,13-Aug-14,1900151573,13699,Dh Homecare,101961
WARRINGTON BOROUGH COUNCIL,http://statistics.data.gov.uk/id/local-authority/00EU,FWB,Care Purchase - OP & OT Central,54420,CP-Domicil.External,440950,13-Aug-14,1900151573,7138,Dh Homecare,101961
WARRINGTON BOROUGH COUNCIL,http://statistics.data.gov.uk/id/local-authority/00EU,FWB,Care Purchase - OP & OT West,54470,CP-Domicil.External,440950,13-Aug-14,1900151573,1510,Dh Homecare,101961
WARRINGTON BOROUGH COUNCIL,http://statistics.data.gov.uk/id/local-authority/00EU,FWB,Care Purchase - PD,54440,CP-Domicil.External,440950,13-Aug-14,1900151573,2893,Dh Homecare,101961
WARRINGTON BOROUGH COUNCIL,http://statistics.data.gov.uk/id/local-authority/00EU,FWB,Agency Placements,30904,CP-LongStayExternal,441150,19-Jun-14,5100174868,4864.42,Nugent Care,101082
